{"text_format":"1","workbook":"xlsx","n_sheets":17,"sheets":["Allgemeine Daten","Technische Daten","Vorabklärung","Auslegung","Anmeldung","Installations-Attest","Beurteilungs-Attest","alt-Beurteilungs-Attest","Vorabklärung-Generalüberholung","Überarbeitung-Änderungen","Abkürzungen SES","Kurz Anmeldung","Ausserbetrieb-Inbetriebsetzung","Systemart","Behörden","Fachstelle(n)","Gewässerschutzamt"],"not_rendered":{"charts":0,"images":2,"macros":1,"external_links":0,"defined_names":73,"comments":0,"pivot_tables":0},"unopened":[],"bounds":{"document_bytes":16777216,"sheet_cells":100000,"rows_first":2000,"rows_last":500,"rows_between":2000,"halvings":0,"cell_chars":16384,"cell_head_chars":4096},"cells_cut":0,"cells_raw":0,"read":"whole","date_system":"1900"}

{"sheet":"Allgemeine Daten","index":0,"n_rows":138,"n_cols":45,"rows_kept":138,"cut":false,"hidden":false,"merged":[[130,41,130,51],[132,41,132,51],[137,41,137,51],[13,1,15,7],[13,16,13,29],[15,16,15,29],[15,33,15,35],[15,41,15,51],[17,16,17,29],[17,33,17,35],[17,41,17,51],[20,16,20,29],[22,16,22,29],[22,41,22,51],[25,1,25,7],[25,16,25,29],[27,16,27,29],[27,33,27,35],[27,41,27,51],[29,16,29,29],[29,33,29,35],[29,41,29,51],[32,16,32,29],[34,16,34,29],[89,41,89,51],[91,41,91,51],[101,41,101,51],[103,41,103,51],[108,41,108,51],[112,41,112,51],[118,41,118,51],[120,41,120,51],[125,41,125,51],[75,41,75,51],[77,41,77,51],[79,41,79,51],[82,41,82,51],[84,41,84,51],[34,41,34,51],[39,16,41,51],[87,41,87,51],[4,41,4,51],[6,41,6,51],[8,41,8,51],[63,41,63,51],[65,41,65,51],[67,41,67,51],[70,41,70,51],[72,41,72,51],[116,1,118,7],[116,16,116,29],[118,16,118,29],[118,33,118,35],[103,16,103,29],[103,33,103,35],[110,16,110,29],[96,41,96,51],[94,41,94,51],[91,33,91,35],[89,33,89,35],[132,16,132,29],[132,33,132,35],[135,16,135,29],[137,16,137,29],[106,16,106,29],[108,16,108,29],[112,16,112,29],[99,16,99,29],[101,16,101,29],[101,33,101,35],[128,1,130,7],[128,16,128,29],[130,16,130,29],[130,33,130,35],[120,16,120,29],[120,33,120,35],[123,16,123,29],[125,16,125,29],[63,16,63,29],[75,16,75,29],[77,16,77,29],[77,33,77,35],[79,33,79,35],[79,16,79,29],[82,16,82,29],[84,16,84,29],[87,16,87,29],[89,16,89,29],[94,16,94,29],[96,16,96,29],[87,1,89,7],[75,1,77,7],[99,1,101,7],[91,16,91,29],[4,1,7,7],[63,1,65,7],[65,16,65,29],[65,33,65,35],[6,16,6,28],[8,16,8,28],[6,33,6,35],[72,16,72,29],[67,16,67,29],[70,16,70,29],[67,33,67,35],[49,16,49,19],[49,25,49,28],[51,16,51,19],[51,25,51,28],[44,1,44,7],[49,1,51,7],[37,1,39,7],[4,16,4,35],[8,33,8,35],[53,16,53,51],[60,16,60,32],[10,41,10,51]]}
[null,null,null,null,null,null,null,null,null,"Sprinkleranlage "]
[null,null,null,null,null,null,null,null,null,"Allgemeine Daten"]
[]
[]
["1.","Geschütztes              Gebäude",null,null,null,null,null,null,null,"Objekt",null,null,null,null,null,null,null,null,null,null,null,null,null,null,null,null,null,null,null,null,null,null,null,null,null,null,null,"Vers.- Nr."]
[]
[null,null,null,null,null,null,null,null,null,"Strasse",null,null,null,null,null,null,null,null,null,null,null,null,null,null,null,null,null,null,null,null,null,"Nr.",null,null,null,null,null,"Anlage Nr."]
[]
[null,null,null,null,null,null,null,null,null,"Ort",null,null,null,null,null,null,null,null,null,null,null,null,null,null,null,null,null,null,null,null,null,"PLZ",null,null,null,null,null,"Kataster Nr."]
[]
[null,null,null,null,null,null,null,null,null,"Qualitätssicherungsstufe ",null,null,null,null,null,null," QSS ",null," -",null,null,null,null,null,null,null,null,null,null,null,null,null,null,null,null,null,null,"EGID Nr."]
[]
[]
["2.","Eigentümer- und Nutzerschaft",null,null,null,null,null,null,null,"Name"]
[]
[null,null,null,null,null,null,null,null,null,"Strasse",null,null,null,null,null,null,null,null,null,null,null,null,null,null,null,null,null,null,null,null,null,"Nr.",null,null,null,null,null,"Tel."]
[]
[null,null,null,null,null,null,null,null,null,"Ort",null,null,null,null,null,null,null,null,null,null,null,null,null,null,null,null,null,null,null,null,null,"PLZ",null,null,null,null,null,"Fax"]
[]
[]
[null,null,null,null,null,null,null,null,null,"Zuständige Person"]
[]
[null,null,null,null,null,null,null,null,null,"E-Mail",null,null,null,null,null,null,null,null,null,null,null,null,null,null,null,null,null,null,null,null,null,null,null,null,null,null,null,"Tel. direkt"]
[]
[]
["3.","Vertreter",null,null,null,null,null,null,null,"Firma"]
[]
[null,null,null,null,null,null,null,null,null,"Strasse",null,null,null,null,null,null,null,null,null,null,null,null,null,null,null,null,null,null,null,null,null,"Nr.",null,null,null,null,null,"Tel."]
[]
[null,null,null,null,null,null,null,null,null,"Ort",null,null,null,null,null,null,null,null,null,null,null,null,null,null,null,null,null,null,null,null,null,"PLZ",null,null,null,null,null,"Fax"]
[]
[]
[null,null,null,null,null,null,null,null,null,"Zuständige Person"]
[]
[null,null,null,null,null,null,null,null,null,"E-Mail",null,null,null,null,null,null,null,null,null,null,null,null,null,null,null,null,null,null,null,null,null,null,null,null,null,null,null,"Tel. direkt"]
[]
[]
["4.","Projekt Beschreibung",null,null,null,null,null,null,null,null,null,null,null,null,null,null,"Neuanlage",null,null,null,null,null,null,"Generalüberholung",null,null,null,null,null,null,null,"Sanierung",null,null,null,null,null,"Umbau",null,null,null,null,null,null,"Erweiterung"]
[]
[]
[]
[]
[]
[]
["5.","Anlagestatus",null,null,null,null,null,null,null,"Vorgeschrieben Grund:",null,null,null,null,null,null,null,"Baulichem Konzept (VKF BSN Art. 10)",null,null,null,null,null,null,null,null,null,null,null,null,null,null,null,null," Löschanlagenkonzept  (VKF BSN Art. 10)"]
[]
[null,null,null,null,null,null,null,null,null,null,null,null,null,null,null,null,null,"Alternativem Brandschutzkonzept (VKF BSN Art. 11/12)",null,null,null,null,null,null,null,null,null,null,null,null,null,null,null,null,"  freiwillig auf die öffentliche Feuermeldestelle aufgeschaltet"]
[]
[]
["6.","Planungsgrundlagen",null,null,null,null,null,null,null,"Brandschutzpläne vom",null,null,null,null,null,null,null,null,null,null,null,null,"Version",null,null,null,null,null,null,null,null,null,null,"(bei Einstufung QSS 1/2)"]
[]
[null,null,null,null,null,null,null,null,null,"Brandschutzkonzept vom",null,null,null,null,null,null,null,null,null,null,null,null,"Version",null,null,null,null,null,null,null,null,null,null,"(bei Einstufung QSS 3/4)"]
[]
[null,null,null,null,null,null,null,null,null,"Verfasser:"]
[]
[]
["7.","Schutzumfang",null,null,null,null,null,null,null,null,null,null,null,null,null,null,"Vollschutz",null,null,null,null,null,null,null,"Teilschutz",null,null,null,null,null,null,null,null,"zusätzliche Handfeuermelder"]
[]
[null,null,null,null,null,null,null,null,null,null,null,null,null,null,null,null,"Ungeschützte Bereiche (z.B. Vordächer) vorhanden",null,null,null,null,null,null,null,null,null,null,null,null,null,null,null,null,null,"ja",null,null,null,null,null,null,null,"nein"]
[]
[null,null,null,null,null,null,null,null,null,null,null,null,null,null,null,null,"Bestätigung keine Lagerung durch Nutzerschaft erhalten",null,null,null,null,null,null,null,null,null,null,null,null,null,null,null,null,null,"ja",null,null,null,null,null,null,null,"nein"]
[]
[]
["8.","QS-Verantwortlicher Brandschutz",null,null,null,null,null,null,null,"Firma",null,null,null,null,null,null,null,null,null,null,null,null,null,null,null,null,null,null,null,null,null,"VKF Anerkennung Nr."]
[]
[null,null,null,null,null,null,null,null,null,"Strasse",null,null,null,null,null,null,null,null,null,null,null,null,null,null,null,null,null,null,null,null,null,"Nr.",null,null,null,null,null,"Tel."]
[]
[null,null,null,null,null,null,null,null,null,"Ort",null,null,null,null,null,null,null,null,null,null,null,null,null,null,null,null,null,null,null,null,null,"PLZ",null,null,null,null,null,"Fax"]
[]
[]
[null,null,null,null,null,null,null,null,null,"Zuständige Person",null,null,null,null,null,null,null,null,null,null,null,null,null,null,null,null,null,null,null,null,null,"VKF Zertifikat Nr."]
[]
[null,null,null,null,null,null,null,null,null,"E-Mail",null,null,null,null,null,null,null,null,null,null,null,null,null,null,null,null,null,null,null,null,null,null,null,null,null,null,null,"Tel. direkt"]
[]
[]
["9.","Fachfirma für die Planung von Sprinkleranlagen",null,null,null,null,null,null,null,"Firma",null,null,null,null,null,null,null,null,null,null,null,null,null,null,null,null,null,null,null,null,null,"VKF Anerkennung Nr."]
[]
[null,null,null,null,null,null,null,null,null,"Strasse",null,null,null,null,null,null,null,null,null,null,null,null,null,null,null,null,null,null,null,null,null,"Nr.",null,null,null,null,null,"Tel."]
[]
[null,null,null,null,null,null,null,null,null,"Ort",null,null,null,null,null,null,null,null,null,null,null,null,null,null,null,null,null,null,null,null,null,"PLZ",null,null,null,null,null,"Fax"]
[]
[]
[null,null,null,null,null,null,null,null,null,"Zuständige Person",null,null,null,null,null,null,null,null,null,null,null,null,null,null,null,null,null,null,null,null,null,"VKF Zertifikat Nr."]
[]
[null,null,null,null,null,null,null,null,null,"E-Mail",null,null,null,null,null,null,null,null,null,null,null,null,null,null,null,null,null,null,null,null,null,null,null,null,null,null,null,"Tel. direkt"]
[]
[]
["10.","Fachfirma für die Errichtung von Sprinkleranlagen",null,null,null,null,null,null,null,"Firma",null,null,null,null,null,null,null,null,null,null,null,null,null,null,null,null,null,null,null,null,null,"VKF Anerkennung Nr."]
[]
[null,null,null,null,null,null,null,null,null,"Strasse",null,null,null,null,null,null,null,null,null,null,null,null,null,null,null,null,null,null,null,null,null,"Nr.",null,null,null,null,null,"Tel."]
[]
[null,null,null,null,null,null,null,null,null,"Ort",null,null,null,null,null,null,null,null,null,null,null,null,null,null,null,null,null,null,null,null,null,"PLZ",null,null,null,null,null,"Fax"]
[]
[]
[null,null,null,null,null,null,null,null,null,"Zuständige Person",null,null,null,null,null,null,null,null,null,null,null,null,null,null,null,null,null,null,null,null,null,"VKF Zertifikat Nr."]
[]
[null,null,null,null,null,null,null,null,null,"E-Mail",null,null,null,null,null,null,null,null,null,null,null,null,null,null,null,null,null,null,null,null,null,null,null,null,null,null,null,"Tel. direkt"]
[]
[]
["11.","Sprinklerwart",null,null,null,null,null,null,null,"Firma"]
[]
[null,null,null,null,null,null,null,null,null,"Strasse",null,null,null,null,null,null,null,null,null,null,null,null,null,null,null,null,null,null,null,null,null,"Nr.",null,null,null,null,null,"Tel."]
[]
[null,null,null,null,null,null,null,null,null,"Ort",null,null,null,null,null,null,null,null,null,null,null,null,null,null,null,null,null,null,null,null,null,"PLZ",null,null,null,null,null,"Fax"]
[]
[]
[null,null,null,null,null,null,null,null,null,"Zuständige Person"]
[]
[null,null,null,null,null,null,null,null,null,"E-Mail",null,null,null,null,null,null,null,null,null,null,null,null,null,null,null,null,null,null,null,null,null,null,null,null,null,null,null,"Tel. direkt"]
[]
[null,null,null,null,null,null,null,null,null,"Stellvertretung"]
[]
[null,null,null,null,null,null,null,null,null,"E-Mail",null,null,null,null,null,null,null,null,null,null,null,null,null,null,null,null,null,null,null,null,null,null,null,null,null,null,null,"Tel. direkt"]
[]
[]
[]
["12.","Brandschutzbehörde",null,null,null,null,null,null,null,"Firma"]
[]
[null,null,null,null,null,null,null,null,null,"Strasse",null,null,null,null,null,null,null,null,null,null,null,null,null,null,null,null,null,null,null,null,null,"Nr.",null,null,null,null,null,"Tel."]
[]
[null,null,null,null,null,null,null,null,null,"Ort",null,null,null,null,null,null,null,null,null,null,null,null,null,null,null,null,null,null,null,null,null,"PLZ",null,null,null,null,null,"Fax"]
[]
[]
[null,null,null,null,null,null,null,null,null,"Zuständige Person"]
[]
[null,null,null,null,null,null,null,null,null,"E-Mail",null,null,null,null,null,null,null,null,null,null,null,null,null,null,null,null,null,null,null,null,null,null,null,null,null,null,null,"Tel. direkt"]
[]
[]
["13.","Inspektionsstelle",null,null,null,null,null,null,null,"Firma"]
[]
[null,null,null,null,null,null,null,null,null,"Strasse",null,null,null,null,null,null,null,null,null,null,null,null,null,null,null,null,null,null,null,null,null,"Nr.",null,null,null,null,null,"Tel."]
[]
[null,null,null,null,null,null,null,null,null,"Ort",null,null,null,null,null,null,null,null,null,null,null,null,null,null,null,null,null,null,null,null,null,"PLZ",null,null,null,null,null,"Fax"]
[]
[]
[null,null,null,null,null,null,null,null,null,"Zuständige Person"]
[]
[null,null,null,null,null,null,null,null,null,"E-Mail",null,null,null,null,null,null,null,null,null,null,null,null,null,null,null,null,null,null,null,null,null,null,null,null,null,null,null,"Tel. direkt"]

{"sheet":"Technische Daten","index":1,"n_rows":233,"n_cols":81,"rows_kept":233,"cut":false,"hidden":false,"merged":[[222,1,222,11],[219,48,219,49],[219,56,219,57],[184,9,186,20],[151,9,151,20],[152,9,152,20],[153,9,153,20],[154,9,154,20],[155,9,155,20],[151,21,151,25],[152,21,152,25],[153,21,153,25],[154,21,154,25],[155,21,155,25],[178,27,178,30],[180,27,180,30],[182,27,182,30],[180,32,180,35],[182,32,182,35],[178,9,178,20],[182,9,182,20],[174,21,174,26],[176,21,176,26],[178,21,178,26],[116,36,116,44],[116,45,116,53],[116,54,116,62],[116,63,116,71],[116,72,116,80],[150,27,150,35],[121,64,121,65],[141,27,141,35],[143,27,143,35],[145,27,145,35],[121,27,121,35],[147,27,147,35],[119,27,119,35],[123,27,123,35],[121,45,121,53],[125,27,125,35],[127,27,127,35],[131,27,131,35],[139,27,139,35],[139,41,139,80],[215,60,215,63],[215,65,215,68],[215,70,215,73],[215,75,215,78],[211,54,211,58],[211,60,211,63],[211,65,211,68],[211,70,211,73],[211,75,211,78],[213,54,213,58],[213,60,213,63],[213,65,213,68],[213,70,213,73],[213,75,213,78],[207,60,207,63],[207,65,207,68],[207,70,207,73],[207,75,207,78],[209,54,209,58],[209,60,209,63],[209,65,209,68],[209,70,209,73],[209,75,209,78],[108,72,108,80],[110,72,110,80],[85,63,85,71],[106,72,106,80],[93,72,93,80],[98,54,98,62],[91,54,91,62],[163,9,163,20],[165,9,165,20],[110,54,110,62],[110,63,110,71],[106,27,106,35],[106,36,106,44],[108,45,108,53],[85,54,85,62],[87,54,87,62],[117,27,117,35],[117,36,117,44],[117,45,117,53],[104,63,104,71],[106,54,106,62],[112,36,112,44],[129,27,129,35],[110,45,110,53],[64,72,64,80],[10,9,10,20],[10,72,10,80],[34,72,34,80],[36,72,36,80],[38,54,38,62],[38,63,38,71],[81,72,81,80],[74,72,74,80],[10,21,10,26],[10,27,10,35],[10,54,10,62],[81,54,81,62],[45,54,45,62],[81,9,81,20],[20,72,20,80],[25,72,25,80],[27,72,27,80],[14,72,14,80],[20,63,20,71],[70,63,70,71],[70,72,70,80],[76,72,76,80],[12,72,12,80],[106,63,106,71],[104,27,104,35],[104,36,104,44],[104,45,104,53],[102,27,102,35],[102,36,102,44],[102,45,102,53],[93,36,93,44],[93,27,93,35],[98,36,98,44],[106,45,106,53],[98,27,98,35],[10,36,10,44],[10,45,10,53],[108,27,108,35],[108,36,108,44],[100,27,100,35],[117,72,117,80],[117,54,117,62],[114,45,114,53],[114,54,114,62],[114,63,114,71],[114,72,114,80],[112,54,112,62],[117,63,117,71],[112,63,112,71],[112,72,112,80],[112,45,112,53],[100,36,100,44],[110,27,110,35],[104,72,104,80],[108,54,108,62],[108,63,108,71],[104,54,104,62],[110,36,110,44],[10,63,10,71],[25,54,25,62],[25,63,25,71],[45,63,45,71],[12,63,12,71],[34,63,34,71],[14,54,14,62],[14,63,14,71],[83,36,83,44],[83,45,83,53],[70,45,70,53],[66,54,66,62],[66,63,66,71],[64,54,64,62],[49,54,49,62],[49,63,49,71],[36,54,36,62],[36,63,36,71],[62,54,62,62],[57,63,57,71],[40,54,40,62],[40,63,40,71],[83,63,83,71],[81,27,81,35],[81,36,81,44],[81,45,81,53],[12,54,12,62],[12,21,12,26],[12,27,12,35],[12,36,12,44],[12,45,12,53],[14,21,14,26],[14,27,14,35],[14,36,14,44],[14,45,14,53],[27,27,27,35],[25,36,25,44],[81,21,81,26],[20,54,20,62],[70,54,70,62],[34,54,34,62],[25,21,25,25],[20,21,20,25],[20,45,20,53],[70,21,70,26],[70,27,70,35],[70,36,70,44],[47,9,47,20],[47,27,47,35],[47,36,47,44],[47,45,47,53],[49,9,49,20],[49,21,49,26],[49,27,49,35],[49,36,49,44],[49,45,49,53],[40,72,40,80],[45,72,45,80],[47,54,47,62],[47,63,47,71],[47,72,47,80],[62,63,62,71],[57,54,57,62],[49,72,49,80],[55,54,55,62],[55,63,55,71],[55,72,55,80],[62,72,62,80],[85,72,85,80],[83,72,83,80],[102,72,102,80],[102,54,102,62],[66,72,66,80],[72,72,72,80],[38,72,38,80],[29,72,29,80],[27,63,27,71],[29,63,29,71],[29,54,29,62],[27,54,27,62],[64,63,64,71],[57,72,57,80],[68,54,68,62],[68,63,68,71],[100,72,100,80],[91,72,91,80],[98,72,98,80],[100,54,100,62],[100,63,100,71],[102,63,102,71],[89,72,89,80],[68,72,68,80],[7,54,7,62],[7,63,7,71],[7,9,7,20],[7,27,7,35],[7,36,7,44],[7,45,7,53],[7,72,7,80],[7,21,7,26],[4,57,4,59],[4,62,4,80],[4,51,4,52],[4,12,4,25],[4,30,4,44],[4,47,4,49],[91,45,91,53],[93,54,93,62],[93,63,93,71],[87,36,87,44],[100,45,100,53],[91,63,91,71],[98,63,98,71],[89,54,89,62],[98,45,98,53],[91,36,91,44],[93,45,93,53],[87,72,87,80],[89,36,89,44],[89,45,89,53],[89,63,89,71],[87,27,87,35],[74,54,74,62],[74,63,74,71],[85,36,85,44],[72,36,72,44],[72,45,72,53],[83,54,83,62],[81,63,81,71],[76,54,76,62],[76,63,76,71],[72,54,72,62],[72,63,72,71],[85,27,85,35],[74,27,74,35],[74,36,74,44],[74,45,74,53],[85,45,85,53],[87,45,87,53],[83,27,83,35],[87,63,87,71],[36,9,36,20],[36,21,36,26],[36,27,36,35],[36,36,36,44],[36,45,36,53],[25,27,25,35],[20,27,20,35],[20,36,20,44],[25,45,25,53],[29,45,29,53],[27,45,27,53],[27,36,27,44],[29,36,29,44],[29,21,29,25],[27,21,27,25],[34,9,34,20],[34,21,34,26],[34,27,34,35],[34,36,34,44],[34,45,34,53],[29,27,29,35],[40,9,40,20],[40,21,40,26],[40,27,40,35],[40,36,40,44],[40,45,40,53],[45,9,45,20],[38,9,38,20],[38,21,38,26],[38,27,38,35],[38,36,38,44],[38,45,38,53],[45,27,45,35],[45,36,45,44],[45,45,45,53],[51,9,51,20],[55,9,55,20],[55,21,55,26],[55,27,55,35],[55,36,55,44],[55,45,55,53],[57,9,57,20],[57,21,57,26],[57,27,57,35],[57,36,57,44],[57,45,57,53],[62,1,65,8],[64,9,64,20],[64,21,64,26],[64,27,64,35],[64,36,64,44],[64,45,64,53],[62,27,62,35],[62,36,62,44],[62,45,62,53],[76,27,76,35],[76,36,76,44],[76,45,76,53],[72,27,72,35],[74,21,74,25],[72,9,72,20],[74,9,74,20],[72,21,72,26],[66,9,66,20],[66,21,66,26],[66,27,66,35],[66,36,66,44],[66,45,66,53],[68,9,68,20],[68,21,68,26],[68,27,68,35],[68,36,68,44],[68,45,68,53],[123,9,123,20],[150,21,150,25],[156,21,156,25],[158,21,158,25],[147,21,147,26],[129,9,129,20],[125,9,125,20],[125,21,125,25],[129,21,129,25],[127,9,127,20],[127,21,127,25],[130,9,130,20],[117,21,117,26],[102,21,102,26],[108,9,108,20],[108,21,108,26],[104,21,104,26],[116,9,116,20],[116,21,116,26],[119,9,119,20],[121,9,121,20],[91,21,91,26],[85,9,85,20],[87,9,87,20],[85,21,85,26],[87,21,87,26],[102,9,102,20],[178,32,178,35],[176,27,176,30],[176,32,176,35],[174,9,174,20],[106,9,106,20],[106,21,106,26],[110,21,110,26],[174,27,174,30],[174,32,174,35],[116,27,116,35],[131,9,131,20],[131,21,131,25],[152,27,152,35],[167,27,167,35],[163,27,163,35],[165,21,165,26],[114,9,114,20],[117,9,117,20],[219,1,219,7],[219,31,219,32],[207,38,207,41],[209,28,209,31],[211,28,211,31],[213,28,213,31],[215,28,215,31],[209,33,209,36],[211,33,211,36],[213,33,213,36],[215,33,215,36],[209,38,209,41],[211,38,211,41],[213,38,213,41],[230,31,230,47],[230,70,230,71],[207,28,207,31],[207,33,207,36],[139,21,139,25],[215,38,215,41],[141,9,141,20],[145,9,145,20],[206,28,206,41],[141,21,141,25],[222,31,222,32],[226,70,226,71],[228,31,228,47],[228,70,228,71],[215,54,215,58],[143,9,143,20],[145,21,145,25],[143,21,143,25],[206,54,206,78],[207,54,207,58],[176,9,176,20],[139,9,139,20],[163,78,163,79],[169,27,169,35],[226,1,228,7],[226,31,226,47],[150,1,156,8],[150,9,150,20],[18,27,18,35],[18,45,18,53],[18,36,18,44],[158,27,158,35],[154,27,154,35],[156,27,156,35],[158,9,158,20],[156,9,156,20],[161,9,161,20],[174,1,176,7],[139,1,141,7],[180,21,180,26],[119,1,121,8],[189,1,191,7],[134,1,137,8],[161,1,163,8],[119,21,119,25],[121,21,121,25],[123,21,123,25],[193,9,193,20],[18,72,18,80],[18,63,18,71],[18,54,18,62],[110,9,110,20],[114,27,114,35],[114,36,114,44],[112,21,112,26],[114,21,114,26],[112,27,112,35],[98,9,98,20],[98,21,98,26],[91,27,91,35],[89,27,89,35],[112,9,112,20],[100,9,100,20],[100,21,100,26],[70,9,70,20],[76,9,76,20],[76,21,76,26],[83,9,83,20],[83,21,83,26],[89,21,89,26],[93,21,93,26],[93,9,93,20],[195,9,195,20],[189,9,189,20],[189,21,189,26],[189,27,189,35],[191,9,191,20],[167,21,167,26],[169,21,169,26],[171,27,171,35],[171,21,171,26],[195,21,195,26],[193,32,193,35],[195,27,195,30],[195,32,195,35],[191,21,191,26],[191,27,191,35],[180,9,180,20],[193,27,193,30],[197,32,197,35],[197,27,197,30],[199,27,199,30],[199,32,199,35],[201,32,201,35],[201,27,201,30],[165,27,165,35],[163,21,163,26],[182,21,182,26],[197,21,197,26],[199,21,199,26],[201,21,201,26]]}
[null,null,null,null,null,null,null,null,null,"Sprinkleranlage "]
[null,null,null,null,null,null,null,null,null,"Technische Daten"]
[]
[]
[null,null,null,null,null,null,null,null,null,"Objekt",null,null,{"$f":"'Allgemeine Daten'!$Q$5","v":0},null,null,null,null,null,null,null,null,null,null,null,null,null,null,"Strasse",null,null,{"$f":"'Allgemeine Daten'!Q7","v":0},null,null,null,null,null,null,null,null,null,null,null,null,null,null,null,null,null,null,null,null,null,null,null,null,"PLZ",null,{"$f":"'Allgemeine Daten'!AH9","v":0},null,null,"Ort",null,{"$f":"'Allgemeine Daten'!Q9","v":0}]
[]
[]
["1.","Auslegung ",null,null,null,null,null,null,null,"Bereich/Geschoss",null,null,null,null,null,null,null,null,null,null,null,"Masseinheit"]
[]
[]
[null,null,null,null,null,null,null,null,null,"Geschütze Gebäudehöhe",null,null,null,null,null,null,null,null,null,null,null,"m"]
[]
[null,null,null,null,null,null,null,null,null,"Bereichsfläche",null,null,null,null,null,null,null,null,null,null,null,"m2"]
[]
[null,null,null,null,null,null,null,null,null,"Raumhöhe",null,null,null,null,null,null,null,null,null,null,null,"m"]
[]
[null,null,null,null,null,null,null,null,null,"Frostgefahr",null,null,null,null,null,null,null,null,null,null,null,null,null,null,null,null,null,null,null,"ja",null,null,null,"nein",null,null,null,null,"ja",null,null,null,"nein",null,null,null,null,"ja",null,null,null,"nein",null,null,null,null,"ja",null,null,null,"nein",null,null,null,null,"ja",null,null,null,"nein",null,null,null,null,"ja",null,null,null,"nein"]
[]
[null,null,null,null,null,null,null,null,null,"Systemart"]
[]
[null,null,null,null,null,null,null,null,null,"RTI-Wert",null,null,null,null,null,null,null,null,null,null,null,"m1/2   s1/2"]
[]
[]
[null,null,null,null,null,null,null,null,null,"a.","Zellenbauweise"]
[]
[null,null,null,null,null,null,null,null,null,"Max. Raumgrösse",null,null,null,null,null,null,null,null,null,null,null,"m2"]
[]
[null,null,null,null,null,null,null,null,null,"Brandbelastung",null,null,null,null,null,null,null,null,null,null,null,"MJ / m2"]
[]
[null,null,null,null,null,null,null,null,null,">>Brandgefahr",null,null,null,null,null,null,null,null,null,null,null,"BG"]
[]
[]
[null,null,null,null,null,null,null,null,null,"b.","Betrieb"]
[]
[null,null,null,null,null,null,null,null,null,"Brandbelastung",null,null,null,null,null,null,null,null,null,null,null,"MJ / m2"]
[]
[null,null,null,null,null,null,null,null,null,"Brennbarkeit",null,null,null,null,null,null,null,null,null,null,null,"F"]
[]
[null,null,null,null,null,null,null,null,null,"Warenkategorie",null,null,null,null,null,null,null,null,null,null,null,"WK"]
[]
[null,null,null,null,null,null,null,null,null,">>Brandgefahr",null,null,null,null,null,null,null,null,null,null,null,"BG"]
[]
[]
[null,null,null,null,null,null,null,null,null,"c.","Lager"]
[]
[null,null,null,null,null,null,null,null,null,"Lagermaterial"]
[]
[null,null,null,null,null,null,null,null,null,"Verpackung"]
[]
[null,null,null,null,null,null,null,null,null,">>Warenkategorie",null,null,null,null,null,null,null,null,null,null,null,"WK"]
[]
[null,null,null,null,null,null,null,null,null,"Lagerart",null,null,null,null,null,null,null,null,null,null,null,null,null,null,null,null,null,null,null,"A",null,null,"B",null,null,"C",null,null,"A",null,null,"B",null,null,"C",null,null,"A",null,null,"B",null,null,"C",null,null,"A",null,null,"B",null,null,"C",null,null,"A",null,null,"B",null,null,"C",null,null,"A",null,null,"B",null,null,"C"]
[]
[null,null,null,null,null,null,null,null,null,null,null,null,null,null,null,null,null,null,null,null,null,null,null,null,null,null,null,null,null,"Fächerlager",null,null,null,null,null,null,null,null,"Fächerlager",null,null,null,null,null,null,null,null,"Fächerlager",null,null,null,null,null,null,null,null,"Fächerlager",null,null,null,null,null,null,null,null,"Fächerlager",null,null,null,null,null,null,null,null,"Fächerlager"]
[]
[null,null,null,null,null,null,null,null,null,"Stapelhöhe hS",null,null,null,null,null,null,null,null,null,null,null,"m"]
[]
[null,null,null,null,null,null,null,null,null,">>Brandgefahr Decke",null,null,null,null,null,null,null,null,null,null,null,"BG"]
[]
[]
[]
[]
["2.","Massgebender Wasser- und Druckbedarf",null,null,null,null,null,null,null,"a.","Deckensprinkler",null,null,null,null,null,null,null,null,null,null,null,null,null,null,null,null,{"$f":"AB8","v":0},null,null,null,null,null,null,null,null,{"$f":"AK8","v":0},null,null,null,null,null,null,null,null,{"$f":"AT8","v":0},null,null,null,null,null,null,null,null,{"$f":"BC8","v":0},null,null,null,null,null,null,null,null,{"$f":"BL8","v":0},null,null,null,null,null,null,null,null,{"$f":"BU8","v":0}]
[]
[null,null,null,null,null,null,null,null,null,"Spez. Wasserleistung (Qs)",null,null,null,null,null,null,null,null,null,null,null,"l/min m2"]
[]
[null,null,null,null,null,null,null,null,null,"Wirkfläche (AW)",null,null,null,null,null,null,null,null,null,null,null,"m2"]
[]
[null,null,null,null,null,null,null,null,null,"Wirkflächenanpassung (AWA)",null,null,null,null,null,null,null,null,null,null,null,"m2"]
[]
[null,null,null,null,null,null,null,null,null,"Nenndurchfluss total (QND)",null,null,null,null,null,null,null,null,null,null,null,"l/min",null,null,null,null,null,{"$f":"IF(AB69=0,AB65*AB67,AB65*AB69)","v":0},null,null,null,null,null,null,null,null,{"$f":"IF(AK69=0,AK65*AK67,AK65*AK69)","v":0},null,null,null,null,null,null,null,null,{"$f":"IF(AT69=0,AT65*AT67,AT65*AT69)","v":0},null,null,null,null,null,null,null,null,{"$f":"IF(BC69=0,BC65*BC67,BC65*BC69)","v":0},null,null,null,null,null,null,null,null,{"$f":"IF(BL69=0,BL65*BL67,BL65*BL69)","v":0},null,null,null,null,null,null,null,null,{"$f":"IF(BU69=0,BU65*BU67,BU65*BU69)","v":0}]
[]
[null,null,null,null,null,null,null,null,null,"Trockenanlage Netzvolumen",null,null,null,null,null,null,null,null,null,null,null,"m3"]
[]
[null,null,null,null,null,null,null,null,null,"Trockenanlage Flutungszeit berechnet",null,null,null,null,null,null,null,null,null,null,null,"s"]
[]
[null,null,null,null,null,null,null,null,null,"Trockenanlage max. Ausströmzeit",null,null,null,null,null,null,null,null,null,null,null,"s"]
[]
[]
[null,null,null,null,null,null,null,null,null,"b.","Regalsprinkler"]
[]
[null,null,null,null,null,null,null,null,null,"Anzahl ZE im Regal",null,null,null,null,null,null,null,null,null,null,null,"nZEtot"]
[]
[null,null,null,null,null,null,null,null,null,"Anzurechnende ZE",null,null,null,null,null,null,null,null,null,null,null,"nZE"]
[]
[null,null,null,null,null,null,null,null,null,"Anzurechnende ZE BG R1",null,null,null,null,null,null,null,null,null,null,null,"Stück"]
[]
[null,null,null,null,null,null,null,null,null,"Anzurechnende ZE BG R2",null,null,null,null,null,null,null,null,null,null,null,"Stück"]
[]
[null,null,null,null,null,null,null,null,null,"Anzahl Rohre pro ZE",null,null,null,null,null,null,null,null,null,null,null,"Stück"]
[]
[null,null,null,null,null,null,null,null,null,"Öffnende Sprinkler pro Strang",null,null,null,null,null,null,null,null,null,null,null,"Stück"]
[]
[null,null,null,null,null,null,null,null,null,"Nenndurchfluss Regal total (QNR)",null,null,null,null,null,null,null,null,null,null,null,"l/min",null,null,null,null,null,{"$f":"(AB86*AB90*60*AB92)+(AB88*AB90*80*AB92)","v":0},null,null,null,null,null,null,null,null,{"$f":"(AK86*AK90*60*AK92)+(AK88*AK90*80*AK92)","v":0},null,null,null,null,null,null,null,null,{"$f":"(AT86*AT90*60*AT92)+(AT88*AT90*80*AT92)","v":0},null,null,null,null,null,null,null,null,{"$f":"(BC86*BC90*60*BC92)+(BC88*BC90*80*BC92)","v":0},null,null,null,null,null,null,null,null,{"$f":"(BL86*BL90*60*BL92)+(BL88*BL90*80*BL92)","v":0},null,null,null,null,null,null,null,null,{"$f":"(BU86*BU90*60*BU92)+(BU88*BU90*80*BU92)","v":0}]
[]
[]
[null,null,null,null,null,null,null,null,null,"c.","Wasser- und Druckbedarf"]
[]
[null,null,null,null,null,null,null,null,null,"Nenndurchfluss theoretisch (QN)",null,null,null,null,null,null,null,null,null,null,null,"l/min",null,null,null,null,null,{"$f":"AB71+AB94","v":0},null,null,null,null,null,null,null,null,{"$f":"AK71+AK94","v":0},null,null,null,null,null,null,null,null,{"$f":"AT71+AT94","v":0},null,null,null,null,null,null,null,null,{"$f":"BC71+BC94","v":0},null,null,null,null,null,null,null,null,{"$f":"BL71+BL94","v":0},null,null,null,null,null,null,null,null,{"$f":"BU71+BU94","v":0}]
[]
[null,null,null,null,null,null,null,null,null,"Unförmigkeit 20%",null,null,null,null,null,null,null,null,null,null,null,"l/min",null,null,null,null,null,{"$f":"AB99*20%","v":0},null,null,null,null,null,null,null,null,{"$f":"AK99*20%","v":0},null,null,null,null,null,null,null,null,{"$f":"AT99*20%","v":0},null,null,null,null,null,null,null,null,{"$f":"BC99*20%","v":0},null,null,null,null,null,null,null,null,{"$f":"BL99*20%","v":0},null,null,null,null,null,null,null,null,{"$f":"BU99*20%","v":0}]
[]
[null,null,null,null,null,null,null,null,null,"Nenndurchfluss (QN120%)",null,null,null,null,null,null,null,null,null,null,null,"l/min",null,null,null,null,null,{"$f":"AB99+AB101","v":0},null,null,null,null,null,null,null,null,{"$f":"AK99+AK101","v":0},null,null,null,null,null,null,null,null,{"$f":"AT99+AT101","v":0},null,null,null,null,null,null,null,null,{"$f":"BC99+BC101","v":0},null,null,null,null,null,null,null,null,{"$f":"BL99+BL101","v":0},null,null,null,null,null,null,null,null,{"$f":"BU99+BU101","v":0}]
[]
[null,null,null,null,null,null,null,null,null,"Wasserbedarf effektiv (QCA)",null,null,null,null,null,null,null,null,null,null,null,"l/min"]
[]
[null,null,null,null,null,null,null,null,null,"Feuerwehrbedarf (QF)",null,null,null,null,null,null,null,null,null,null,null,"l/min"]
[]
[null,null,null,null,null,null,null,null,null,"Bedarf andere Zwecke (QD)",null,null,null,null,null,null,null,null,null,null,null,"l/min"]
[]
[null,null,null,null,null,null,null,null,null,"Durchfluss total (Qtot)",null,null,null,null,null,null,null,null,null,null,null," l/min",null,null,null,null,null,{"$f":"IF(AB105=0,AB103+AB107+AB109,AB105+AB107+AB109)","v":0},null,null,null,null,null,null,null,null,{"$f":"IF(AK105=0,AK103+AK107+AK109,AK105+AK107+AK109)","v":0},null,null,null,null,null,null,null,null,{"$f":"IF(AT105=0,AT103+AT107+AT109,AT105+AT107+AT109)","v":0},null,null,null,null,null,null,null,null,{"$f":"IF(BC105=0,BC103+BC107+BC109,BC105+BC107+BC109)","v":0},null,null,null,null,null,null,null,null,{"$f":"IF(BL105=0,BL103+BL107+BL109,BL105+BL107+BL109)","v":0},null,null,null,null,null,null,null,null,{"$f":"IF(BU105=0,BU103+BU107+BU109,BU105+BU107+BU109)","v":0}]
[]
[null,null,null,null,null,null,null,null,null,"Druckbedarf p bei Qtot",null,null,null,null,null,null,null,null,null,null,null,"bar"]
[]
[null,null,null,null,null,null,null,null,null,"Nennwirkzeit ",null,null,null,null,null,null,null,null,null,null,null,"min"]
[]
[null,null,null,null,null,null,null,null,null,"Erforderliche Löschwasservolumen",null,null,null,null,null,null,null,null,null,null,null,"m3",null,null,null,null,null,{"$f":"AB105/1000*AB115","v":0},null,null,null,null,null,null,null,null,{"$f":"AK105/1000*AK115","v":0},null,null,null,null,null,null,null,null,{"$f":"AT105/1000*AT115","v":0},null,null,null,null,null,null,null,null,{"$f":"BC105/1000*BC115","v":0},null,null,null,null,null,null,null,null,{"$f":"BL105/1000*BL115","v":0},null,null,null,null,null,null,null,null,{"$f":"BU105/1000*BU115","v":0}]
[null,null,null,null,null,null,null,null,null,"Erforderliche Löschwasservolumen",null,null,null,null,null,null,null,null,null,null,null,"m3",null,null,null,null,null,{"$f":"AB111/1000*AB115","v":0},null,null,null,null,null,null,null,null,{"$f":"AK111/1000*AK115","v":0},null,null,null,null,null,null,null,null,{"$f":"AT111/1000*AT115","v":0},null,null,null,null,null,null,null,null,{"$f":"BC111/1000*BC115","v":0},null,null,null,null,null,null,null,null,{"$f":"BL111/1000*BL115","v":0},null,null,null,null,null,null,null,null,{"$f":"BU111/1000*BU115","v":0}]
[]
["3.","Schaummittel",null,null,null,null,null,null,null,"Zumischsystem"]
[]
[null,null,null,null,null,null,null,null,null,"Schaummittel Hersteller",null,null,null,null,null,null,null,null,null,null,null,null,null,null,null,null,null,null,null,null,null,null,null,null,null,null,null,null,"Produktbezeichnung",null,null,null,null,null,null,null,null,null,null,null,null,null,null,null,null,null,null,null,"Alkoholbeständig"]
[]
[null,null,null,null,null,null,null,null,null,"Wasserbedarf effektiv (QCA)",null,null,null,null,null,null,null,null,null,null,null,"l/min"]
[]
[null,null,null,null,null,null,null,null,null,"Zumischrate",null,null,null,null,null,null,null,null,null,null,null,"%"]
[]
[null,null,null,null,null,null,null,null,null,"Nennwirkzeit",null,null,null,null,null,null,null,null,null,null,null,"min"]
[]
[null,null,null,null,null,null,null,null,null,"Schaummittelbevoratung",null,null,null,null,null,null,null,null,null,null,null,"Liter",null,null,null,null,null,{"$f":"(AB124/100)*AB126*AB128*1.2","v":0}]
[]
[null,null,null,null,null,null,null,null,null,"Vorratsbehälter",null,null,null,null,null,null,null,null,null,null,null,"Liter"]
[]
[]
["4.","Zuverlässigkeit der Wasserversorgung",null,null,null,null,null,null,null,null,null,null,null,null,null,null,null,null,null,null,null,null,null,null,null,null," -",null,null,"genügend (QS Stufe 1)",null,null,null,null,null,null,null,null,null,"gut (QS Stufe 2)",null,null,null,null,null,null,null,null,null,"sehr gut (QS Stufe 3)",null,null,null,null,null,null,null,null,null,"sehr gut (QS Stufe 4)"]
[]
[]
[]
[]
["5.","Wasserversorgung\nLeistungsdaten",null,null,null,null,null,null,null,"Wassermessung / Berechnung vom",null,null,null,null,null,null,null,null,null,null,null,"Datum",null,null,null,null,null,null,null,null,null,null,null,null,null,null,null,null,"durch"]
[]
[null,null,null,null,null,null,null,null,null,"Statischer Druck",null,null,null,null,null,null,null,null,null,null,null,"p stat",null,null,null,null,null,null,null,null,null,null,null,null,null,null,null,null,null,"im Hydrantennetz",null,null,null,null,null,null,null,null,null,"im Nachbargebäude",null,null,null,null,null,null,null,null,null,"Angaben durch Wasserversorgung"]
[]
[null,null,null,null,null,null,null,null,null,"Wassermenge",null,null,null,null,null,null,null,null,null,null,null,"Q Messung",null,null,null,null,null,null,null,null,null,null,null,null,null,null,null,null,null,"in der Sprinklerzentrale",null,null,null,null,null,null,null,null,null,"Hydraulisch berechnet"]
[]
[null,null,null,null,null,null,null,null,null,"Dynamischer Druck",null,null,null,null,null,null,null,null,null,null,null,"p dyn"]
[]
[null,null,null,null,null,null,null,null,null,"Öffentliches Löschwasservolumen *",null,null,null,null,null,null,null,null,null,null,null,"m3",null,null,null,null,null,null,null,null,null,null,null,null,null,null,null,null,"* Nachlauf und Zuschaltungen können berücksichtigt werden"]
[]
[]
["6.","Wasserversorgung Bedarf Öffentlich",null,null,null,null,null,null,null,"Erforderliche Löschwasservolumen",null,null,null,null,null,null,null,null,null,null,null,"m3",null,null,null,null,null,{"$f":"MAX(AA118:CB118)","v":0}]
[]
[null,null,null,null,null,null,null,null,null,"Differenz erforderlichem Löschwasser",null,null,null,null,null,null,null,null,null,null,null,"m3",null,null,null,null,null,{"$f":"AB148-MAX(AB118:CC118)","v":0}]
[]
[null,null,null,null,null,null,null,null,null,"Durchfluss Hauszuleitung",null,null,null,null,null,null,null,null,null,null,null," l/min"]
[]
[null,null,null,null,null,null,null,null,null,"Zuleitung Dinnen",null,null,null,null,null,null,null,null,null,null,null,"mm"]
[]
[null,null,null,null,null,null,null,null,null,"Fliessgeschwindigkeit vZuleitung",null,null,null,null,null,null,null,null,null,null,null,"m/s",null,null,null,null,null,{"$f":"IF(ISBLANK(AB157),\"\",(AB155/60/((AB157/2)*(AB157/2)/100)*3.14159265359))","v":""}]
[]
[]
["7.","Wasserversorgung Betriebsintern",null,null,null,null,null,null,null,"Bevorratung",null,null,null,null,null,null,null,null,null,null,null,null,null,null,null,null,null,null,"-","mit Zwischenbehälter ",null,null,null,null,null,null,null,null,"-","100% des Löschwassers",null,null,null,null,null,null,null,null,null,"Sicherheitsstromversorgung gemäss VKF BSR 17-15 vorhanden"]
[]
[null,null,null,null,null,null,null,null,null,"Garantierte Nachspeisung",null,null,null,null,null,null,null,null,null,null,null," l/min",null,null,null,null,null,{"$f":"IF((AC162=\"x\"),AB155,0)","v":0}]
[]
[null,null,null,null,null,null,null,null,null,"Zuleitung Dinnen",null,null,null,null,null,null,null,null,null,null,null,"mm",null,null,null,null,null,{"$f":"IF((AC162=\"x\"),AB157,0)","v":0}]
[]
[null,null,null,null,null,null,null,null,null,"Volumen Nachspeisung",null,null,null,null,null,null,null,null,null,null,null,"m3",null,null,null,null,null,0]
[]
[null,null,null,null,null,null,null,null,null,"Löschwasserbehälter Nutzvolumen Vres",null,null,null,null,null,null,null,null,null,null,null,"m3"]
[]
[null,null,null,null,null,null,null,null,null,"Differernz Löschwasserbedarf",null,null,null,null,null,null,null,null,null,null,null,"m3",null,null,null,null,null,{"$f":"IF(AB153>-1,0,((AB168+AB170)-MAX(AA118:CC118)))","v":0}]
[]
[null,null,null,null,null,null,null,null,null,null,null,null,null,null,null,null,null,null,null,null,null,null,null,null,null,null,"Elektropumpe 1"]
[null,"Löschwasserpumpe",null,null,null,null,null,null,null,"Typ"]
[]
[null,null,null,null,null,null,null,null,null,"Einschaltdruck* [bar]",null,null,null,null,null,null,null,null,null,null,null,"bar"]
[]
[null,null,null,null,null,null,null,null,null,"Nullförderdruck* [bar]",null,null,null,null,null,null,null,null,null,null,null,"bar",null,null,null,null,null,null,null,null,null,null,null,null,null,null,null,null,null,null,null,null,null,null,null,null,"F",null,"F",null,null,null,null,null,null,null,null,null,null,null,null,null,null,null,"F"]
[]
[null,null,null,null,null,null,null,null,null,"Referenzdruck* [bar]",null,null,null,null,null,null,null,null,null,null,null,"bar"]
[]
[null,null,null,null,null,null,null,null,null,"Referenzdurchfluss* [l/min]",null,null,null,null,null,null,null,null,null,null,null," l/min"]
[]
[null,null,null,null,null,null,null,null,null,"*Angaben dienen für den monatlichen Nachweis der Betriebstüchtigkeit. Wird nach dem austesten der Pumpenanlage ausgefüllt."]
[]
[null,null,null,null,null,null,null,null,null,null,null,null,null,null,null,null,null,null,null,null,null,null,null,null,null,null,null,"A","Sicherheitsstromversorgung",null,null,null,null,null,null,null,null,"B","elektrische Netzeinspeisung",null,null,null,null,null,null,null,null,"C","Verbrennungsmotor Diesel",null,null,null,null,null,null,null,null,"D","Zweiteinspeisung, Notstrom",null,null,null,null,null,null,null,null,"E","Elektromotor",null,null,null,null,"F","Steuerschrank"]
[]
[null,null,null,null,null,null,null,null,null,null,null,null,null,null,null,null,null,null,null,null,null,null,null,null,null,null,"Elektropumpe 1"]
[null,"Druckerhöhungs-\npumpe",null,null,null,null,null,null,null,"Durchfluss total 75% (Qca)",null,null,null,null,null,null,null,null,null,null,null," l/min",null,null,null,null,null,null,null,null,null,null,null,null,null,null,null,null,null,"75% der Wasserleistung durch öffentliche WV gedeckt",null,null,null,null,null,null,null,null,null,null,null,null,null,null,null,null,null,null,null,"Druckerhöhungsanlage redundant"]
[]
[null,null,null,null,null,null,null,null,null,"Druckbedarf p bei Qca 75%",null,null,null,null,null,null,null,null,null,null,null,"bar"]
[]
[null,null,null,null,null,null,null,null,null,"Typ",null,null,null,null,null,null,null,null,null,null,null,null,null,null,null,null,"Elektropumpe 1"]
[]
[null,null,null,null,null,null,null,null,null,"Einschaltdruck* [bar]",null,null,null,null,null,null,null,null,null,null,null,"bar"]
[]
[null,null,null,null,null,null,null,null,null,"Nullförderdruck* [bar]",null,null,null,null,null,null,null,null,null,null,null,"bar",null,null,null,null,null,null,null,null,null,null,null,null,null,null,null,null,null,null,null,null,null,null,null,null,"F",null,"F",null,null,null,null,null,null,null,null,null,null,null,null,null,null,null,"F"]
[]
[null,null,null,null,null,null,null,null,null,"Referenzdruck* [bar]",null,null,null,null,null,null,null,null,null,null,null,"bar"]
[]
[null,null,null,null,null,null,null,null,null,"Referenzdurchfluss* [l/min]",null,null,null,null,null,null,null,null,null,null,null," l/min"]
[]
[]
[]
[]
["8.","Anlagedaten",null,null,null,null,null,null,null,null,null,null,null,null,null,null,null,null,null,null,null,null,null,null,null,null,null,null,"Alarmventile",null,null,null,null,null,null,null,null,null,null,null,null,null,null,null,null,null,null,null,null,null,null,null,null,null,"Sprinkler"]
[null,null,null,null,null,null,null,null,null,null,null,null,null,null,null,null,null,null,null,null,null,null,null,null,null,null,null,null,"Anzahl",null,null,null,null,"DN",null,null,null,null,"TYP",null,null,null,null,null,null,null,null,null,null,null,null,null,null,null,"Anzahl",null,null,null,null,null,"RTI",null,null,null,null,"C°",null,null,null,null,"k-Faktor",null,null,null,null,"Typ"]
[]
[]
[]
[]
[]
[]
[]
[]
[]
[]
[]
["9.","Strömungsmelder",null,null,null,null,null,null,null,null,null,null,null,null,null,null,null,null,null,null,null,null,null,null,null,null,null,null,"Anzahl",null,null," -",null,null,"Funktionstest durchgeführt mit",null,null,null,null,null,null,null,null,null,"Zonencheck",null,null,null," -",null,null,"1/2\"-Prüfhahn",null,null,null,null,null,null,null,"Anzeige BMA-BS korrekt ",null,null,null,null,null,null,null,null,null,"ja",null,null,"nein"]
[]
[]
["10.","Absperrorgane ausserhalb SPZ",null,null,null,null,null,null,null,null,null,null,null,null,null,null,null,null,null,null,null,null,null,null,null,null,null,null,"Anzahl",null,null,null,null,null,null,null,null,null,null,null,null,null,null,null,null,null,null,null,null,null,null,null,null,null,null,null,null,null,null,"Anzeige BMA-BS korrekt ",null,null,null,null,null,null,null,null,null,"ja",null,null,"nein"]
[]
[]
[]
["11.","Flutungszeiten Trockenanlagen",null,null,null,null,null,null,null,null,null,null,null,null,null,null,null,null,null,null,null,null,null,null,null,null,null,null,"Bereich*",null,null,null,null,null,null,null,null,null,null,null,null,null,null,null,null,null,null,null,null,"Flutungszeit gemessen (falls Volumen >1.5m3 bzw. nicht berechnet)",null,null,null,null,null,null,null,null,null,null,null,null,null,null,null,null,null,null,null,null,null,null,"s"]
[]
[null,null,null,null,null,null,null,null,null,null,null,null,null,null,null,null,null,null,null,null,null,null,null,null,null,null,null,null,"Bereich*",null,null,null,null,null,null,null,null,null,null,null,null,null,null,null,null,null,null,null,null,"Flutungszeit gemessen (falls Volumen >1.5m3 bzw. nicht berechnet)",null,null,null,null,null,null,null,null,null,null,null,null,null,null,null,null,null,null,null,null,null,null,"s"]
[]
[null,null,null,null,null,null,null,null,null,null,null,null,null,null,null,null,null,null,null,null,null,null,null,null,null,null,null,null,"Bereich*",null,null,null,null,null,null,null,null,null,null,null,null,null,null,null,null,null,null,null,null,"Flutungszeit gemessen (falls Volumen >1.5m3 bzw. nicht berechnet)",null,null,null,null,null,null,null,null,null,null,null,null,null,null,null,null,null,null,null,null,null,null,"s"]
[]
[null,null,null,null,null,null,null,null,null,null,null,null,null,null,null,null,null,null,null,null,null,null,null,null,null,null,null,null,null,null,null,"* Sofern keine hydraulische Berechnung vorliegt"]

{"sheet":"Vorabklärung","index":2,"n_rows":301,"n_cols":50,"rows_kept":301,"cut":false,"hidden":false,"merged":[[245,9,245,16],[4,1,7,7],[4,41,4,51],[6,16,6,28],[6,33,6,35],[6,41,6,51],[8,16,8,28],[8,33,8,35],[8,41,8,51],[121,1,123,7],[121,16,121,19],[121,25,121,28],[123,16,123,19],[123,25,123,28],[37,1,39,7],[39,16,39,29],[39,33,39,35],[25,1,25,7],[226,9,226,16],[219,33,219,41],[219,42,219,50],[219,17,219,23],[224,17,224,23],[224,24,224,32],[255,24,255,32],[255,33,255,41],[255,42,255,50],[237,9,237,16],[237,17,237,23],[237,24,237,32],[237,33,237,41],[237,42,237,50],[249,42,249,50],[241,17,241,23],[247,33,247,41],[247,42,247,50],[247,17,247,23],[239,24,239,32],[239,33,239,41],[245,24,245,32],[245,33,245,41],[245,42,245,50],[239,17,239,23],[243,17,243,23],[245,17,245,23],[253,24,253,32],[253,33,253,41],[253,42,253,50],[298,1,298,22],[265,1,267,7],[290,1,291,22],[284,10,284,26],[280,29,284,50],[280,10,280,26],[282,10,282,26],[275,28,275,51],[277,28,277,51],[294,17,294,22],[294,1,294,15],[247,9,247,16],[213,9,213,16],[217,9,217,16],[217,33,217,41],[219,9,219,16],[230,9,230,16],[230,17,230,23],[230,24,230,32],[230,42,230,50],[230,33,230,41],[215,17,215,23],[215,24,215,32],[215,33,215,41],[228,17,228,23],[217,42,217,50],[217,17,217,23],[217,24,217,32],[224,9,224,16],[232,9,232,16],[232,17,232,23],[232,24,232,32],[232,33,232,41],[243,9,243,16],[239,9,239,16],[187,9,187,16],[189,33,189,41],[189,42,189,50],[191,9,191,16],[187,17,187,23],[187,24,187,32],[219,24,219,32],[202,42,202,50],[208,42,208,50],[200,33,200,41],[200,42,200,50],[193,9,193,16],[193,17,193,23],[171,0,185,0],[180,17,180,23],[180,24,180,32],[180,33,180,41],[212,9,212,16],[212,17,212,23],[212,24,212,32],[202,9,202,16],[202,17,202,23],[202,24,202,32],[202,33,202,41],[204,9,204,16],[208,9,208,16],[208,17,208,23],[208,24,208,32],[208,33,208,41],[210,9,210,16],[210,17,210,23],[180,9,180,16],[189,9,189,16],[193,24,193,32],[193,33,193,41],[189,24,189,32],[200,9,200,16],[49,1,51,7],[49,16,49,29],[51,16,51,29],[51,33,51,35],[49,41,49,51],[51,41,51,51],[62,1,64,7],[62,16,62,29],[64,16,64,29],[64,33,64,35],[64,41,64,50],[62,41,62,50],[58,41,58,51],[53,41,53,51],[56,41,56,51],[53,16,53,29],[53,33,53,35],[56,16,56,29],[58,16,58,29],[81,16,81,29],[46,41,46,51],[41,16,41,29],[41,33,41,35],[46,16,46,29],[37,16,37,29],[37,41,37,51],[39,41,39,51],[41,41,41,51],[44,41,44,51],[78,16,78,29],[78,33,78,35],[78,41,78,50],[29,41,29,51],[34,41,34,51],[44,16,44,29],[13,16,13,29],[15,16,15,29],[15,33,15,35],[17,16,17,29],[17,33,17,35],[20,16,20,29],[22,16,22,29],[22,41,22,51],[34,16,34,29],[27,41,27,51],[25,16,25,29],[27,16,27,29],[27,33,27,35],[29,16,29,29],[29,33,29,35],[32,16,32,29],[13,1,16,7],[15,41,15,51],[17,41,17,51],[66,16,66,29],[66,33,66,35],[83,16,83,29],[83,41,83,50],[95,41,95,50],[66,41,66,50],[69,16,69,29],[69,35,69,40],[69,41,69,50],[88,41,88,50],[90,16,90,29],[90,33,90,35],[90,41,90,50],[93,16,93,29],[71,16,71,29],[71,41,71,50],[74,1,76,7],[74,16,74,29],[76,16,76,29],[76,33,76,35],[76,41,76,50],[95,16,95,29],[182,9,182,16],[182,17,182,23],[182,24,182,32],[178,9,178,16],[178,17,178,23],[178,24,178,32],[187,42,187,50],[86,1,88,7],[86,16,86,29],[88,16,88,29],[88,33,88,35],[180,42,180,50],[135,1,137,7],[149,22,149,51],[147,22,147,51],[187,33,187,41],[157,34,157,51],[159,34,159,51],[167,17,167,23],[165,17,165,23],[165,24,165,32],[165,33,165,41],[165,42,165,50],[98,1,100,7],[98,16,98,29],[100,16,100,29],[100,33,100,35],[100,41,100,50],[102,16,102,29],[102,33,102,35],[102,41,102,50],[152,1,152,7],[105,16,105,29],[107,16,107,29],[107,41,107,50],[116,1,116,7],[111,16,113,51],[125,16,125,51],[132,16,132,32],[139,22,139,51],[141,22,141,51],[143,22,143,51],[145,22,145,51],[109,1,112,7],[167,24,167,32],[167,33,167,41],[167,42,167,50],[182,33,182,41],[182,42,182,50],[184,24,184,32],[241,24,241,32],[200,24,200,32],[189,17,189,23],[224,42,224,50],[193,42,193,50],[239,42,239,50],[226,33,226,41],[226,42,226,50],[232,42,232,50],[224,33,224,41],[228,24,228,32],[228,33,228,41],[228,42,228,50],[226,17,226,23],[226,24,226,32],[251,24,251,32],[251,33,251,41],[251,42,251,50],[178,33,178,41],[178,42,178,50],[173,17,173,23],[173,24,173,32],[173,33,173,41],[173,42,173,50],[249,24,249,32],[249,33,249,41],[243,24,243,32],[243,33,243,41],[243,42,243,50],[247,24,247,32],[10,41,10,51],[4,16,4,35],[258,9,262,51],[302,1,307,22],[191,17,191,23],[191,24,191,32],[191,33,191,41],[191,42,191,50],[215,9,215,16],[210,24,210,32],[210,33,210,41],[210,42,210,50],[212,33,212,41],[212,42,212,50],[213,17,213,23],[213,24,213,32],[213,33,213,41],[213,42,213,50],[215,42,215,50],[198,24,198,32],[198,33,198,41],[198,42,198,50],[155,1,155,8],[198,9,198,16]]}
[null,null,null,null,null,null,null,null,null,"Sprinkleranlage "]
[null,null,null,null,null,null,null,null,null,"Vorabklärung Sprinkleranlagen  Ziffer 5.1 Abs. 1 BSR 19-19"]
[]
[]
["1.","Geschütztes              Gebäude",null,null,null,null,null,null,null,"Objekt",null,null,null,null,null,null,{"$f":"'Allgemeine Daten'!Q5:AJ5","v":0},null,null,null,null,null,null,null,null,null,null,null,null,null,null,null,null,null,null,null,null,"Vers.- Nr.",null,null,null,{"$f":"'Allgemeine Daten'!AP5:AZ5","v":0}]
[]
[null,null,null,null,null,null,null,null,null,"Strasse",null,null,null,null,null,null,{"$f":"'Allgemeine Daten'!Q7:AC7","v":0},null,null,null,null,null,null,null,null,null,null,null,null,null,null,"Nr.",null,{"$f":"'Allgemeine Daten'!AH7:AJ7","v":0},null,null,null,"Anlage Nr.",null,null,null,{"$f":"'Allgemeine Daten'!AP7:AZ7","v":0}]
[]
[null,null,null,null,null,null,null,null,null,"Ort",null,null,null,null,null,null,{"$f":"'Allgemeine Daten'!Q9:AC9","v":0},null,null,null,null,null,null,null,null,null,null,null,null,null,null,"PLZ",null,{"$f":"'Allgemeine Daten'!AH9:AJ9","v":0},null,null,null,"Kataster Nr.",null,null,null,{"$f":"'Allgemeine Daten'!AP9:AZ9","v":0}]
[]
[null,null,null,null,null,null,null,null,null,"Qualitätssicherungsstufe ",null,null,null,null,null,null,null," QSS",null,{"$f":"'Allgemeine Daten'!S11","v":" -"},null,null,null,null,null,null,{"$f":"'Allgemeine Daten'!AB11","v":0},null,null,null,null,null,{"$f":"'Allgemeine Daten'!AH11","v":0},null,null,null,null,"EGID Nr.",null,null,null,{"$f":"'Allgemeine Daten'!AP11:AZ11","v":0}]
[]
[]
["2.","Eigentümer- und Nutzerschaft",null,null,null,null,null,null,null,"Name",null,null,null,null,null,null,{"$f":"'Allgemeine Daten'!Q14:AD14","v":0}]
[]
[null,null,null,null,null,null,null,null,null,"Strasse",null,null,null,null,null,null,{"$f":"'Allgemeine Daten'!Q16:AD16","v":0},null,null,null,null,null,null,null,null,null,null,null,null,null,null,"Nr.",null,{"$f":"'Allgemeine Daten'!AH16:AJ16","v":0},null,null,null,"Tel.",null,null,null,{"$f":"'Allgemeine Daten'!AP16:AZ16","v":0}," -"]
[]
[null,null,null,null,null,null,null,null,null,"Ort",null,null,null,null,null,null,{"$f":"'Allgemeine Daten'!Q18:AD18","v":0},null,null,null,null,null,null,null,null,null,null,null,null,null,null,"PLZ",null,{"$f":"'Allgemeine Daten'!AH18:AJ18","v":0},null,null,null,"Fax",null,null,null,{"$f":"'Allgemeine Daten'!AP18:AZ18","v":0}," -"]
[]
[]
[null,null,null,null,null,null,null,null,null,"Zuständige Person",null,null,null,null,null,null,{"$f":"'Allgemeine Daten'!Q21:AD21","v":0}]
[]
[null,null,null,null,null,null,null,null,null,"E-Mail",null,null,null,null,null,null,{"$f":"'Allgemeine Daten'!Q23:AD23","v":0},null,null,null,null,null,null,null,null,null,null,null,null,null,null,null,null,null,null,null,null,"Tel. direkt",null,null,null,{"$f":"'Allgemeine Daten'!AP23:AZ23","v":0}," -"]
[]
[]
["3.","Vertreter",null,null,null,null,null,null,null,"Firma",null,null,null,null,null,null,{"$f":"'Allgemeine Daten'!Q26:AD26","v":0}]
[]
[null,null,null,null,null,null,null,null,null,"Strasse",null,null,null,null,null,null,{"$f":"'Allgemeine Daten'!Q28:AD28","v":0},null,null,null,null,null,null,null,null,null,null,null,null,null,null,"Nr.",null,{"$f":"'Allgemeine Daten'!AH28:AJ28","v":0},null,null,null,"Tel.",null,null,null,{"$f":"'Allgemeine Daten'!AP28:AZ28","v":0}," -"]
[]
[null,null,null,null,null,null,null,null,null,"Ort",null,null,null,null,null,null,{"$f":"'Allgemeine Daten'!Q30:AD30","v":0},null,null,null,null,null,null,null,null,null,null,null,null,null,null,"PLZ",null,{"$f":"'Allgemeine Daten'!AH30:AJ30","v":0},null,null,null,"Fax",null,null,null,{"$f":"'Allgemeine Daten'!AP30:AZ30","v":0}," -"]
[]
[]
[null,null,null,null,null,null,null,null,null,"Zuständige Person",null,null,null,null,null,null,{"$f":"'Allgemeine Daten'!Q33:AD33","v":0}]
[]
[null,null,null,null,null,null,null,null,null,"E-Mail",null,null,null,null,null,null,{"$f":"'Allgemeine Daten'!Q35:AD35","v":0},null,null,null,null,null,null,null,null,null,null,null,null,null,null,null,null,null,null,null,null,"Tel. direkt",null,null,null,{"$f":"'Allgemeine Daten'!AP35:AZ35","v":0}," -"]
[]
[]
["4.","QS-Verantwortlicher Brandschutz",null,null,null,null,null,null,null,"Firma",null,null,null,null,null,null,{"$f":"'Allgemeine Daten'!Q64:AD64","v":0},null,null,null,null,null,null,null,null,null,null,null,null,null,null,"VKF Anerkennung Nr.",null,null,null,null,null,null,null,null,null,{"$f":"'Allgemeine Daten'!AP64:AZ64","v":0}]
[]
[null,null,null,null,null,null,null,null,null,"Strasse",null,null,null,null,null,null,{"$f":"'Allgemeine Daten'!Q66:AD66","v":0},null,null,null,null,null,null,null,null,null,null,null,null,null,null,"Nr.",null,{"$f":"'Allgemeine Daten'!AH66:AJ66","v":0},null,null,null,"Tel.",null,null,null,{"$f":"'Allgemeine Daten'!AP66:AZ66","v":0}]
[]
[null,null,null,null,null,null,null,null,null,"Ort",null,null,null,null,null,null,{"$f":"'Allgemeine Daten'!Q68:AD68","v":0},null,null,null,null,null,null,null,null,null,null,null,null,null,null,"PLZ",null,{"$f":"'Allgemeine Daten'!AH68:AJ68","v":0},null,null,null,"Fax",null,null,null,{"$f":"'Allgemeine Daten'!AP68:AZ68","v":0}]
[]
[]
[null,null,null,null,null,null,null,null,null,"Zuständige Person",null,null,null,null,null,null,{"$f":"'Allgemeine Daten'!Q71:AD71","v":0},null,null,null,null,null,null,null,null,null,null,null,null,null,null,"VKF Zertifikat Nr.",null,null,null,null,null,null,null,null,null,{"$f":"'Allgemeine Daten'!AP71:AZ71","v":0}]
[]
[null,null,null,null,null,null,null,null,null,"E-Mail",null,null,null,null,null,null,{"$f":"'Allgemeine Daten'!Q73:AD73","v":0},null,null,null,null,null,null,null,null,null,null,null,null,null,null,null,null,null,null,null,null,"Tel. direkt",null,null,null,{"$f":"'Allgemeine Daten'!AP73:AZ73","v":0}]
[]
[]
["5.","Fachfirma für die Planung von Sprinkleranlagen",null,null,null,null,null,null,null,"Firma",null,null,null,null,null,null,{"$f":"'Allgemeine Daten'!Q76:AD76","v":0},null,null,null,null,null,null,null,null,null,null,null,null,null,null,"VKF Anerkennung Nr.",null,null,null,null,null,null,null,null,null,{"$f":"'Allgemeine Daten'!AP76:AZ76","v":0}]
[]
[null,null,null,null,null,null,null,null,null,"Strasse",null,null,null,null,null,null,{"$f":"'Allgemeine Daten'!Q78:AD78","v":0},null,null,null,null,null,null,null,null,null,null,null,null,null,null,"Nr.",null,{"$f":"'Allgemeine Daten'!AH78:AJ78","v":0},null,null,null,"Tel.",null,null,null,{"$f":"'Allgemeine Daten'!AP78:AZ78","v":0}]
[]
[null,null,null,null,null,null,null,null,null,"Ort",null,null,null,null,null,null,{"$f":"'Allgemeine Daten'!Q80:AD80","v":0},null,null,null,null,null,null,null,null,null,null,null,null,null,null,"PLZ",null,{"$f":"'Allgemeine Daten'!AH80:AJ80","v":0},null,null,null,"Fax",null,null,null,{"$f":"'Allgemeine Daten'!AP80:AZ80","v":0}]
[]
[]
[null,null,null,null,null,null,null,null,null,"Zuständige Person",null,null,null,null,null,null,{"$f":"'Allgemeine Daten'!Q83:AD83","v":0},null,null,null,null,null,null,null,null,null,null,null,null,null,null,"VKF Zertifikat Nr.",null,null,null,null,null,null,null,null,null,{"$f":"'Allgemeine Daten'!AP83:AZ83","v":0}]
[]
[null,null,null,null,null,null,null,null,null,"E-Mail",null,null,null,null,null,null,{"$f":"'Allgemeine Daten'!Q85:AD85","v":0},null,null,null,null,null,null,null,null,null,null,null,null,null,null,null,null,null,null,null,null,"Tel. direkt",null,null,null,{"$f":"'Allgemeine Daten'!AP85:AZ85","v":0}]
[]
[]
[]
["4","Anerkannte Fachfirma für Errichtung",null,null,null,null,null,null,null,"Firma",null,null,null,null,null,null,{"$f":"'Allgemeine Daten'!Q88","v":0},null,null,null,null,null,null,null,null,null,null,null,null,null,null,"VKF Anerkennung Nr.",null,null,null,null,null,null,null,null,null,{"$f":"'Allgemeine Daten'!AQ88","v":0}]
[]
[null,null,null,null,null,null,null,null,null,"Strasse",null,null,null,null,null,null,{"$f":"'Allgemeine Daten'!Q90","v":0},null,null,null,null,null,null,null,null,null,null,null,null,null,null,"Nr.",null,{"$f":"'Allgemeine Daten'!AH90","v":0},null,null,null,"Tel.",null,null,null,{"$f":"'Allgemeine Daten'!AQ90","v":0}]
[]
[null,null,null,null,null,null,null,null,null,"Ort",null,null,null,null,null,null,{"$f":"'Allgemeine Daten'!Q92","v":0},null,null,null,null,null,null,null,null,null,null,null,null,null,null,"PLZ",null,{"$f":"'Allgemeine Daten'!AH92","v":0},null,null,null,"Fax",null,null,null,{"$f":"'Allgemeine Daten'!AQ92","v":0}]
[]
[]
[null,null,null,null,null,null,null,null,null,"Zuständige Person",null,null,null,null,null,null,{"$f":"'Allgemeine Daten'!Q95","v":0},null,null,null,null,null,null,null,null,null,null,null,null,null,null,null,null,null,null,"VKF Zertifikat Nr.",null,null,null,null,null,{"$f":"'Allgemeine Daten'!AQ95","v":0}]
[]
[null,null,null,null,null,null,null,null,null,"E-Mail",null,null,null,null,null,null,{"$f":"'Allgemeine Daten'!Q97","v":0},null,null,null,null,null,null,null,null,null,null,null,null,null,null,null,null,null,null,null,null,"Tel. direkt",null,null,null,{"$f":"'Allgemeine Daten'!AQ97","v":0}]
[]
[]
["7","Sprinklerwart",null,null,null,null,null,null,null,"Name",null,null,null,null,null,null,{"$f":"'Allgemeine Daten'!Q100:AD100","v":0}]
[]
[null,null,null,null,null,null,null,null,null,"Strasse",null,null,null,null,null,null,{"$f":"'Allgemeine Daten'!Q102:AD102","v":0},null,null,null,null,null,null,null,null,null,null,null,null,null,null,"Nr.",null,{"$f":"'Allgemeine Daten'!AH102:AJ102","v":0},null,null,null,"Tel.",null,null,null,{"$f":"'Allgemeine Daten'!AQ102:AZ102","v":{"$error":"#VALUE!"}}]
[]
[null,null,null,null,null,null,null,null,null,"Ort",null,null,null,null,null,null,{"$f":"'Allgemeine Daten'!Q104:AD104","v":0},null,null,null,null,null,null,null,null,null,null,null,null,null,null,"PLZ",null,{"$f":"'Allgemeine Daten'!AH104:AJ104","v":0},null,null,null,"Fax",null,null,null,{"$f":"'Allgemeine Daten'!AQ104:AZ104","v":{"$error":"#VALUE!"}}]
[]
[]
[null,null,null,null,null,null,null,null,null,"Zuständige Person",null,null,null,null,null,null,{"$f":"'Allgemeine Daten'!Q107:AD107","v":0}]
[]
[null,null,null,null,null,null,null,null,null,"E-Mail",null,null,null,null,null,null,{"$f":"'Allgemeine Daten'!Q109:AD109","v":0},null,null,null,null,null,null,null,null,null,null,null,null,null,null,null,null,null,null,null,null,"Tel. direkt",null,null,null,{"$f":"'Allgemeine Daten'!AQ109:AZ109","v":{"$error":"#VALUE!"}}]
[]
[]
["6","Brandschutz               Behörde",null,null,null,null,null,null,null,"Firma",null,null,null,null,null,null,{"$f":"'Allgemeine Daten'!Q117:AD117","v":0}]
[]
[null,null,null,null,null,null,null,null,null,"Strasse",null,null,null,null,null,null,{"$f":"'Allgemeine Daten'!Q119:AD119","v":0},null,null,null,null,null,null,null,null,null,null,null,null,null,null,"Nr.",null,{"$f":"'Allgemeine Daten'!AH119:AJ119","v":0},null,null,null,"Tel.",null,null,null,{"$f":"'Allgemeine Daten'!AQ119:AZ119","v":{"$error":"#VALUE!"}}]
[]
[null,null,null,null,null,null,null,null,null,"Ort",null,null,null,null,null,null,{"$f":"'Allgemeine Daten'!Q121:AD121","v":0},null,null,null,null,null,null,null,null,null,null,null,null,null,null,"PLZ",null,{"$f":"'Allgemeine Daten'!AH121:AJ121","v":0},null,null,null,"Fax",null,null,null,{"$f":"'Allgemeine Daten'!AQ121:AZ121","v":{"$error":"#VALUE!"}}]
[]
[]
[null,null,null,null,null,null,null,null,null,"Zuständige Person",null,null,null,null,null,null,{"$f":"'Allgemeine Daten'!Q124:AD124","v":0}]
[]
[null,null,null,null,null,null,null,null,null,"E-Mail",null,null,null,null,null,null,{"$f":"'Allgemeine Daten'!Q126:AD126","v":0},null,null,null,null,null,null,null,null,null,null,null,null,null,null,null,null,null,null,null,null,"Tel. direkt",null,null,null,{"$f":"'Allgemeine Daten'!AQ126:AZ126","v":{"$error":"#VALUE!"}}]
[]
[]
["7","Inspektionsstelle",null,null,null,null,null,null,null,"Firma",null,null,null,null,null,null,{"$f":"'Allgemeine Daten'!Q129:AD129","v":0}]
[]
[null,null,null,null,null,null,null,null,null,"Strasse",null,null,null,null,null,null,{"$f":"'Allgemeine Daten'!Q131:AD131","v":0},null,null,null,null,null,null,null,null,null,null,null,null,null,null,"Nr.",null,{"$f":"'Allgemeine Daten'!AH131:AJ131","v":0},null,null,null,"Tel.",null,null,null,{"$f":"'Allgemeine Daten'!AQ131:AZ131","v":{"$error":"#VALUE!"}}]
[]
[null,null,null,null,null,null,null,null,null,"Ort",null,null,null,null,null,null,{"$f":"'Allgemeine Daten'!Q133:AD133","v":0},null,null,null,null,null,null,null,null,null,null,null,null,null,null,"PLZ",null,{"$f":"'Allgemeine Daten'!AH133:AJ133","v":0},null,null,null,"Fax",null,null,null,{"$f":"'Allgemeine Daten'!AQ133:AZ133","v":{"$error":"#VALUE!"}}]
[]
[]
[null,null,null,null,null,null,null,null,null,"Zuständige Person",null,null,null,null,null,null,{"$f":"'Allgemeine Daten'!Q136:AD136","v":0}]
[]
[null,null,null,null,null,null,null,null,null,"E-Mail",null,null,null,null,null,null,{"$f":"'Allgemeine Daten'!Q138:AD138","v":0},null,null,null,null,null,null,null,null,null,null,null,null,null,null,null,null,null,null,null,null,"Tel. direkt",null,null,null,{"$f":"'Allgemeine Daten'!AQ138:AZ138","v":{"$error":"#VALUE!"}}]
[]
["6.","Projekt Beschreibung",null,null,null,null,null,null,null,null,null,null,null,null,null,null,"  Neuanlage",null,null,null,{"$f":"'Allgemeine Daten'!U38","v":0},null,null,"Generalüberholung",null,null,null,null,null,{"$f":"'Allgemeine Daten'!AD38","v":0},null,"Sanierung",null,null,null,{"$f":"'Allgemeine Daten'!AJ38","v":0},null,"Umbau",null,null,null,{"$f":"'Allgemeine Daten'!AP38","v":0},null,null,"Erweiterung",null,null,null,{"$f":"'Allgemeine Daten'!AW38","v":0}]
[]
[null,null,null,null,null,null,null,null,null,null,null,null,null,null,null,null,{"$f":"'Allgemeine Daten'!Q40","v":0}]
[]
[]
[]
[]
["7.","Anlagestatus",null,null,null,null,null,null,null,"Vorgeschrieben Grund:",null,null,null,null,null,null,{"$f":"'Allgemeine Daten'!Q45","v":0},"Baulichem Konzept (VKF BSN Art. 10)",null,null,null,null,null,null,null,null,null,null,null,null,null,null,null,{"$f":"'Allgemeine Daten'!AH45","v":0}," Löschanlagenkonzept  (VKF BSN Art. 10)"]
[]
[null,null,null,null,null,null,null,null,null,null,null,null,null,null,null,null,{"$f":"'Allgemeine Daten'!Q47","v":0},"Alternativem Brandschutzkonzept (VKF BSN Art. 11/12)",null,null,null,null,null,null,null,null,null,null,null,null,null,null,null,{"$f":"'Allgemeine Daten'!AH47","v":0},"  freiwillig auf die öffentliche Feuermeldestelle aufgeschaltet"]
[]
[]
["8.","Planungsgrundlagen",null,null,null,null,null,null,null,"Brandschutzpläne vom",null,null,null,null,null,null,{"$f":"'Allgemeine Daten'!Q50:T50","v":"00:00:00"},null,null,null,null,null,"Version",null,null,{"$f":"'Allgemeine Daten'!Z50:AC50","v":0},null,null,null,null,null,null,null,"(bei Einstufung QSS 1/2)"]
[]
[null,null,null,null,null,null,null,null,null,"Brandschutzkonzept vom",null,null,null,null,null,null,{"$f":"'Allgemeine Daten'!Q52:T52","v":"00:00:00"},null,null,null,null,null,"Version",null,null,{"$f":"'Allgemeine Daten'!Z52:AC52","v":0},null,null,null,null,null,null,null,"(bei Einstufung QSS 3/4)"]
[]
[null,null,null,null,null,null,null,null,null,"Verfasser:",null,null,null,null,null,null,{"$f":"'Allgemeine Daten'!Q54:AZ54","v":0}]
[]
[]
["9.","Schutzumfang",null,null,null,null,null,null,null,null,null,null,null,null,null,null,"Vollschutz",null,null,null,{"$f":"'Allgemeine Daten'!U57","v":0},null,null,null,"Teilschutz",null,null,null,{"$f":"'Allgemeine Daten'!AC57","v":0},null,null,null,null,"zusätzliche Handfeuermelder",null,null,null,null,null,null,null,{"$f":"'Allgemeine Daten'!AP57","v":0}]
[]
[null,null,null,null,null,null,null,null,null,null,null,null,null,null,null,null,"Ungeschützte Bereiche (z.B. Vordächer) vorhanden",null,null,null,null,null,null,null,null,null,null,null,null,null,null,null,null,{"$f":"'Allgemeine Daten'!AH59","v":0},"ja",null,null,null,null,null,null,{"$f":"'Allgemeine Daten'!AP59","v":0},"nein"]
[]
[null,null,null,null,null,null,null,null,null,null,null,null,null,null,null,null,"Bestätigung keine Lagerung durch Nutzerschaft erhalten",null,null,null,null,null,null,null,null,null,null,null,null,null,null,null,null,{"$f":"'Allgemeine Daten'!AH61","v":0},"ja",null,null,null,null,null,null,{"$f":"'Allgemeine Daten'!AP61","v":0},"nein"]
[]
[]
["10.","Sonderanwendungen, ausländische Standards",null,null,null,null,null,null,null,"Sind Sonderanwendungen vorgesehen",null,null,null,null,null,null,null,null,null,null,null,null,null,null,null,null,null,null,null,null,null,null,null,null,"ja",null,null,null,null,null,null,null,"nein"]
[]
[null,null,null,null,null,null,null,null,null,"Sind die entsprechenden Genehmigungen der Brandschutzbehörden vorhanden",null,null,null,null,null,null,null,null,null,null,null,null,null,null,null,null,null,null,null,null,null,null,null,null,"ja",null,null,null,null,null,null,null,"nein"]
[]
[null,null,null,null,null,null,null,null,null,null,"Ausländischer Standard"]
[]
[null,null,null,null,null,null,null,null,null,null,"Sprinklertyp"]
[]
[null,null,null,null,null,null,null,null,null,null,"Eingelegte Rohrleitungen"]
[]
[null,null,null,null,null,null,null,null,null,null,"Sprühflutanlage"]
[]
[null,null,null,null,null,null,null,null,null,null,"Sprüh- und Wassernebellöschanlagen"]
[]
[null,null,null,null,null,null,null,null,null,null,"Absperrorgane ausserhalb SPZ"]
[]
[]
["11.","Löschwasserzusatz",null,null,null,null,null,null,null,null,"Genehmigung durch Gewässerschutzbehörden vorhanden"]
[]
[]
["12.","Sprinklerzentrale",null,null,null,null,null,null,null,"Brandabschnitt",null,null,null,null,null,null,"EI 30",null,null,null,null,null,"EI 60",null,null,null,null,null,"EI 90",null,null,null,null,"EI 120",null,null,null,null,null,"frostsicher"]
[]
[null,null,null,null,null,null,null,null,null,"Lage",null,null,null,null,null,null,"1. UG",null,null,null,null,null,"EG",null,null,null,null,null,"1. OG"]
[]
[null,null,null,null,null,null,null,null,null,"Zugang",null,null,null,null,null,null,"vom Freien",null,null,null,null,null,"vom Fluchttreppenhaus"]
[]
[]
[]
["13.","Technische Daten",null,null,null,null,null,null,null,"Sind im Formular \"Technische Daten\" auszufüllen"]
[]
[null,null,null,null,null,null,null,null,null,"Bereichsfläche",null,null,null,null,null,null,null,"m2"]
[]
[null,null,null,null,null,null,null,null,null,"Raumhöhe",null,null,null,null,null,null,null,"m"]
[]
[null,null,null,null,null,null,null,null,null,"Frostgefahr",null,null,null,null,null,null,null,null,null,null,null,null,null,null,null,null,"ja",null,null,null,"nein",null,null,null,null,"ja",null,null,null,"nein",null,null,null,null,"ja",null,null,null,"nein"]
[]
["Nach Hinten kopiert",null,null,null,null,null,null,null,null,"Systemart"]
[]
[null,null,null,null,null,null,null,null,null,"RTI-Wert",null,null,null,null,null,null,null,"m1/2   s1/2"]
[]
[]
[null,null,null,null,null,null,null,null,null,"a.","Zellenbauweise"]
[]
[null,null,null,null,null,null,null,null,null,"Max. Raumgrösse",null,null,null,null,null,null,null,"m2"]
[]
[null,null,null,null,null,null,null,null,null,"Brandbelastung",null,null,null,null,null,null,null,"MJ / m2"]
[]
[null,null,null,null,null,null,null,null,null,">>Brandgefahr",null,null,null,null,null,null,null,"BG"]
[]
[]
[null,null,null,null,null,null,null,null,null,"b.","Betrieb"]
[]
[null,null,null,null,null,null,null,null,null,"Brandbelastung",null,null,null,null,null,null,null,"MJ / m2"]
[]
[null,null,null,null,null,null,null,null,null,"Brennbarkeit",null,null,null,null,null,null,null,"F"]
[]
[null,null,null,null,null,null,null,null,null,"Warenkategorie",null,null,null,null,null,null,null,"WK"]
[]
[null,null,null,null,null,null,null,null,null,">>Brandgefahr",null,null,null,null,null,null,null,"BG"]
[]
[]
[null,null,null,null,null,null,null,null,null,"c.","Lager"]
[]
[null,null,null,null,null,null,null,null,null,"Lagermaterial"]
[]
[null,null,null,null,null,null,null,null,null,"Verpackung"]
[]
[null,null,null,null,null,null,null,null,null,">>Warenkategorie",null,null,null,null,null,null,null,"WK"]
[]
[null,null,null,null,null,null,null,null,null,"Lagerart",null,null,null,null,null,null,null,null,null,null,null,null,null,null,null,null,null,null,"B",null,null,"C",null,null,"A",null,null,"B",null,null,"C",null,null,"A",null,null,"B",null,null,"C"]
[]
[null,null,null,null,null,null,null,null,null,null,null,null,null,null,null,null,null,null,null,null,null,null,null,null,null,"Fächerlager",null,null,null,null,null,null,null,null,"Fächerlager",null,null,null,null,null,null,null,null,"Fächerlager"]
[]
[null,null,null,null,null,null,null,null,null,"Stapelhöhe HS",null,null,null,null,null,null,null,"m"]
[]
[null,null,null,null,null,null,null,null,null,">>Brandgefahr Decke",null,null,null,null,null,null,null,"BG"]
[]
[null,null,null,null,null,null,null,null,null,">>Brandgefahr Regal",null,null,null,null,null,null,null,"BG"]
[null,null,null,null,null,null,null,null,null,"Wirkfläche",null,null,null,null,null,null,null,"A (m2)"]
[]
[null,null,null,null,null,null,null,null,null,"Wirkflächenanpassung",null,null,null,null,null,null,null,"A' (m2)"]
[]
[null,null,null,null,null,null,null,null,null,"Nenndurchfluss total",null,null,null,null,null,null,null,"QND (l/min)"]
[]
[null,null,null,null,null,null,null,null,null,"Trockenanlage",null,null,null,null,null,null,null,"max. Ausströmzeit (s)"]
[]
[]
[null,null,null,null,null,null,null,null,null,"b.","Regalsprinkler"]
[]
[null,null,null,null,null,null,null,null,null,"Anzahl ZE im Regal",null,null,null,null,null,null,null,"nR"]
[]
[null,null,null,null,null,null,null,null,null,"Anzurechnende ZE",null,null,null,null,null,null,null,"nZE"]
[]
[null,null,null,null,null,null,null,null,null,"Öffnende Sprinkler pro ZE",null,null,null,null,null,null,null,"nspr"]
[]
[null,null,null,null,null,null,null,null,null,"Nenndurchfluss pro ZE",null,null,null,null,null,null,null,"QN ZE (l/min)"]
[]
[null,null,null,null,null,null,null,null,null,"Nenndurchfluss Regal total",null,null,null,null,null,null,null,"QNR (l/min)"]
[]
[]
[null,null,null,null,null,null,null,null,null,"c.","Wasser- und Druckbedarf"]
[]
[null,null,null,null,null,null,null,null,null,"Nenndurchfluss theor.",null,null,null,null,null,null,null,"QN (SPtot) (l/min)"]
[]
[null,null,null,null,null,null,null,null,null,"Nenndurchfluss",null,null,null,null,null,null,null,"QN (SP+20%) (l/min)"]
[]
[null,null,null,null,null,null,null,null,null,"Wasserbedarf effektiv",null,null,null,null,null,null,null,"QSP eff  (l/min)"]
[]
[null,null,null,null,null,null,null,null,null,"Feuerwehrbedarf",null,null,null,null,null,null,null,"QF  (l/min)"]
[]
[null,null,null,null,null,null,null,null,null,"Bedarf andere Zwecke",null,null,null,null,null,null,null,"Q andere Zwecke (l/min)"]
[]
[null,null,null,null,null,null,null,null,null,"Durchfluss total",null,null,null,null,null,null,null,"Qtot  (l/min)"]
[]
[null,null,null,null,null,null,null,null,null,"Geschütze Gebäudehöhe",null,null,null,null,null,null,null,null,null,null,"m"]
[]
[null,null,null,null,null,null,null,null,null,"Druckbedarf p bei Qtot",null,null,null,null,null,null,null,null,null,null,"bar"]
[]
[null,null,null,null,null,null,null,null,null,"Nennwirkzeit tN",null,null,null,null,null,null,null,null,null,null,"min"]
[]
[null,null,null,null,null,null,null,null,null,"Mindestvolumen Vmin",null,null,null,null,null,null,null,null,null,null,"min"]
[]
[]
["14.","Bemerkungen"]
[]
[]
[]
[]
[]
[]
["15.","Beilagen",null,null,null,null,null,null,null,null,"Brandschutzkonzept/-pläne",null,null,null,null,null,null,null,null,null,null,null,null,null,null,null,null,null,"Anlageschema"]
[]
[null,null,null,null,null,null,null,null,null,null,"Massstäbliche Grundriss- und Schnittpläne ",null,null,null,null,null,null,null,null,null,null,null,null,null,null,null,null,null,"Katasterplan (Gebäude)"]
[]
[null,null,null,null,null,null,null,null,null,null,"Nutzungs- und Lagepläne ",null,null,null,null,null,null,null,null,null,null,null,null,null,null,null,null,null,"Bestätigung keine Lagerung in ungeschützten Bereichen"]
[]
[null,null,null,null,null,null,null,null,null,null,"p/Q-Diagramm inkl. allfällige Pumpenkennlinie",null,null,null,null,null,null,null,null,null,null,null,null,null,null,null,null,null,"Genehmigung Sonderanwendungen (falls erforderlich)"]
[]
[null,null,null,null,null,null,null,null,null,null,"hydraulische Berechnungen mit Isometrieplänen",null,null,null,null,null,null,null,null,null,null,null,null,null,null,null,null,null,"Genehmigung Gewässerschutzbehörde"]
[]
[null,null,null,null,null,null,null,null,null,null,"Plan Sprinklerzentrale"]
[]
[null,null,null,null,null,null,null,null,null,"X","Formular Technische Daten Punkte 1-7"]
[]
[]
["16.","Verteiler",null,null,null,null,null,null,null,null,"Brandschutzbehörde",null,null,null,null,null,null,null,null,null,null,null,null,null,null,null,null,null,null,"Die Projektunterlagen sind durch den QS Verantwortlichen Brandschutz an die zuständigen Stellen einzureichen (siehe Ziffer 4.1.3 lit.b. BSR 11-15).                                                                                                Anzahl Dossiers sind mit der zuständigen Stelle abzuklären."]
[]
[null,null,null,null,null,null,null,null,null,null,"Fachstelle(n)"]
[]
[]
[]
[]
["17.","Unterschriften"]
[]
[null,"Anerkannte Firma für die Planung von Sprinkleranlagen"]
[null,"Die Fachfirma für Planung bestätigt, dass das vorliegende Projekt gemäss den geltenden Brandschutzvorschriften und Vollzugsbestimmungen sowie dem Stand der Technik geplant wurde."]
[]
[null,"Ort",null,null,null,null,null,null,null,null,null,null,null,null,null,null,null,"Datum"]
[]
[]
[]
[null,"Name der zuständigen Person"]
[]
[]
[]
[null,"Stempel und Unterschrift"]

{"sheet":"Auslegung","index":3,"n_rows":45,"n_cols":16,"rows_kept":45,"cut":false,"hidden":true,"merged":[]}
[]
[null,null,"Niederschlag",null,null,"Wirkfläche",null,"Anpassung",null,"Max Auslösezeit",null,"ZE im Regal",null,"Anzahl Sprinkler",null,"Nennwirkzeit"]
[null,null,null,null,null,null,null,null,null,"Trocken"]
[null,null,"N1"]
[null,null,"N2",0,null,0,null,275,null,30,null,1,null,6,null,45]
[null,null,"N3",5,null,50,null,310,null,45,null,2,null,4,null,60]
[null,null,"H1",7.5,null,140,null,350,null,60,null,3,null,null,null,90]
[null,null,"H2",10,null,200,null,400,null,90,null,4]
[null,null,"H3",12.5,null,250,null,null,null,null,null,5]
[null,null,"H4",15,null,300,null,null,null,null,null,6]
[null,null,"H5",17.5,null,null,null,null,null,null,null,7]
[null,null,"H6",20,null,null,null,null,null,null,null,8]
[null,null,"H7",22.5,null,null,null,null,null,null,null,9]
[null,null,null,null,null,null,null,null,null,null,null,10]
[null,null,null,null,null,null,null,null,null,null,null,11]
[null,null,"L1",null,null,null,null,null,null,null,null,12]
[null,null,"L2",null,null,null,null,null,null,null,null,13]
[null,null,"L3",null,null,null,null,null,null,null,null,14]
[null,null,null,null,null,null,null,null,null,null,null,15]
[null,null,null,null,null,null,null,null,null,null,null,16]
[null,null,null,null,null,null,null,null,null,null,null,17]
[null,null,null,null,null,null,null,null,null,null,null,18]
[null,null,null,null,null,null,null,null,null,null,null,19]
[null,null,null,null,null,null,null,null,null,null,null,20]
[]
[]
[]
[null,null,"RTI",null,"Brandbelastung",null,"Gefahrenklasse",null,"WK",null,"Pumpen","P-Art",null,"Löschwasservolumen"]
[]
[null,null,"<30",null,375,null,"F5",null,"I",null,"D-Pumpe 1","D",null,{"$f":"'Technische Daten'!AB148","v":0}]
[null,null,"30-50",null,750,null,"F4",null,"II",null,"D-Pumpe 2","E"]
[null,null,"50-80",null,"beliebig",null,"F3",null,"III",null,"E-Pumpe 1"]
[null,null,"80-120",null,null,null,"F2",null,"IV",null,"E-Pumpe 2"]
[null,null,null,null,null,null,"F1"]
[null,null,null,null,null,null,"F1/F2"]
[]
[]
[]
[null,null,"Energieversorgung",null,null,"X_Feld"]
[null,null,null,null,null,"-"]
[null,null,"A","B",null,"X"]
[null,null,"B","D"]
[null,null,"C"]
[null,null,"D","C"]
[null,null,null,"E"]

{"sheet":"Anmeldung","index":4,"n_rows":169,"n_cols":43,"rows_kept":169,"cut":false,"hidden":false,"merged":[[1,35,1,50],[104,16,104,29],[106,16,106,29],[109,35,109,40],[111,35,111,40],[97,16,97,29],[99,16,99,29],[99,33,99,35],[101,33,101,35],[101,16,101,29],[68,16,68,29],[70,16,70,29],[87,33,87,35],[56,16,56,29],[94,16,94,29],[89,33,89,35],[89,16,89,29],[58,16,58,29],[44,16,44,29],[46,16,46,29],[61,16,61,29],[63,16,63,29],[63,33,63,35],[53,16,53,29],[13,1,15,7],[25,1,27,7],[37,1,39,7],[20,16,20,29],[22,16,22,29],[15,16,15,29],[17,16,17,29],[15,33,15,35],[17,33,17,35],[25,16,25,29],[27,16,27,29],[29,16,29,29],[32,16,32,29],[49,16,49,29],[51,16,51,29],[51,33,51,35],[53,33,53,35],[65,33,65,35],[65,16,65,29],[25,41,25,51],[27,41,27,51],[29,41,29,51],[32,41,32,51],[34,41,34,51],[34,16,34,29],[53,41,53,51],[58,41,58,51],[170,1,175,22],[158,1,159,23],[150,30,152,50],[162,1,162,15],[166,1,166,22],[162,17,162,22],[113,10,113,50],[115,35,115,44],[115,19,115,31],[119,19,119,31],[139,14,139,19],[139,26,139,31],[150,10,150,27],[152,10,152,27],[117,10,117,50],[119,35,119,44],[147,34,147,51],[141,20,141,51],[85,1,87,7],[145,1,147,6],[139,1,141,6],[109,1,109,6],[111,1,111,6],[41,33,41,35],[37,16,37,29],[39,16,39,29],[41,16,41,29],[39,33,39,35],[73,1,73,6],[97,1,97,7],[92,16,92,29],[85,16,85,29],[87,16,87,29],[130,9,136,51],[121,19,121,31],[37,41,37,51],[39,41,39,51],[41,41,41,51],[44,41,44,51],[46,41,46,51],[49,1,51,7],[51,41,51,51],[10,41,10,51],[4,16,4,35],[13,16,13,29],[61,1,61,7],[63,41,63,51],[65,41,65,51],[70,41,70,51],[124,9,124,51],[126,10,127,51],[4,1,7,7],[4,41,4,51],[6,16,6,28],[6,33,6,35],[6,41,6,51],[8,16,8,28],[8,33,8,35],[8,41,8,51],[13,41,13,51],[27,33,27,35],[29,33,29,35],[15,41,15,51],[17,41,17,51],[20,41,20,51],[22,41,22,51]]}
[null,null,null,null,null,null,null,null,null,"Sprinkleranlage "]
[null,null,null,null,null,null,null,null,null,"Anmeldung Sprinkleranlagen Ziffer 5.1 Abs. 2 BSR 19-15"]
[]
[]
["1.","Geschütztes              Gebäude",null,null,null,null,null,null,null,"Objekt",null,null,null,null,null,null,{"$f":"'Allgemeine Daten'!Q5:AJ5","v":0},null,null,null,null,null,null,null,null,null,null,null,null,null,null,null,null,null,null,null,null,"Vers.- Nr.",null,null,null,{"$f":"'Allgemeine Daten'!AP5:AZ5","v":0}]
[]
[null,null,null,null,null,null,null,null,null,"Strasse",null,null,null,null,null,null,{"$f":"'Allgemeine Daten'!Q7:AC7","v":0},null,null,null,null,null,null,null,null,null,null,null,null,null,null,"Nr.",null,{"$f":"'Allgemeine Daten'!AH7:AJ7","v":0},null,null,null,"Anlage Nr.",null,null,null,{"$f":"'Allgemeine Daten'!AP7:AZ7","v":0}]
[]
[null,null,null,null,null,null,null,null,null,"Ort",null,null,null,null,null,null,{"$f":"'Allgemeine Daten'!Q9:AC9","v":0},null,null,null,null,null,null,null,null,null,null,null,null,null,null,"PLZ",null,{"$f":"'Allgemeine Daten'!AH9:AJ9","v":0},null,null,null,"Kataster Nr.",null,null,null,{"$f":"'Allgemeine Daten'!AP9:AZ9","v":0}]
[]
[null,null,null,null,null,null,null,null,null,"Qualitätssicherungsstufe ",null,null,null,null,null,null,null," QSS",null,{"$f":"'Allgemeine Daten'!S11","v":" -"},null,null,null,null,null,null,{"$f":"'Allgemeine Daten'!AB11","v":0},null,null,null,null,null,{"$f":"'Allgemeine Daten'!AH11","v":0},null,null,null,null,"EGID Nr.",null,null,null,{"$f":"'Allgemeine Daten'!AP11:AZ11","v":0}]
[]
[]
["2.","QS-Verantwortlicher Brandschutz",null,null,null,null,null,null,null,"Firma",null,null,null,null,null,null,{"$f":"'Allgemeine Daten'!Q64:AD64","v":0},null,null,null,null,null,null,null,null,null,null,null,null,null,null,"VKF Anerkennung Nr.",null,null,null,null,null,null,null,null,null,{"$f":"'Allgemeine Daten'!AP64:AZ64","v":0}]
[]
[null,null,null,null,null,null,null,null,null,"Strasse",null,null,null,null,null,null,{"$f":"'Allgemeine Daten'!Q66:AD66","v":0},null,null,null,null,null,null,null,null,null,null,null,null,null,null,"Nr.",null,{"$f":"'Allgemeine Daten'!AH66:AJ66","v":0},null,null,null,"Tel.",null,null,null,{"$f":"'Allgemeine Daten'!AP66:AZ66","v":0}]
[]
[null,null,null,null,null,null,null,null,null,"Ort",null,null,null,null,null,null,{"$f":"'Allgemeine Daten'!Q68:AD68","v":0},null,null,null,null,null,null,null,null,null,null,null,null,null,null,"PLZ",null,{"$f":"'Allgemeine Daten'!AH68:AJ68","v":0},null,null,null,"Fax",null,null,null,{"$f":"'Allgemeine Daten'!AP68:AZ68","v":0}]
[]
[]
[null,null,null,null,null,null,null,null,null,"Zuständige Person",null,null,null,null,null,null,{"$f":"'Allgemeine Daten'!Q71:AD71","v":0},null,null,null,null,null,null,null,null,null,null,null,null,null,null,"VKF Zertifikat Nr.",null,null,null,null,null,null,null,null,null,{"$f":"'Allgemeine Daten'!AP71:AZ71","v":0}]
[]
[null,null,null,null,null,null,null,null,null,"E-Mail",null,null,null,null,null,null,{"$f":"'Allgemeine Daten'!Q73:AD73","v":0},null,null,null,null,null,null,null,null,null,null,null,null,null,null,null,null,null,null,null,null,"Tel. direkt",null,null,null,{"$f":"'Allgemeine Daten'!AP73:AZ73","v":0}]
[]
[]
["3.","Fachfirma für die Planung von Sprinkleranlagen",null,null,null,null,null,null,null,"Firma",null,null,null,null,null,null,{"$f":"'Allgemeine Daten'!Q76:AD76","v":0},null,null,null,null,null,null,null,null,null,null,null,null,null,null,"VKF Anerkennung Nr.",null,null,null,null,null,null,null,null,null,{"$f":"'Allgemeine Daten'!AP76:AZ76","v":0}]
[]
[null,null,null,null,null,null,null,null,null,"Strasse",null,null,null,null,null,null,{"$f":"'Allgemeine Daten'!Q78:AD78","v":0},null,null,null,null,null,null,null,null,null,null,null,null,null,null,"Nr.",null,{"$f":"'Allgemeine Daten'!AH78:AJ78","v":0},null,null,null,"Tel.",null,null,null,{"$f":"'Allgemeine Daten'!AP78:AZ78","v":0}]
[]
[null,null,null,null,null,null,null,null,null,"Ort",null,null,null,null,null,null,{"$f":"'Allgemeine Daten'!Q80:AD80","v":0},null,null,null,null,null,null,null,null,null,null,null,null,null,null,"PLZ",null,{"$f":"'Allgemeine Daten'!AH80:AJ80","v":0},null,null,null,"Fax",null,null,null,{"$f":"'Allgemeine Daten'!AP80:AZ80","v":0}]
[]
[]
[null,null,null,null,null,null,null,null,null,"Zuständige Person",null,null,null,null,null,null,{"$f":"'Allgemeine Daten'!Q83:AD83","v":0},null,null,null,null,null,null,null,null,null,null,null,null,null,null,"VKF Zertifikat Nr.",null,null,null,null,null,null,null,null,null,{"$f":"'Allgemeine Daten'!AP83:AZ83","v":0}]
[]
[null,null,null,null,null,null,null,null,null,"E-Mail",null,null,null,null,null,null,{"$f":"'Allgemeine Daten'!Q85:AD85","v":0},null,null,null,null,null,null,null,null,null,null,null,null,null,null,null,null,null,null,null,null,"Tel. direkt",null,null,null,{"$f":"'Allgemeine Daten'!AP85:AZ85","v":0}]
[]
[]
["4.","Fachfirma für die Errichtung von Sprinkleranlagen",null,null,null,null,null,null,null,"Firma",null,null,null,null,null,null,{"$f":"'Allgemeine Daten'!Q88:AD88","v":0},null,null,null,null,null,null,null,null,null,null,null,null,null,null,"VKF Anerkennung Nr.",null,null,null,null,null,null,null,null,null,{"$f":"'Allgemeine Daten'!AP88:AZ88","v":0}]
[]
[null,null,null,null,null,null,null,null,null,"Strasse",null,null,null,null,null,null,{"$f":"'Allgemeine Daten'!Q90:AD90","v":0},null,null,null,null,null,null,null,null,null,null,null,null,null,null,"Nr.",null,{"$f":"'Allgemeine Daten'!AH90:AJ90","v":0},null,null,null,"Tel.",null,null,null,{"$f":"'Allgemeine Daten'!AP90:AZ90","v":0}]
[]
[null,null,null,null,null,null,null,null,null,"Ort",null,null,null,null,null,null,{"$f":"'Allgemeine Daten'!Q92:AD92","v":0},null,null,null,null,null,null,null,null,null,null,null,null,null,null,"PLZ",null,{"$f":"'Allgemeine Daten'!AH92:AJ92","v":0},null,null,null,"Fax",null,null,null,{"$f":"'Allgemeine Daten'!AP92:AZ92","v":0}]
[]
[]
[null,null,null,null,null,null,null,null,null,"Zuständige Person",null,null,null,null,null,null,{"$f":"'Allgemeine Daten'!Q95:AD95","v":0},null,null,null,null,null,null,null,null,null,null,null,null,null,null,"VKF Zertifikat Nr.",null,null,null,null,null,null,null,null,null,{"$f":"'Allgemeine Daten'!AP95:AZ95","v":0}]
[]
[null,null,null,null,null,null,null,null,null,"E-Mail",null,null,null,null,null,null,{"$f":"'Allgemeine Daten'!Q97:AD97","v":0},null,null,null,null,null,null,null,null,null,null,null,null,null,null,null,null,null,null,null,null,"Tel. direkt",null,null,null,{"$f":"'Allgemeine Daten'!AP97:AZ97","v":0}]
[]
[]
["5.","Eigentümer- und Nutzerschaft",null,null,null,null,null,null,null,"Name",null,null,null,null,null,null,{"$f":"'Allgemeine Daten'!Q14:AD14","v":0}]
[]
[null,null,null,null,null,null,null,null,null,"Strasse",null,null,null,null,null,null,{"$f":"'Allgemeine Daten'!Q16:AD16","v":0},null,null,null,null,null,null,null,null,null,null,null,null,null,null,"Nr.",null,{"$f":"'Allgemeine Daten'!AH16:AJ16","v":0},null,null,null,"Tel.",null,null,null,{"$f":"'Allgemeine Daten'!AP16:AZ16","v":0}," -"]
[]
[null,null,null,null,null,null,null,null,null,"Ort",null,null,null,null,null,null,{"$f":"'Allgemeine Daten'!Q18:AD18","v":0},null,null,null,null,null,null,null,null,null,null,null,null,null,null,"PLZ",null,{"$f":"'Allgemeine Daten'!AH18:AJ18","v":0},null,null,null,"Fax",null,null,null,{"$f":"'Allgemeine Daten'!AP18:AZ18","v":0}," -"]
[]
[]
[null,null,null,null,null,null,null,null,null,"Zuständige Person",null,null,null,null,null,null,{"$f":"'Allgemeine Daten'!Q21:AD21","v":0}]
[]
[null,null,null,null,null,null,null,null,null,"E-Mail",null,null,null,null,null,null,{"$f":"'Allgemeine Daten'!Q23:AD23","v":0},null,null,null,null,null,null,null,null,null,null,null,null,null,null,null,null,null,null,null,null,"Tel. direkt",null,null,null,{"$f":"'Allgemeine Daten'!AP23:AZ23","v":0}," -"]
[]
[]
["6.","Vertreter",null,null,null,null,null,null,null,"Firma",null,null,null,null,null,null,{"$f":"'Allgemeine Daten'!Q26:AD26","v":0}]
[]
[null,null,null,null,null,null,null,null,null,"Strasse",null,null,null,null,null,null,{"$f":"'Allgemeine Daten'!Q28:AD28","v":0},null,null,null,null,null,null,null,null,null,null,null,null,null,null,"Nr.",null,{"$f":"'Allgemeine Daten'!AH28:AJ28","v":0},null,null,null,"Tel.",null,null,null,{"$f":"'Allgemeine Daten'!AP28:AZ28","v":0}," -"]
[]
[null,null,null,null,null,null,null,null,null,"Ort",null,null,null,null,null,null,{"$f":"'Allgemeine Daten'!Q30:AD30","v":0},null,null,null,null,null,null,null,null,null,null,null,null,null,null,"PLZ",null,{"$f":"'Allgemeine Daten'!AH30:AJ30","v":0},null,null,null,"Fax",null,null,null,{"$f":"'Allgemeine Daten'!AP30:AZ30","v":0}," -"]
[]
[]
[null,null,null,null,null,null,null,null,null,"Zuständige Person",null,null,null,null,null,null,{"$f":"'Allgemeine Daten'!Q33:AD33","v":0}]
[]
[null,null,null,null,null,null,null,null,null,"E-Mail",null,null,null,null,null,null,{"$f":"'Allgemeine Daten'!Q35:AD35","v":0},null,null,null,null,null,null,null,null,null,null,null,null,null,null,null,null,null,null,null,null,"Tel. direkt",null,null,null,{"$f":"'Allgemeine Daten'!AP35:AZ35","v":0}," -"]
[]
[]
["7.","Sprinklerwart",null,null,null,null,null,null,null,"Firma",null,null,null,null,null,null,{"$f":"'Allgemeine Daten'!Q100:AD100","v":0}]
[]
[null,null,null,null,null,null,null,null,null,"Strasse",null,null,null,null,null,null,{"$f":"'Allgemeine Daten'!Q102:AD102","v":0},null,null,null,null,null,null,null,null,null,null,null,null,null,null,"Nr.",null,{"$f":"'Allgemeine Daten'!AH102:AJ102","v":0},null,null,null,"Tel.",null,null,null,{"$f":"'Allgemeine Daten'!AQ102:AZ102","v":{"$error":"#VALUE!"}}]
[]
[null,null,null,null,null,null,null,null,null,"Ort",null,null,null,null,null,null,{"$f":"'Allgemeine Daten'!Q104:AD104","v":0},null,null,null,null,null,null,null,null,null,null,null,null,null,null,"PLZ",null,{"$f":"'Allgemeine Daten'!AH104:AJ104","v":0},null,null,null,"Fax",null,null,null,{"$f":"'Allgemeine Daten'!AQ104:AZ104","v":{"$error":"#VALUE!"}}]
[]
[]
[null,null,null,null,null,null,null,null,null,"Zuständige Person",null,null,null,null,null,null,{"$f":"'Allgemeine Daten'!Q107:AD107","v":0}]
[]
[null,null,null,null,null,null,null,null,null,"E-Mail",null,null,null,null,null,null,{"$f":"'Allgemeine Daten'!Q109:AD109","v":0},null,null,null,null,null,null,null,null,null,null,null,null,null,null,null,null,null,null,null,null,"Tel. direkt",null,null,null,{"$f":"'Allgemeine Daten'!AQ109:AZ109","v":{"$error":"#VALUE!"}}]
[]
[]
["7","Brandschutz-behörde",null,null,null,null,null,null,null,"Firma",null,null,null,null,null,null,{"$f":"'Allgemeine Daten'!Q117:AD117","v":0}]
[]
[null,null,null,null,null,null,null,null,null,"Strasse",null,null,null,null,null,null,{"$f":"'Allgemeine Daten'!Q119:AD119","v":0},null,null,null,null,null,null,null,null,null,null,null,null,null,null,"Nr.",null,{"$f":"'Allgemeine Daten'!AH119:AJ119","v":0},null,null,null,"Tel.",null,null,null,{"$f":"'Allgemeine Daten'!AQ119:AZ119","v":{"$error":"#VALUE!"}}]
[]
[null,null,null,null,null,null,null,null,null,"Ort",null,null,null,null,null,null,{"$f":"'Allgemeine Daten'!Q121:AD121","v":0},null,null,null,null,null,null,null,null,null,null,null,null,null,null,"PLZ",null,{"$f":"'Allgemeine Daten'!AH121:AJ121","v":0},null,null,null,"Fax",null,null,null,{"$f":"'Allgemeine Daten'!AQ121:AZ121","v":{"$error":"#VALUE!"}}]
[]
[]
[null,null,null,null,null,null,null,null,null,"Zuständige Person",null,null,null,null,null,null,{"$f":"'Allgemeine Daten'!Q124:AD124","v":0}]
[]
[null,null,null,null,null,null,null,null,null,"E-Mail",null,null,null,null,null,null,{"$f":"'Allgemeine Daten'!Q126:AD126","v":0},null,null,null,null,null,null,null,null,null,null,null,null,null,null,null,null,null,null,null,null,"Tel. direkt",null,null,null,{"$f":"'Allgemeine Daten'!AQ126:AZ126","v":{"$error":"#VALUE!"}}]
[]
[]
["8","Inspektionsstelle",null,null,null,null,null,null,null,"Firma",null,null,null,null,null,null,{"$f":"'Allgemeine Daten'!Q129:AD129","v":0}]
[]
[null,null,null,null,null,null,null,null,null,"Strasse",null,null,null,null,null,null,{"$f":"'Allgemeine Daten'!Q131:AD131","v":0},null,null,null,null,null,null,null,null,null,null,null,null,null,null,"Nr.",null,{"$f":"'Allgemeine Daten'!AH131:AJ131","v":0},null,null,null,"Tel.",null,null,null,{"$f":"'Allgemeine Daten'!AQ131:AZ131","v":{"$error":"#VALUE!"}}]
[]
[null,null,null,null,null,null,null,null,null,"Ort",null,null,null,null,null,null,{"$f":"'Allgemeine Daten'!Q133:AD133","v":0},null,null,null,null,null,null,null,null,null,null,null,null,null,null,"PLZ",null,{"$f":"'Allgemeine Daten'!AH133:AJ133","v":0},null,null,null,"Fax",null,null,null,{"$f":"'Allgemeine Daten'!AQ133:AZ133","v":{"$error":"#VALUE!"}}]
[]
[]
[null,null,null,null,null,null,null,null,null,"Zuständige Person",null,null,null,null,null,null,{"$f":"'Allgemeine Daten'!Q136:AD136","v":0}]
[]
[null,null,null,null,null,null,null,null,null,"E-Mail",null,null,null,null,null,null,{"$f":"'Allgemeine Daten'!Q138:AD138","v":0},null,null,null,null,null,null,null,null,null,null,null,null,null,null,null,null,null,null,null,null,"Tel. direkt",null,null,null,{"$f":"'Allgemeine Daten'!AQ138:AZ138","v":{"$error":"#VALUE!"}}]
[]
[]
["7.","Ausführung ",null,null,null,null,null,null,null,"Projekt gemäss Formular Vorabklärung und Projektunterlagen vom"]
[]
[null,null,null,null,null,null,null,null,null,null,"Schriftliche Projektbegutachtung durch die Inspektionsstelle erfolgt am"]
[]
[null,null,null,null,null,null,null,null,null,null,"Gemäss Rücksprache mit der zuständigen Brandschutzbehörde/Inspektionsstelle wird keine Projektbegutachtung durchgeführt"]
[]
[null,null,null,null,null,null,null,null,null,null,"Rücksprache mit",null,null,null,null,null,null,null,null,null,null,null,null,null,null,null,null,null,null,null,null,null,null,"am"]
[]
[null,null,null,null,null,null,null,null,null,null,"Gemäss Rücksprache mit der zuständigen Brandschutzbehörde/Inspektionsstelle ist die schriftliche Projektbegutachtung ausstehend."]
[]
[null,null,null,null,null,null,null,null,null,null,"Rücksprache mit",null,null,null,null,null,null,null,null,null,null,null,null,null,null,null,null,null,null,null,null,null,null,"am"]
[]
[null,null,null,null,null,null,null,null,null,null,"Voraussichtlicher Termin"]
[]
[]
[null,null,null,null,null,null,null,null,null,"Hinweis: Bei systemrelevanten Abweichungen -wie Änderungen der Anlageart, von Nutzungen oder Löschmittelzusätze, ist das Ausführungsprojekt vor Ausführungsbeginn der Inspektionsstelle erneut zur Genehmigung einzureichen."]
[]
[null,null,null,null,null,null,null,null,null,null,"Die Fachfirma Planung bestätigt, dass das Ausführungsprojekt geprüft wurde. Dabei wurden keine systemrelevanten Abweichungen zum genehmigten Projekt festgestellt."]
[]
[null,null,null,null,null,null,null,null,null,null,"Abweichungen zum genehmigten Projekt, die nicht als sytemrelevant eingestuft wurden:"]
[]
[]
[]
[]
[]
[]
[]
[]
[]
[]
["8.","Voraussichtliche Termine",null,null,null,null,null,null,null,"Montagebeginn",null,null,null,null,null,null,null,null,null,null,null,"Inbetriebnahme"]
[]
[null,null,null,null,null,null,null,null,null,null,"Teilinbetriebnahme",null,null,null,null,null,null,"Bereich:"]
[]
[]
[]
["9.","Alarmübermittlung und interne Alarmierung",null,null,null,null,null,null,null,null,"vorhanden"]
[]
[null,null,null,null,null,null,null,null,null,null,"nicht vorhanden",null,null,null,null,null,null,null,null,null,"Zuständige Fachfirma für Brandmeldeanlagen"]
[]
[]
["10.","Verteiler",null,null,null,null,null,null,null,null,"Brandschutzbehörde",null,null,null,null,null,null,null,null,null,null,null,null,null,null,null,null,null,null,null,"Die Projektunterlagen sind durch den QS-Verantwortlichen Brandschutz an die zuständigen Stellen einzureichen (siehe Ziffer 4.1.3 lit.b BSR 11-15). Anzahl Dossiers sind mit der zuständigen Stelle abzuklären."]
[]
[null,null,null,null,null,null,null,null,null,null,"Fachstelle(n)"]
[]
[]
["11.","Unterschriften"]
[]
[null,"Anerkannte Fachfirma für die Planung von Sprinkleranlagen"]
[null,"Die Fachfirma bestätigt, dass das vorliegende Sprinklerprojekt gemäss den geltenden Brandschutzvorschriften und Vollzugsbestimmungen sowie dem verwendeten Stand der Technik geplant wurde."]
[]
[null,"Ort",null,null,null,null,null,null,null,null,null,null,null,null,null,null,null,"Datum"]
[]
[]
[]
[null,"Name der zuständigen Person"]
[]
[]
[]
[null,"Stempel und Unterschrift"]

{"sheet":"Installations-Attest","index":5,"n_rows":145,"n_cols":43,"rows_kept":145,"cut":false,"hidden":false,"merged":[[86,41,86,51],[95,9,101,51],[104,9,112,51],[89,41,89,51],[89,26,89,34],[89,24,89,25],[84,16,84,29],[86,16,86,29],[4,1,7,7],[17,16,17,29],[65,16,65,29],[65,33,65,35],[25,16,25,29],[17,33,17,35],[20,16,20,29],[25,1,27,7],[41,16,41,29],[41,33,41,35],[22,16,22,29],[29,16,29,29],[29,33,29,35],[32,16,32,29],[34,16,34,29],[27,16,27,29],[1,35,1,50],[4,41,4,51],[6,16,6,28],[6,33,6,35],[6,41,6,51],[8,16,8,28],[8,33,8,35],[8,41,8,51],[4,16,4,35],[27,33,27,35],[37,16,37,29],[39,16,39,29],[49,1,51,7],[49,16,49,29],[51,16,51,29],[63,33,63,35],[15,41,15,51],[17,41,17,51],[20,41,20,51],[22,41,22,51],[25,41,25,51],[27,41,27,51],[29,41,29,51],[13,1,15,7],[15,16,15,29],[15,33,15,35],[146,1,151,22],[89,1,89,7],[104,1,104,7],[131,1,131,7],[138,1,138,15],[138,17,138,22],[89,38,89,39],[122,10,122,26],[120,10,120,26],[116,9,118,50],[128,10,128,27],[128,31,128,51],[135,1,135,22],[142,1,142,22],[82,41,82,51],[75,16,75,29],[75,33,75,35],[53,16,53,29],[53,33,53,35],[73,1,75,7],[73,16,73,29],[61,16,61,29],[77,16,77,29],[77,33,77,35],[80,16,80,29],[82,16,82,29],[56,16,56,29],[58,16,58,29],[70,16,70,29],[63,16,63,29],[68,16,68,29],[10,41,10,51],[53,41,53,51],[58,41,58,51],[61,1,61,7],[63,41,63,51],[65,41,65,51],[70,41,70,51],[75,41,75,51],[77,41,77,51],[32,41,32,51],[34,41,34,51],[37,1,39,7],[37,41,37,51],[39,41,39,51],[41,41,41,51],[44,41,44,51],[46,41,46,51],[51,41,51,51],[39,33,39,35],[44,16,44,29],[46,16,46,29],[51,33,51,35],[13,16,13,29],[13,41,13,51]]}
[null,null,null,null,null,null,null,null,null,"Sprinkleranlage "]
[null,null,null,null,null,null,null,null,null,"Installations-Attest Ziffer 5.1 Abs.3 BSR 19-15 "]
[]
[]
["1.","Geschütztes              Gebäude",null,null,null,null,null,null,null,"Objekt",null,null,null,null,null,null,{"$f":"'Allgemeine Daten'!Q5:AJ5","v":0},null,null,null,null,null,null,null,null,null,null,null,null,null,null,null,null,null,null,null,null,"Vers.- Nr.",null,null,null,{"$f":"'Allgemeine Daten'!AP5:AZ5","v":0}]
[]
[null,null,null,null,null,null,null,null,null,"Strasse",null,null,null,null,null,null,{"$f":"'Allgemeine Daten'!Q7:AC7","v":0},null,null,null,null,null,null,null,null,null,null,null,null,null,null,"Nr.",null,{"$f":"'Allgemeine Daten'!AH7:AJ7","v":0},null,null,null,"Anlage Nr.",null,null,null,{"$f":"'Allgemeine Daten'!AP7:AZ7","v":0}]
[]
[null,null,null,null,null,null,null,null,null,"Ort",null,null,null,null,null,null,{"$f":"'Allgemeine Daten'!Q9:AC9","v":0},null,null,null,null,null,null,null,null,null,null,null,null,null,null,"PLZ",null,{"$f":"'Allgemeine Daten'!AH9:AJ9","v":0},null,null,null,"Kataster Nr.",null,null,null,{"$f":"'Allgemeine Daten'!AP9:AZ9","v":0}]
[]
[null,null,null,null,null,null,null,null,null,"Qualitätssicherungsstufe ",null,null,null,null,null,null,null," QSS",null,{"$f":"'Allgemeine Daten'!S11","v":" -"},null,null,null,null,null,null,{"$f":"'Allgemeine Daten'!AB11","v":0},null,null,null,null,null,{"$f":"'Allgemeine Daten'!AH11","v":0},null,null,null,null,"EGID Nr.",null,null,null,{"$f":"'Allgemeine Daten'!AP11:AZ11","v":0}]
[]
[]
["2.","QS-Verantwortlicher Brandschutz",null,null,null,null,null,null,null,"Firma",null,null,null,null,null,null,{"$f":"'Allgemeine Daten'!Q64:AD64","v":0},null,null,null,null,null,null,null,null,null,null,null,null,null,null,"VKF Anerkennung Nr.",null,null,null,null,null,null,null,null,null,{"$f":"'Allgemeine Daten'!AP64:AZ64","v":0}]
[]
[null,null,null,null,null,null,null,null,null,"Strasse",null,null,null,null,null,null,{"$f":"'Allgemeine Daten'!Q66:AD66","v":0},null,null,null,null,null,null,null,null,null,null,null,null,null,null,"Nr.",null,{"$f":"'Allgemeine Daten'!AH66:AJ66","v":0},null,null,null,"Tel.",null,null,null,{"$f":"'Allgemeine Daten'!AP66:AZ66","v":0}]
[]
[null,null,null,null,null,null,null,null,null,"Ort",null,null,null,null,null,null,{"$f":"'Allgemeine Daten'!Q68:AD68","v":0},null,null,null,null,null,null,null,null,null,null,null,null,null,null,"PLZ",null,{"$f":"'Allgemeine Daten'!AH68:AJ68","v":0},null,null,null,"Fax",null,null,null,{"$f":"'Allgemeine Daten'!AP68:AZ68","v":0}]
[]
[]
[null,null,null,null,null,null,null,null,null,"Zuständige Person",null,null,null,null,null,null,{"$f":"'Allgemeine Daten'!Q71:AD71","v":0},null,null,null,null,null,null,null,null,null,null,null,null,null,null,"VKF Zertifikat Nr.",null,null,null,null,null,null,null,null,null,{"$f":"'Allgemeine Daten'!AP71:AZ71","v":0}]
[]
[null,null,null,null,null,null,null,null,null,"E-Mail",null,null,null,null,null,null,{"$f":"'Allgemeine Daten'!Q73:AD73","v":0},null,null,null,null,null,null,null,null,null,null,null,null,null,null,null,null,null,null,null,null,"Tel. direkt",null,null,null,{"$f":"'Allgemeine Daten'!AP73:AZ73","v":0}]
[]
[]
["3.","Fachfirma für die Planung von Sprinkleranlagen",null,null,null,null,null,null,null,"Firma",null,null,null,null,null,null,{"$f":"'Allgemeine Daten'!Q76:AD76","v":0},null,null,null,null,null,null,null,null,null,null,null,null,null,null,"VKF Anerkennung Nr.",null,null,null,null,null,null,null,null,null,{"$f":"'Allgemeine Daten'!AP76:AZ76","v":0}]
[]
[null,null,null,null,null,null,null,null,null,"Strasse",null,null,null,null,null,null,{"$f":"'Allgemeine Daten'!Q78:AD78","v":0},null,null,null,null,null,null,null,null,null,null,null,null,null,null,"Nr.",null,{"$f":"'Allgemeine Daten'!AH78:AJ78","v":0},null,null,null,"Tel.",null,null,null,{"$f":"'Allgemeine Daten'!AP78:AZ78","v":0}]
[]
[null,null,null,null,null,null,null,null,null,"Ort",null,null,null,null,null,null,{"$f":"'Allgemeine Daten'!Q80:AD80","v":0},null,null,null,null,null,null,null,null,null,null,null,null,null,null,"PLZ",null,{"$f":"'Allgemeine Daten'!AH80:AJ80","v":0},null,null,null,"Fax",null,null,null,{"$f":"'Allgemeine Daten'!AP80:AZ80","v":0}]
[]
[]
[null,null,null,null,null,null,null,null,null,"Zuständige Person",null,null,null,null,null,null,{"$f":"'Allgemeine Daten'!Q83:AD83","v":0},null,null,null,null,null,null,null,null,null,null,null,null,null,null,"VKF Zertifikat Nr.",null,null,null,null,null,null,null,null,null,{"$f":"'Allgemeine Daten'!AP83:AZ83","v":0}]
[]
[null,null,null,null,null,null,null,null,null,"E-Mail",null,null,null,null,null,null,{"$f":"'Allgemeine Daten'!Q85:AD85","v":0},null,null,null,null,null,null,null,null,null,null,null,null,null,null,null,null,null,null,null,null,"Tel. direkt",null,null,null,{"$f":"'Allgemeine Daten'!AP85:AZ85","v":0}]
[]
[]
["4.","Fachfirma für die Errichtung von Sprinkleranlagen",null,null,null,null,null,null,null,"Firma",null,null,null,null,null,null,{"$f":"'Allgemeine Daten'!Q88:AD88","v":0},null,null,null,null,null,null,null,null,null,null,null,null,null,null,"VKF Anerkennung Nr.",null,null,null,null,null,null,null,null,null,{"$f":"'Allgemeine Daten'!AP88:AZ88","v":0}]
[]
[null,null,null,null,null,null,null,null,null,"Strasse",null,null,null,null,null,null,{"$f":"'Allgemeine Daten'!Q90:AD90","v":0},null,null,null,null,null,null,null,null,null,null,null,null,null,null,"Nr.",null,{"$f":"'Allgemeine Daten'!AH90:AJ90","v":0},null,null,null,"Tel.",null,null,null,{"$f":"'Allgemeine Daten'!AP90:AZ90","v":0}]
[]
[null,null,null,null,null,null,null,null,null,"Ort",null,null,null,null,null,null,{"$f":"'Allgemeine Daten'!Q92:AD92","v":0},null,null,null,null,null,null,null,null,null,null,null,null,null,null,"PLZ",null,{"$f":"'Allgemeine Daten'!AH92:AJ92","v":0},null,null,null,"Fax",null,null,null,{"$f":"'Allgemeine Daten'!AP92:AZ92","v":0}]
[]
[]
[null,null,null,null,null,null,null,null,null,"Zuständige Person",null,null,null,null,null,null,{"$f":"'Allgemeine Daten'!Q95:AD95","v":0},null,null,null,null,null,null,null,null,null,null,null,null,null,null,"VKF Zertifikat Nr.",null,null,null,null,null,null,null,null,null,{"$f":"'Allgemeine Daten'!AP95:AZ95","v":0}]
[]
[null,null,null,null,null,null,null,null,null,"E-Mail",null,null,null,null,null,null,{"$f":"'Allgemeine Daten'!Q97:AD97","v":0},null,null,null,null,null,null,null,null,null,null,null,null,null,null,null,null,null,null,null,null,"Tel. direkt",null,null,null,{"$f":"'Allgemeine Daten'!AP97:AZ97","v":0}]
[]
[]
["5.","Eigentümer- und Nutzerschaft",null,null,null,null,null,null,null,"Name",null,null,null,null,null,null,{"$f":"'Allgemeine Daten'!Q14:AD14","v":0}]
[]
[null,null,null,null,null,null,null,null,null,"Strasse",null,null,null,null,null,null,{"$f":"'Allgemeine Daten'!Q16:AD16","v":0},null,null,null,null,null,null,null,null,null,null,null,null,null,null,"Nr.",null,{"$f":"'Allgemeine Daten'!AH16:AJ16","v":0},null,null,null,"Tel.",null,null,null,{"$f":"'Allgemeine Daten'!AP16:AZ16","v":0}]
[]
[null,null,null,null,null,null,null,null,null,"Ort",null,null,null,null,null,null,{"$f":"'Allgemeine Daten'!Q18:AD18","v":0},null,null,null,null,null,null,null,null,null,null,null,null,null,null,"PLZ",null,{"$f":"'Allgemeine Daten'!AH18:AJ18","v":0},null,null,null,"Fax",null,null,null,{"$f":"'Allgemeine Daten'!AP18:AZ18","v":0}]
[]
[]
[null,null,null,null,null,null,null,null,null,"Zuständige Person",null,null,null,null,null,null,{"$f":"'Allgemeine Daten'!Q21:AD21","v":0}]
[]
[null,null,null,null,null,null,null,null,null,"E-Mail",null,null,null,null,null,null,{"$f":"'Allgemeine Daten'!Q23:AD23","v":0},null,null,null,null,null,null,null,null,null,null,null,null,null,null,null,null,null,null,null,null,"Tel. direkt",null,null,null,{"$f":"'Allgemeine Daten'!AP23:AZ23","v":0}]
[]
[]
["6.","Vertreter",null,null,null,null,null,null,null,"Firma",null,null,null,null,null,null,{"$f":"'Allgemeine Daten'!Q26:AD26","v":0}]
[]
[null,null,null,null,null,null,null,null,null,"Strasse",null,null,null,null,null,null,{"$f":"'Allgemeine Daten'!Q28:AD28","v":0},null,null,null,null,null,null,null,null,null,null,null,null,null,null,"Nr.",null,{"$f":"'Allgemeine Daten'!AH28:AJ28","v":0},null,null,null,"Tel.",null,null,null,{"$f":"'Allgemeine Daten'!AP28:AZ28","v":0}]
[]
[null,null,null,null,null,null,null,null,null,"Ort",null,null,null,null,null,null,{"$f":"'Allgemeine Daten'!Q30:AD30","v":0},null,null,null,null,null,null,null,null,null,null,null,null,null,null,"PLZ",null,{"$f":"'Allgemeine Daten'!AH30:AJ30","v":0},null,null,null,"Fax",null,null,null,{"$f":"'Allgemeine Daten'!AP30:AZ30","v":0}]
[]
[]
[null,null,null,null,null,null,null,null,null,"Zuständige Person",null,null,null,null,null,null,{"$f":"'Allgemeine Daten'!Q33:AD33","v":0}]
[]
[null,null,null,null,null,null,null,null,null,"E-Mail",null,null,null,null,null,null,{"$f":"'Allgemeine Daten'!Q35:AD35","v":0},null,null,null,null,null,null,null,null,null,null,null,null,null,null,null,null,null,null,null,null,"Tel. direkt",null,null,null,{"$f":"'Allgemeine Daten'!AP35:AZ35","v":0}]
[]
[]
["7.","Sprinklerwart",null,null,null,null,null,null,null,"Firma",null,null,null,null,null,null,{"$f":"'Allgemeine Daten'!Q100:AD100","v":0}]
[]
[null,null,null,null,null,null,null,null,null,"Strasse",null,null,null,null,null,null,{"$f":"'Allgemeine Daten'!Q102:AD102","v":0},null,null,null,null,null,null,null,null,null,null,null,null,null,null,"Nr.",null,{"$f":"'Allgemeine Daten'!AH102:AJ102","v":0},null,null,null,"Tel.",null,null,null,{"$f":"'Allgemeine Daten'!AP102:AZ102","v":0}," -"]
[]
[null,null,null,null,null,null,null,null,null,"Ort",null,null,null,null,null,null,{"$f":"'Allgemeine Daten'!Q104:AD104","v":0},null,null,null,null,null,null,null,null,null,null,null,null,null,null,"PLZ",null,{"$f":"'Allgemeine Daten'!AH104:AJ104","v":0},null,null,null,"Fax",null,null,null,{"$f":"'Allgemeine Daten'!AP104:AZ104","v":0}," -"]
[]
[]
[null,null,null,null,null,null,null,null,null,"Zuständige Person",null,null,null,null,null,null,{"$f":"'Allgemeine Daten'!Q107:AD107","v":0}]
[]
[null,null,null,null,null,null,null,null,null,"E-Mail",null,null,null,null,null,null,{"$f":"'Allgemeine Daten'!Q109:AD109","v":0},null,null,null,null,null,null,null,null,null,null,null,null,null,null,null,null,null,null,null,null,"Tel. direkt",null,null,null,{"$f":"'Allgemeine Daten'!AP109:AZ109","v":0}," -"]
[]
[null,null,null,null,null,null,null,null,null,"Stellvertretung",null,null,null,null,null,null,{"$f":"'Allgemeine Daten'!Q111:AD111","v":0}]
[]
[null,null,null,null,null,null,null,null,null,"E-Mail",null,null,null,null,null,null,{"$f":"'Allgemeine Daten'!Q113:AD113","v":0},null,null,null,null,null,null,null,null,null,null,null,null,null,null,null,null,null,null,null,null,"Tel. direkt",null,null,null,{"$f":"'Allgemeine Daten'!AP113:AZ113","v":0}," -"]
[]
[]
["8.","Interne Abnahme",null,null,null,null,null,null,null,"Abnahme hat stattgefunden",null,null,null,null,null,null,null,null,null,"ja",null,null,"nein",null,"von",null,null,null,null,null,null,null,null,null,null,null,null,null,"wann"]
[]
[null,null,null,null,null,null,null,null,null,null,"keine Mängel festgestellt"]
[]
[null,null,null,null,null,null,null,null,null,null,"nicht gravierende Mängel vorhanden"]
[]
[]
[]
[]
[]
[]
[]
[]
[]
[]
["9.","Abweichungen"]
[]
[]
[]
[]
[]
[]
[]
[]
[]
[]
[]
["10.","Verteiler",null,null,null,null,null,null,null,"Das Installationsattest inklusive Beilagen sind durch den QS-Verantwortlichen Brandschutz an die zuständigen Stellen einzureichen (siehe BSR 11-15, Ziffer 4.1.3). Anzahl Dossiers sind mit der zuständigen Stelle abzuklären."]
[]
[]
[]
[null,null,null,null,null,null,null,null,null,null,"Brandschutzbehörde",null,null,null,null,null,null,null,null,null,null,null,null,null,null,null,null,null,null,null,"Beilagen:"]
[]
[null,null,null,null,null,null,null,null,null,null,"Fachstelle(n)",null,null,null,null,null,null,null,null,null,null,null,null,null,null,null,null,null,null,null,null,"Revidierte hydraulische Berechnungen mit Isometrieplänen"]
[]
[null,null,null,null,null,null,null,null,null,null,"Ortsfeuerwehr",null,null,null,null,null,null,null,null,null,null,null,null,null,null,null,null,null,null,null,null,"Aktualisiertes Brandschutz- / Sprinklerkonzept"]
[]
[null,null,null,null,null,null,null,null,null,null,"Wasserversorgung",null,null,null,null,null,null,null,null,null,null,null,null,null,null,null,null,null,null,null,null,"Formular Technische Daten"]
[]
[]
[]
[]
["11.","Unterschriften"]
[]
[null,"VKF anerkannte Fachfirma für Errichtung"]
[]
[null,"Die Fachfirma für Errichtung bestätigt, dass die Sprinkleranlage gemäss den Ausführungsplänen und dem angewendeten Stand der Technik erstellt wurde und der Sprinklerwart und dessen Stellvertreter instruiert worden sind."]
[null,"Ort",null,null,null,null,null,null,null,null,null,null,null,null,null,null,null,"Datum"]
[]
[]
[]
[null,"Name der zuständigen Person"]
[]
[]
[]
[null,"Stempel und Unterschrift"]

{"sheet":"Beurteilungs-Attest","index":6,"n_rows":1424,"n_cols":49,"rows_kept":1424,"cut":false,"hidden":false,"merged":[[2,16,2,17],[4,1,7,7],[4,16,4,35],[17,16,17,29],[17,33,17,35],[20,16,20,29],[22,16,22,29],[13,1,15,7],[13,16,13,29],[15,16,15,29],[25,1,27,7],[29,16,29,29],[29,33,29,35],[32,16,32,29],[63,33,63,35],[65,16,65,29],[65,33,65,35],[61,1,61,7],[49,1,51,7],[49,16,49,29],[51,16,51,29],[51,33,51,35],[41,16,41,29],[41,33,41,35],[44,16,44,29],[34,16,34,29],[37,1,39,7],[37,16,37,29],[39,16,39,29],[39,33,39,35],[73,1,75,7],[73,16,73,29],[75,16,75,29],[75,33,75,35],[61,16,61,29],[70,41,70,51],[82,16,82,29],[84,16,84,29],[98,16,98,29],[86,16,86,29],[86,41,86,51],[120,1,120,7],[105,16,105,29],[105,33,105,35],[110,16,110,29],[105,41,105,51],[110,41,110,51],[108,16,108,26],[108,27,108,29],[77,41,77,51],[101,1,103,7],[101,16,101,29],[103,16,103,29],[103,33,103,35],[75,41,75,51],[98,41,98,51],[103,41,103,51],[89,1,91,7],[89,16,89,29],[91,16,91,29],[91,33,91,35],[93,16,93,29],[167,1,167,5],[146,9,146,50],[149,9,149,50],[151,9,151,50],[153,9,153,50],[140,1,140,4],[140,9,140,50],[144,9,144,50],[137,16,137,32],[133,32,133,40],[127,1,129,7],[127,16,127,19],[127,25,127,28],[129,16,129,19],[129,25,129,28],[131,16,131,51],[113,1,116,7],[115,16,117,51],[93,33,93,35],[91,41,91,51],[82,41,82,51],[93,41,93,51],[96,16,96,29],[201,19,201,20],[201,21,201,22],[201,23,201,24],[201,25,201,26],[164,9,164,51],[182,45,182,51],[158,14,158,51],[160,9,160,51],[162,9,162,51],[195,19,195,20],[195,21,195,22],[195,23,195,24],[195,25,195,26],[198,19,198,20],[198,21,198,22],[198,23,198,24],[198,25,198,26],[182,28,182,40],[169,10,169,26],[171,10,171,26],[177,10,177,26],[184,28,186,51],[4,41,4,51],[6,16,6,28],[6,33,6,35],[6,41,6,51],[8,16,8,28],[8,33,8,35],[8,41,8,51],[65,41,65,51],[15,33,15,35],[13,41,13,51],[34,41,34,51],[37,41,37,51],[29,41,29,51],[32,41,32,51],[15,41,15,51],[17,41,17,51],[20,41,20,51],[22,41,22,51],[25,41,25,51],[27,41,27,51],[25,16,25,29],[27,16,27,29],[27,33,27,35],[63,16,63,29],[39,41,39,51],[10,41,10,51],[41,41,41,51],[53,33,53,35],[56,16,56,29],[58,16,58,29],[58,41,58,51],[46,16,46,29],[273,11,273,14],[273,15,273,18],[275,11,275,14],[275,15,275,18],[265,11,265,14],[265,15,265,18],[259,11,259,14],[259,15,259,18],[261,11,261,14],[261,15,261,18],[255,11,255,14],[255,15,255,18],[257,11,257,14],[257,15,257,18],[251,11,251,14],[251,15,251,18],[253,11,253,14],[253,15,253,18],[262,11,262,14],[262,15,262,18],[274,11,274,14],[274,15,274,18],[249,11,249,14],[249,15,249,18],[44,41,44,51],[46,41,46,51],[51,41,51,51],[53,41,53,51],[77,16,77,29],[77,33,77,35],[80,16,80,29],[68,16,68,29],[70,16,70,29],[63,41,63,51],[53,16,53,29],[212,11,212,14],[212,15,212,18],[212,19,212,28],[212,29,212,32],[212,33,212,37],[212,38,212,42],[216,11,216,14],[216,15,216,18],[216,19,216,28],[216,29,216,32],[216,33,216,37],[216,38,216,42],[220,11,220,14],[220,15,220,18],[220,19,220,28],[220,29,220,32],[220,33,220,37],[220,38,220,42],[224,11,224,14],[213,9,213,10],[213,11,213,14],[213,15,213,18],[213,19,213,28],[213,29,213,32],[213,33,213,37],[213,38,213,42],[207,9,208,10],[207,11,208,14],[207,15,208,18],[207,19,208,28],[207,29,208,32],[207,33,208,37],[207,38,208,42],[211,9,211,10],[211,11,211,14],[211,15,211,18],[211,19,211,28],[211,29,211,32],[211,33,211,37],[211,38,211,42],[217,9,217,10],[217,11,217,14],[217,15,217,18],[217,19,217,28],[217,29,217,32],[217,33,217,37],[217,38,217,42],[214,11,214,14],[214,15,214,18],[214,19,214,28],[214,29,214,32],[214,33,214,37],[214,38,214,42],[215,9,215,10],[215,11,215,14],[215,15,215,18],[215,19,215,28],[215,29,215,32],[215,33,215,37],[215,38,215,42],[221,9,221,10],[221,11,221,14],[221,15,221,18],[221,19,221,28],[221,29,221,32],[221,33,221,37],[221,38,221,42],[218,11,218,14],[218,15,218,18],[218,19,218,28],[218,29,218,32],[218,33,218,37],[218,38,218,42],[219,9,219,10],[219,11,219,14],[219,15,219,18],[219,19,219,28],[219,29,219,32],[219,33,219,37],[219,38,219,42],[224,15,224,18],[224,19,224,28],[224,29,224,32],[224,33,224,37],[224,38,224,42],[225,9,225,10],[225,11,225,14],[225,15,225,18],[225,19,225,28],[225,29,225,32],[225,33,225,37],[225,38,225,42],[222,11,222,14],[222,15,222,18],[222,19,222,28],[222,29,222,32],[222,33,222,37],[222,38,222,42],[223,9,223,10],[223,11,223,14],[223,15,223,18],[223,19,223,28],[223,29,223,32],[223,33,223,37],[223,38,223,42],[228,11,228,14],[228,15,228,18],[228,19,228,28],[228,29,228,32],[228,33,228,37],[228,38,228,42],[229,9,229,10],[229,11,229,14],[229,15,229,18],[229,19,229,28],[229,29,229,32],[229,33,229,37],[229,38,229,42],[226,11,226,14],[226,15,226,18],[226,19,226,28],[226,29,226,32],[226,33,226,37],[226,38,226,42],[227,9,227,10],[227,11,227,14],[227,15,227,18],[227,19,227,28],[227,29,227,32],[227,33,227,37],[227,38,227,42],[232,11,232,14],[232,15,232,18],[232,19,232,28],[232,29,232,32],[232,33,232,37],[232,38,232,42],[233,9,233,10],[233,11,233,14],[233,15,233,18],[233,19,233,28],[233,29,233,32],[233,33,233,37],[233,38,233,42],[230,11,230,14],[230,15,230,18],[230,19,230,28],[230,29,230,32],[230,33,230,37],[230,38,230,42],[231,9,231,10],[231,11,231,14],[231,15,231,18],[231,19,231,28],[231,29,231,32],[231,33,231,37],[231,38,231,42],[236,11,236,14],[236,15,236,18],[236,19,236,28],[236,29,236,32],[236,33,236,37],[236,38,236,42],[237,9,237,10],[237,11,237,14],[237,15,237,18],[237,19,237,28],[237,29,237,32],[237,33,237,37],[237,38,237,42],[234,11,234,14],[234,15,234,18],[234,19,234,28],[234,29,234,32],[234,33,234,37],[234,38,234,42],[235,9,235,10],[235,11,235,14],[235,15,235,18],[235,19,235,28],[235,29,235,32],[235,33,235,37],[235,38,235,42],[240,11,240,14],[240,15,240,18],[240,19,240,28],[240,29,240,32],[240,33,240,37],[240,38,240,42],[241,9,241,10],[241,11,241,14],[241,15,241,18],[241,19,241,28],[241,29,241,32],[241,33,241,37],[241,38,241,42],[238,11,238,14],[238,15,238,18],[238,19,238,28],[238,29,238,32],[238,33,238,37],[238,38,238,42],[239,9,239,10],[239,11,239,14],[239,15,239,18],[239,19,239,28],[239,29,239,32],[239,33,239,37],[239,38,239,42],[244,11,244,14],[244,15,244,18],[244,19,244,28],[244,29,244,32],[244,33,244,37],[244,38,244,42],[245,9,245,10],[245,11,245,14],[245,15,245,18],[245,19,245,28],[245,29,245,32],[245,33,245,37],[245,38,245,42],[242,11,242,14],[242,15,242,18],[242,19,242,28],[242,29,242,32],[242,33,242,37],[242,38,242,42],[243,9,243,10],[243,11,243,14],[243,15,243,18],[243,19,243,28],[243,29,243,32],[243,33,243,37],[243,38,243,42],[248,11,248,14],[248,15,248,18],[248,19,248,28],[248,29,248,32],[248,33,248,37],[248,38,248,42],[246,11,246,14],[246,15,246,18],[246,19,246,28],[246,29,246,32],[246,33,246,37],[246,38,246,42],[247,9,247,10],[247,11,247,14],[247,15,247,18],[247,19,247,28],[247,29,247,32],[247,33,247,37],[247,38,247,42],[277,11,277,14],[277,15,277,18],[277,19,277,28],[277,29,277,32],[277,33,277,37],[277,38,277,42],[278,11,278,14],[278,15,278,18],[278,19,278,28],[278,29,278,32],[278,33,278,37],[278,38,278,42],[276,11,276,14],[276,15,276,18],[276,19,276,28],[276,29,276,32],[276,33,276,37],[276,38,276,42],[293,19,293,20],[293,21,293,22],[293,23,293,24],[293,25,293,26],[290,19,290,20],[290,21,290,22],[290,23,290,24],[290,25,290,26],[281,11,281,14],[281,15,281,18],[281,19,281,28],[281,29,281,32],[281,33,281,37],[281,38,281,42],[279,11,279,14],[279,15,279,18],[279,19,279,28],[279,29,279,32],[279,33,279,37],[279,38,279,42],[280,11,280,14],[280,15,280,18],[280,19,280,28],[280,29,280,32],[280,33,280,37],[280,38,280,42],[307,11,307,14],[307,15,307,18],[307,19,307,28],[307,29,307,32],[307,33,307,37],[307,38,307,42],[296,19,296,20],[296,21,296,22],[296,23,296,24],[296,25,296,26],[300,12,300,28],[300,34,300,42],[302,9,303,10],[302,11,303,14],[302,15,303,18],[302,19,303,28],[302,29,303,32],[310,11,310,14],[310,15,310,18],[310,19,310,28],[310,29,310,32],[310,33,310,37],[310,38,310,42],[311,11,311,14],[311,15,311,18],[311,19,311,28],[311,29,311,32],[311,33,311,37],[311,38,311,42],[310,9,310,10],[308,11,308,14],[308,15,308,18],[308,19,308,28],[308,29,308,32],[308,33,308,37],[308,38,308,42],[309,11,309,14],[309,15,309,18],[309,19,309,28],[309,29,309,32],[309,33,309,37],[309,38,309,42],[308,9,308,10],[314,11,314,14],[314,15,314,18],[314,19,314,28],[314,29,314,32],[314,33,314,37],[314,38,314,42],[315,11,315,14],[315,15,315,18],[315,19,315,28],[315,29,315,32],[315,33,315,37],[315,38,315,42],[314,9,314,10],[312,11,312,14],[312,15,312,18],[312,19,312,28],[312,29,312,32],[312,33,312,37],[312,38,312,42],[313,11,313,14],[313,15,313,18],[313,19,313,28],[313,29,313,32],[313,33,313,37],[313,38,313,42],[312,9,312,10],[318,11,318,14],[318,15,318,18],[318,19,318,28],[318,29,318,32],[318,33,318,37],[318,38,318,42],[319,11,319,14],[319,15,319,18],[319,19,319,28],[319,29,319,32],[319,33,319,37],[319,38,319,42],[318,9,318,10],[316,11,316,14],[316,15,316,18],[316,19,316,28],[316,29,316,32],[316,33,316,37],[316,38,316,42],[317,11,317,14],[317,15,317,18],[317,19,317,28],[317,29,317,32],[317,33,317,37],[317,38,317,42],[316,9,316,10],[322,11,322,14],[322,15,322,18],[322,19,322,28],[322,29,322,32],[322,33,322,37],[322,38,322,42],[323,11,323,14],[323,15,323,18],[323,19,323,28],[323,29,323,32],[323,33,323,37],[323,38,323,42],[322,9,322,10],[320,11,320,14],[320,15,320,18],[320,19,320,28],[320,29,320,32],[320,33,320,37],[320,38,320,42],[321,11,321,14],[321,15,321,18],[321,19,321,28],[321,29,321,32],[321,33,321,37],[321,38,321,42],[320,9,320,10],[326,11,326,14],[326,15,326,18],[326,19,326,28],[326,29,326,32],[326,33,326,37],[326,38,326,42],[327,11,327,14],[327,15,327,18],[327,19,327,28],[327,29,327,32],[327,33,327,37],[327,38,327,42],[326,9,326,10],[324,11,324,14],[324,15,324,18],[324,19,324,28],[324,29,324,32],[324,33,324,37],[324,38,324,42],[325,11,325,14],[325,15,325,18],[325,19,325,28],[325,29,325,32],[325,33,325,37],[325,38,325,42],[324,9,324,10],[355,11,355,14],[355,15,355,18],[355,19,355,28],[355,29,355,32],[355,33,355,37],[355,38,355,42],[356,9,356,10],[356,11,356,14],[356,15,356,18],[356,19,356,28],[356,29,356,32],[356,33,356,37],[356,38,356,42],[342,9,342,10],[354,11,354,14],[354,15,354,18],[354,19,354,28],[354,29,354,32],[354,33,354,37],[354,38,354,42],[350,11,350,14],[350,15,350,18],[350,19,350,28],[350,29,350,32],[350,33,350,37],[350,38,350,42],[351,11,351,14],[351,15,351,18],[351,19,351,28],[344,15,344,18],[344,19,344,28],[344,29,344,32],[359,11,359,14],[359,15,359,18],[359,19,359,28],[359,29,359,32],[359,33,359,37],[359,38,359,42],[360,9,360,10],[360,11,360,14],[360,15,360,18],[360,19,360,28],[360,29,360,32],[360,33,360,37],[360,38,360,42],[357,11,357,14],[357,15,357,18],[357,19,357,28],[357,29,357,32],[357,33,357,37],[357,38,357,42],[358,9,358,10],[358,11,358,14],[358,15,358,18],[358,19,358,28],[358,29,358,32],[358,33,358,37],[358,38,358,42],[363,11,363,14],[363,15,363,18],[363,19,363,28],[363,29,363,32],[363,33,363,37],[363,38,363,42],[364,9,364,10],[364,11,364,14],[364,15,364,18],[364,19,364,28],[364,29,364,32],[364,33,364,37],[364,38,364,42],[361,11,361,14],[361,15,361,18],[361,19,361,28],[361,29,361,32],[361,33,361,37],[361,38,361,42],[362,9,362,10],[362,11,362,14],[362,15,362,18],[362,19,362,28],[362,29,362,32],[362,33,362,37],[362,38,362,42],[367,11,367,14],[367,15,367,18],[367,19,367,28],[367,29,367,32],[367,33,367,37],[367,38,367,42],[368,9,368,10],[368,11,368,14],[368,15,368,18],[368,19,368,28],[368,29,368,32],[368,33,368,37],[368,38,368,42],[366,9,366,10],[366,11,366,14],[366,15,366,18],[366,19,366,28],[366,29,366,32],[366,33,366,37],[366,38,366,42],[371,11,371,14],[371,15,371,18],[371,19,371,28],[371,29,371,32],[371,33,371,37],[371,38,371,42],[372,9,372,10],[372,11,372,14],[372,15,372,18],[372,19,372,28],[372,29,372,32],[372,33,372,37],[372,38,372,42],[369,11,369,14],[369,15,369,18],[369,19,369,28],[369,29,369,32],[369,33,369,37],[369,38,369,42],[370,9,370,10],[370,11,370,14],[370,15,370,18],[370,19,370,28],[370,29,370,32],[370,33,370,37],[370,38,370,42],[375,11,375,14],[375,15,375,18],[375,19,375,28],[375,29,375,32],[375,33,375,37],[375,38,375,42],[376,9,376,10],[376,11,376,14],[376,15,376,18],[376,19,376,28],[376,29,376,32],[376,33,376,37],[376,38,376,42],[373,11,373,14],[373,15,373,18],[373,19,373,28],[373,29,373,32],[373,33,373,37],[373,38,373,42],[374,9,374,10],[374,11,374,14],[374,15,374,18],[374,19,374,28],[374,29,374,32],[374,33,374,37],[374,38,374,42],[402,11,402,14],[402,15,402,18],[402,19,402,28],[402,29,402,32],[402,33,402,37],[402,38,402,42],[403,9,403,10],[403,11,403,14],[403,15,403,18],[403,19,403,28],[403,29,403,32],[403,33,403,37],[403,38,403,42],[397,9,398,10],[397,11,398,14],[397,15,398,18],[397,19,398,28],[397,29,398,32],[397,33,398,37],[397,38,398,42],[401,9,401,10],[401,11,401,14],[401,15,401,18],[401,19,401,28],[401,29,401,32],[401,33,401,37],[401,38,401,42],[406,11,406,14],[406,15,406,18],[406,19,406,28],[406,29,406,32],[406,33,406,37],[406,38,406,42],[407,9,407,10],[407,11,407,14],[407,15,407,18],[407,19,407,28],[407,29,407,32],[407,33,407,37],[407,38,407,42],[404,11,404,14],[404,15,404,18],[404,19,404,28],[404,29,404,32],[404,33,404,37],[404,38,404,42],[405,9,405,10],[405,11,405,14],[405,15,405,18],[405,19,405,28],[405,29,405,32],[405,33,405,37],[405,38,405,42],[410,11,410,14],[410,15,410,18],[410,19,410,28],[410,29,410,32],[410,33,410,37],[410,38,410,42],[411,9,411,10],[411,11,411,14],[411,15,411,18],[411,19,411,28],[411,29,411,32],[411,33,411,37],[411,38,411,42],[408,11,408,14],[408,15,408,18],[408,19,408,28],[408,29,408,32],[408,33,408,37],[408,38,408,42],[409,9,409,10],[409,11,409,14],[409,15,409,18],[409,19,409,28],[409,29,409,32],[409,33,409,37],[409,38,409,42],[414,11,414,14],[414,15,414,18],[414,19,414,28],[414,29,414,32],[414,33,414,37],[414,38,414,42],[415,9,415,10],[415,11,415,14],[415,15,415,18],[415,19,415,28],[415,29,415,32],[415,33,415,37],[415,38,415,42],[412,11,412,14],[412,15,412,18],[412,19,412,28],[412,29,412,32],[412,33,412,37],[412,38,412,42],[413,9,413,10],[413,11,413,14],[413,15,413,18],[413,19,413,28],[413,29,413,32],[413,33,413,37],[413,38,413,42],[418,11,418,14],[418,15,418,18],[418,19,418,28],[418,29,418,32],[418,33,418,37],[418,38,418,42],[419,9,419,10],[419,11,419,14],[419,15,419,18],[419,19,419,28],[419,29,419,32],[419,33,419,37],[419,38,419,42],[416,11,416,14],[416,15,416,18],[416,19,416,28],[416,29,416,32],[416,33,416,37],[416,38,416,42],[417,9,417,10],[417,11,417,14],[417,15,417,18],[417,19,417,28],[417,29,417,32],[417,33,417,37],[417,38,417,42],[422,11,422,14],[422,15,422,18],[422,19,422,28],[422,29,422,32],[422,33,422,37],[422,38,422,42],[423,9,423,10],[423,11,423,14],[423,15,423,18],[423,19,423,28],[423,29,423,32],[423,33,423,37],[423,38,423,42],[420,11,420,14],[420,15,420,18],[420,19,420,28],[420,29,420,32],[420,33,420,37],[420,38,420,42],[421,9,421,10],[421,11,421,14],[421,15,421,18],[421,19,421,28],[421,29,421,32],[421,33,421,37],[421,38,421,42],[426,11,426,14],[426,15,426,18],[426,19,426,28],[426,29,426,32],[426,33,426,37],[426,38,426,42],[427,9,427,10],[427,11,427,14],[427,15,427,18],[427,19,427,28],[427,29,427,32],[427,33,427,37],[427,38,427,42],[424,11,424,14],[424,15,424,18],[424,19,424,28],[424,29,424,32],[424,33,424,37],[424,38,424,42],[425,9,425,10],[425,11,425,14],[425,15,425,18],[425,19,425,28],[425,29,425,32],[425,33,425,37],[425,38,425,42],[430,11,430,14],[430,15,430,18],[430,19,430,28],[430,29,430,32],[430,33,430,37],[430,38,430,42],[431,9,431,10],[431,11,431,14],[431,15,431,18],[431,19,431,28],[431,29,431,32],[431,33,431,37],[431,38,431,42],[428,11,428,14],[428,15,428,18],[428,19,428,28],[428,29,428,32],[428,33,428,37],[428,38,428,42],[429,9,429,10],[429,11,429,14],[429,15,429,18],[429,19,429,28],[429,29,429,32],[429,33,429,37],[429,38,429,42],[434,19,434,28],[434,29,434,32],[434,33,434,37],[434,38,434,42],[435,9,435,10],[435,11,435,14],[435,15,435,18],[435,19,435,28],[435,29,435,32],[435,33,435,37],[435,38,435,42],[432,11,432,14],[432,15,432,18],[432,19,432,28],[432,29,432,32],[432,33,432,37]],"merged_total":6339,"flags":["merged_cut"]}
[null,null,null,null,null,null,null,null,null,"Sprinkleranlage "]
[null,null,null,null,null,null,null,null,null,"Beurteilungs-Attest"]
[]
[]
["1.","Geschütztes              Gebäude",null,null,null,null,null,null,null,"Objekt",null,null,null,null,null,null,{"$f":"'Allgemeine Daten'!Q5:AJ5","v":0},null,null,null,null,null,null,null,null,null,null,null,null,null,null,null,null,null,null,null,null,"Vers.- Nr."]
[]
[null,null,null,null,null,null,null,null,null,"Strasse",null,null,null,null,null,null,{"$f":"'Allgemeine Daten'!Q7:AC7","v":0},null,null,null,null,null,null,null,null,null,null,null,null,null,null,"Nr.",null,{"$f":"'Allgemeine Daten'!AH7:AJ7","v":0},null,null,null,"Anlage Nr.",null,null,null,{"$f":"'Allgemeine Daten'!AP7:AZ7","v":0}]
[]
[null,null,null,null,null,null,null,null,null,"Ort",null,null,null,null,null,null,{"$f":"'Allgemeine Daten'!Q9:AC9","v":0},null,null,null,null,null,null,null,null,null,null,null,null,null,null,"PLZ",null,{"$f":"'Allgemeine Daten'!AH9:AJ9","v":0},null,null,null,"Kataster Nr.",null,null,null,{"$f":"'Allgemeine Daten'!AP9:AZ9","v":0}]
[]
[null,null,null,null,null,null,null,null,null,"Qualitätssicherungsstufe ",null,null,null,null,null,null,null," QSS",null,{"$f":"'Allgemeine Daten'!S11","v":" -"},null,null,null,null,null,null,null,null,null,null,null,null,null,null,null,null,null,"EGID Nr.",null,null,null,{"$f":"'Allgemeine Daten'!AP11:AZ11","v":0}]
[]
[]
["2.","QS-Verantwortlicher Brandschutz",null,null,null,null,null,null,null,"Firma",null,null,null,null,null,null,{"$f":"'Allgemeine Daten'!Q64:AD64","v":0},null,null,null,null,null,null,null,null,null,null,null,null,null,null,"VKF Anerkennung Nr.",null,null,null,null,null,null,null,null,null,{"$f":"'Allgemeine Daten'!AP64:AZ64","v":0}]
[]
[null,null,null,null,null,null,null,null,null,"Strasse",null,null,null,null,null,null,{"$f":"'Allgemeine Daten'!Q66:AD66","v":0},null,null,null,null,null,null,null,null,null,null,null,null,null,null,"Nr.",null,{"$f":"'Allgemeine Daten'!AH66:AJ66","v":0},null,null,null,"Tel.",null,null,null,{"$f":"'Allgemeine Daten'!AP66:AZ66","v":0}]
[]
[null,null,null,null,null,null,null,null,null,"Ort",null,null,null,null,null,null,{"$f":"'Allgemeine Daten'!Q68:AD68","v":0},null,null,null,null,null,null,null,null,null,null,null,null,null,null,"PLZ",null,{"$f":"'Allgemeine Daten'!AH68:AJ68","v":0},null,null,null,"Fax",null,null,null,{"$f":"'Allgemeine Daten'!AP68:AZ68","v":0}]
[]
[]
[null,null,null,null,null,null,null,null,null,"Zuständige Person",null,null,null,null,null,null,{"$f":"'Allgemeine Daten'!Q71:AD71","v":0},null,null,null,null,null,null,null,null,null,null,null,null,null,null,"VKF Zertifikat Nr.",null,null,null,null,null,null,null,null,null,{"$f":"'Allgemeine Daten'!AP71:AZ71","v":0}]
[]
[null,null,null,null,null,null,null,null,null,"E-Mail",null,null,null,null,null,null,{"$f":"'Allgemeine Daten'!Q73:AD73","v":0},null,null,null,null,null,null,null,null,null,null,null,null,null,null,null,null,null,null,null,null,"Tel. direkt",null,null,null,{"$f":"'Allgemeine Daten'!AP73:AZ73","v":0}]
[]
[]
["3.","Fachfirma für die Planung von Sprinkleranlagen",null,null,null,null,null,null,null,"Firma",null,null,null,null,null,null,{"$f":"'Allgemeine Daten'!Q76:AD76","v":0},null,null,null,null,null,null,null,null,null,null,null,null,null,null,"VKF Anerkennung Nr.",null,null,null,null,null,null,null,null,null,{"$f":"'Allgemeine Daten'!AP76:AZ76","v":0}]
[]
[null,null,null,null,null,null,null,null,null,"Strasse",null,null,null,null,null,null,{"$f":"'Allgemeine Daten'!Q78:AD78","v":0},null,null,null,null,null,null,null,null,null,null,null,null,null,null,"Nr.",null,{"$f":"'Allgemeine Daten'!AH78:AJ78","v":0},null,null,null,"Tel.",null,null,null,{"$f":"'Allgemeine Daten'!AP78:AZ78","v":0}]
[]
[null,null,null,null,null,null,null,null,null,"Ort",null,null,null,null,null,null,{"$f":"'Allgemeine Daten'!Q80:AD80","v":0},null,null,null,null,null,null,null,null,null,null,null,null,null,null,"PLZ",null,{"$f":"'Allgemeine Daten'!AH80:AJ80","v":0},null,null,null,"Fax",null,null,null,{"$f":"'Allgemeine Daten'!AP80:AZ80","v":0}]
[]
[]
[null,null,null,null,null,null,null,null,null,"Zuständige Person",null,null,null,null,null,null,{"$f":"'Allgemeine Daten'!Q83:AD83","v":0},null,null,null,null,null,null,null,null,null,null,null,null,null,null,"VKF Zertifikat Nr.",null,null,null,null,null,null,null,null,null,{"$f":"'Allgemeine Daten'!AP83:AZ83","v":0}]
[]
[null,null,null,null,null,null,null,null,null,"E-Mail",null,null,null,null,null,null,{"$f":"'Allgemeine Daten'!Q85:AD85","v":0},null,null,null,null,null,null,null,null,null,null,null,null,null,null,null,null,null,null,null,null,"Tel. direkt",null,null,null,{"$f":"'Allgemeine Daten'!AP85:AZ85","v":0}]
[]
[]
["2.","Fachfirma für die Errichtung von Sprinkleranlagen",null,null,null,null,null,null,null,"Firma",null,null,null,null,null,null,{"$f":"'Allgemeine Daten'!Q88:AD88","v":0},null,null,null,null,null,null,null,null,null,null,null,null,null,null,"VKF Anerkennung Nr.",null,null,null,null,null,null,null,null,null,{"$f":"'Allgemeine Daten'!AP88:AZ88","v":0}]
[]
[null,null,null,null,null,null,null,null,null,"Strasse",null,null,null,null,null,null,{"$f":"'Allgemeine Daten'!Q90:AD90","v":0},null,null,null,null,null,null,null,null,null,null,null,null,null,null,"Nr.",null,{"$f":"'Allgemeine Daten'!AH90:AJ90","v":0},null,null,null,"Tel.",null,null,null,{"$f":"'Allgemeine Daten'!AP90:AZ90","v":0}]
[]
[null,null,null,null,null,null,null,null,null,"Ort",null,null,null,null,null,null,{"$f":"'Allgemeine Daten'!Q92:AD92","v":0},null,null,null,null,null,null,null,null,null,null,null,null,null,null,"PLZ",null,{"$f":"'Allgemeine Daten'!AH92:AJ92","v":0},null,null,null,"Fax",null,null,null,{"$f":"'Allgemeine Daten'!AP92:AZ92","v":0}]
[]
[]
[null,null,null,null,null,null,null,null,null,"Zuständige Person",null,null,null,null,null,null,{"$f":"'Allgemeine Daten'!Q95:AD95","v":0},null,null,null,null,null,null,null,null,null,null,null,null,null,null,"VKF Zertifikat Nr.",null,null,null,null,null,null,null,null,null,{"$f":"'Allgemeine Daten'!AP95:AZ95","v":0}]
[]
[null,null,null,null,null,null,null,null,null,"E-Mail",null,null,null,null,null,null,{"$f":"'Allgemeine Daten'!Q97:AD97","v":0},null,null,null,null,null,null,null,null,null,null,null,null,null,null,null,null,null,null,null,null,"Tel. direkt",null,null,null,{"$f":"'Allgemeine Daten'!AP97:AZ97","v":0}]
[]
[]
["3.","Eigentümer- und Nutzerschaft",null,null,null,null,null,null,null,"Name",null,null,null,null,null,null,{"$f":"'Allgemeine Daten'!Q14:AD14","v":0}]
[]
[null,null,null,null,null,null,null,null,null,"Strasse",null,null,null,null,null,null,{"$f":"'Allgemeine Daten'!Q16:AD16","v":0},null,null,null,null,null,null,null,null,null,null,null,null,null,null,"Nr.",null,{"$f":"'Allgemeine Daten'!AH16:AJ16","v":0},null,null,null,"Tel.",null,null,null,{"$f":"'Allgemeine Daten'!AP16:AZ16","v":0}]
[]
[null,null,null,null,null,null,null,null,null,"Ort",null,null,null,null,null,null,{"$f":"'Allgemeine Daten'!Q18:AD18","v":0},null,null,null,null,null,null,null,null,null,null,null,null,null,null,"PLZ",null,{"$f":"'Allgemeine Daten'!AH18:AJ18","v":0},null,null,null,"Fax",null,null,null,{"$f":"'Allgemeine Daten'!AP18:AZ18","v":0}]
[]
[]
[null,null,null,null,null,null,null,null,null,"Zuständige Person",null,null,null,null,null,null,{"$f":"'Allgemeine Daten'!Q21:AD21","v":0}]
[]
[null,null,null,null,null,null,null,null,null,"E-Mail",null,null,null,null,null,null,{"$f":"'Allgemeine Daten'!Q23:AD23","v":0},null,null,null,null,null,null,null,null,null,null,null,null,null,null,null,null,null,null,null,null,"Tel. direkt",null,null,null,{"$f":"'Allgemeine Daten'!AP23:AZ23","v":0}]
[]
[]
["4.","Vertreter",null,null,null,null,null,null,null,"Firma",null,null,null,null,null,null,{"$f":"'Allgemeine Daten'!Q26:AD26","v":0}]
[]
[null,null,null,null,null,null,null,null,null,"Strasse",null,null,null,null,null,null,{"$f":"'Allgemeine Daten'!Q28:AD28","v":0},null,null,null,null,null,null,null,null,null,null,null,null,null,null,"Nr.",null,{"$f":"'Allgemeine Daten'!AH28:AJ28","v":0},null,null,null,"Tel.",null,null,null,{"$f":"'Allgemeine Daten'!AP28:AZ28","v":0}]
[]
[null,null,null,null,null,null,null,null,null,"Ort",null,null,null,null,null,null,{"$f":"'Allgemeine Daten'!Q30:AD30","v":0},null,null,null,null,null,null,null,null,null,null,null,null,null,null,"PLZ",null,{"$f":"'Allgemeine Daten'!AH30:AJ30","v":0},null,null,null,"Fax",null,null,null,{"$f":"'Allgemeine Daten'!AP30:AZ30","v":0}]
[]
[]
[null,null,null,null,null,null,null,null,null,"Zuständige Person",null,null,null,null,null,null,{"$f":"'Allgemeine Daten'!Q33:AD33","v":0}]
[]
[null,null,null,null,null,null,null,null,null,"E-Mail",null,null,null,null,null,null,{"$f":"'Allgemeine Daten'!Q35:AD35","v":0},null,null,null,null,null,null,null,null,null,null,null,null,null,null,null,null,null,null,null,null,"Tel. direkt",null,null,null,{"$f":"'Allgemeine Daten'!AP35:AZ35","v":0}]
[]
[]
["7.","Sprinklerwart",null,null,null,null,null,null,null,"Firma",null,null,null,null,null,null,{"$f":"'Allgemeine Daten'!Q100:AD100","v":0}]
[]
[null,null,null,null,null,null,null,null,null,"Strasse",null,null,null,null,null,null,{"$f":"'Allgemeine Daten'!Q102:AD102","v":0},null,null,null,null,null,null,null,null,null,null,null,null,null,null,"Nr.",null,{"$f":"'Allgemeine Daten'!AH102:AJ102","v":0},null,null,null,"Tel.",null,null,null,{"$f":"'Allgemeine Daten'!AP102:AZ102","v":0}," -"]
[]
[null,null,null,null,null,null,null,null,null,"Ort",null,null,null,null,null,null,{"$f":"'Allgemeine Daten'!Q104:AD104","v":0},null,null,null,null,null,null,null,null,null,null,null,null,null,null,"PLZ",null,{"$f":"'Allgemeine Daten'!AH104:AJ104","v":0},null,null,null,"Fax",null,null,null,{"$f":"'Allgemeine Daten'!AP104:AZ104","v":0}," -"]
[]
[]
[null,null,null,null,null,null,null,null,null,"Zuständige Person",null,null,null,null,null,null,{"$f":"'Allgemeine Daten'!Q107:AD107","v":0}]
[]
[null,null,null,null,null,null,null,null,null,"E-Mail",null,null,null,null,null,null,{"$f":"'Allgemeine Daten'!Q109:AD109","v":0},null,null,null,null,null,null,null,null,null,null,null,null,null,null,null,null,null,null,null,null,"Tel. direkt",null,null,null,{"$f":"'Allgemeine Daten'!AP109:AZ109","v":0}," -"]
[]
[null,null,null,null,null,null,null,null,null,"Stellvertretung",null,null,null,null,null,null,{"$f":"'Allgemeine Daten'!Q111:AD111","v":0}]
[]
[null,null,null,null,null,null,null,null,null,"E-Mail",null,null,null,null,null,null,{"$f":"'Allgemeine Daten'!Q113:AD113","v":0},null,null,null,null,null,null,null,null,null,null,null,null,null,null,null,null,null,null,null,null,"Tel. direkt",null,null,null,{"$f":"'Allgemeine Daten'!AP113:AZ113","v":0}," -"]
[]
[]
["8.","Brandschutz               Behörde",null,null,null,null,null,null,null,"Name",null,null,null,null,null,null,{"$f":"'Allgemeine Daten'!Q117:AD117","v":0}]
[]
[null,null,null,null,null,null,null,null,null,"Strasse",null,null,null,null,null,null,{"$f":"'Allgemeine Daten'!Q119:AD119","v":0},null,null,null,null,null,null,null,null,null,null,null,null,null,null,"Nr.",null,{"$f":"'Allgemeine Daten'!AH119:AJ119","v":0},null,null,null,"Tel.",null,null,null,{"$f":"'Allgemeine Daten'!AP119:AZ119","v":0}]
[]
[null,null,null,null,null,null,null,null,null,"Ort",null,null,null,null,null,null,{"$f":"'Allgemeine Daten'!Q121:AD121","v":0},null,null,null,null,null,null,null,null,null,null,null,null,null,null,"PLZ",null,{"$f":"'Allgemeine Daten'!AH121:AJ121","v":0},null,null,null,"Fax",null,null,null,{"$f":"'Allgemeine Daten'!AP121:AZ121","v":0}]
[]
[]
[null,null,null,null,null,null,null,null,null,"Zuständige Person",null,null,null,null,null,null,{"$f":"'Allgemeine Daten'!Q124:AD124","v":0}]
[]
[null,null,null,null,null,null,null,null,null,"E-Mail",null,null,null,null,null,null,{"$f":"'Allgemeine Daten'!Q126:AD126","v":0},null,null,null,null,null,null,null,null,null,null,null,null,null,null,null,null,null,null,null,null,"Tel. direkt",null,null,null,{"$f":"'Allgemeine Daten'!AP126:AZ126","v":0}]
[]
[]
["9.","Inspektionsstelle",null,null,null,null,null,null,null,"Name",null,null,null,null,null,null,{"$f":"'Allgemeine Daten'!Q129:AD129","v":0}]
[]
[null,null,null,null,null,null,null,null,null,"Strasse",null,null,null,null,null,null,2,null,null,null,null,null,null,null,null,null,null,null,null,null,null,"Nr.",null,{"$f":"'Allgemeine Daten'!AH131:AJ131","v":0},null,null,null,"Tel.",null,null,null,{"$f":"'Allgemeine Daten'!AP131:AZ131","v":0}]
[]
[null,null,null,null,null,null,null,null,null,"Ort",null,null,null,null,null,null,{"$f":"'Allgemeine Daten'!Q133:AD133","v":0},null,null,null,null,null,null,null,null,null,null,null,null,null,null,"PLZ",null,{"$f":"'Allgemeine Daten'!AH133:AJ133","v":0},null,null,null,"Fax",null,null,null,{"$f":"'Allgemeine Daten'!AP133:AZ133","v":0}]
[]
[]
[null,null,null,null,null,null,null,null,null,"Zuständige Person",null,null,null,null,null,null,{"$f":"'Allgemeine Daten'!Q136:AD136","v":0}]
[]
[null,null,null,null,null,null,null,null,null,"E-Mail",null,null,null,null,null,null,{"$f":"'Allgemeine Daten'!Q138:AD138","v":0},null,null,null,null,null,null,null,null,null,null,null,null,null,null,null,null,null,null,null,null,"Tel. direkt",null,null,null,{"$f":"'Allgemeine Daten'!AP138:AZ138","v":0}]
[]
[]
["6.","Projekt Beschreibung",null,null,null,null,null,null,null,null,null,null,null,null,null,null,"  Neuanlage",null,null,null,{"$f":"'Allgemeine Daten'!U38","v":0},null,null,"Generalüberholung",null,null,null,null,null,{"$f":"'Allgemeine Daten'!AD38","v":0},null,"Sanierung",null,null,null,{"$f":"'Allgemeine Daten'!AJ38","v":0},null,"Umbau",null,null,null,{"$f":"'Allgemeine Daten'!AP38","v":0},null,null,"Erweiterung",null,null,null,{"$f":"'Allgemeine Daten'!AW38","v":0}]
[]
[null,null,null,null,null,null,null,null,null,null,null,null,null,null,null,null,{"$f":"'Allgemeine Daten'!Q40:AZ42","v":{"$error":"#VALUE!"}}]
[]
[]
[]
[]
["11.","Anlagestatus",null,null,null,null,null,null,null,"Vorgeschrieben aufgrund:",null,null,null,null,null,null,null,null,"Baulichem Konzept (VKF BSN Art. 10)",null,null,null,null,null,null,null,null,null,null,null,null,null,null,null,null," Löschanlagenkonzept  (VKF BSN Art. 10)"]
[]
[null,null,null,null,null,null,null,null,null,null,null,null,null,null,null,null,null,null,"Alternativem Brandschutzkonzept (VKF BSN Art. 11 /12)"]
[]
[null,null,null,null,null,null,null,null,null,null,"  freiwillig und auf die öffentliche Feuermeldestelle aufgeschaltet"]
[]
[]
["8.","Planungsgrundlagen",null,null,null,null,null,null,null,"Brandschutzpläne vom",null,null,null,null,null,null,{"$f":"'Allgemeine Daten'!Q50:T50","v":"00:00:00"},null,null,null,null,null,"Version",null,null,{"$f":"'Allgemeine Daten'!Z50:AC50","v":0},null,null,null,null,null,null,null,"(bei Einstufung QSS 1/2)"]
[]
[null,null,null,null,null,null,null,null,null,"Brandschutzkonzept vom",null,null,null,null,null,null,{"$f":"'Allgemeine Daten'!Q52:T52","v":"00:00:00"},null,null,null,null,null,"Version",null,null,{"$f":"'Allgemeine Daten'!Z52:AC52","v":0},null,null,null,null,null,null,null,"(bei Einstufung QSS 3/4)"]
[]
[null,null,null,null,null,null,null,null,null,"Verfasser:",null,null,null,null,null,null,{"$f":"'Allgemeine Daten'!Q54:AZ54","v":0}]
[]
["9.","Schutzumfang",null,null,null,null,null,null,null,null,null,null,null,null,null,null,"Vollschutz",null,null,null,{"$f":"'Allgemeine Daten'!U57","v":0},null,null,null,"Teilschutz",null,null,null,{"$f":"'Allgemeine Daten'!AC57","v":0},null,null,null,"zusätzliche Handfeuermelder",null,null,null,null,null,null,null,null,{"$f":"'Allgemeine Daten'!AP57","v":0}]
[]
[null,null,null,null,null,null,null,null,null,null,null,null,null,null,null,null,"Ungeschützte Bereiche (z.B. Vordächer) vorhanden",null,null,null,null,null,null,null,null,null,null,null,null,null,null,null,null,{"$f":"'Allgemeine Daten'!AH59","v":0},"ja",null,null,null,null,null,null,{"$f":"'Allgemeine Daten'!AP59","v":0},"nein"]
[]
[null,null,null,null,null,null,null,null,null,null,null,null,null,null,null,null,"Bestätigung keine Lagerung durch Nutzerschaft erhalten",null,null,null,null,null,null,null,null,null,null,null,null,null,null,null,null,{"$f":"'Allgemeine Daten'!AH61","v":0},"ja",null,null,null,null,null,null,{"$f":"'Allgemeine Daten'!AP61","v":0},"nein"]
[]
[]
["5.","Vorgehen",null,null,null,null,null,null,null,"Überprüfung der Sprinkleranlage alle 10 Jahre anlässlich der Wartung bezüglich Betriebsbereitschaft. Insbesondere sind die Funktions-"]
[]
[null,null,null,null,null,null,null,null,null,"bereitschaft der Sprinkler sowie die Austrittsöffnung der Rohrleitungen stichprobeweise zu kontrollieren. Das Ergebnis ist mittels dem"]
[]
[null,null,null,null,null,null,null,null,null,"Beurteilungs-Attest dem Anlageeigentümer sowie den kantonalen Brandschutzbehörden zu melden. Die kantonale Brandschutzbehörde"]
[]
[null,null,null,null,null,null,null,null,null,"setzt je nach Ergebins die Frist für allfällig notwendige Massnahmen fest."]
[]
[]
[null,null,null,null,null,null,null,null,null,"Pro Alarmventil und pro Bauetappe sind je 20 Sprinkler an Ort und Stelle zu überprüfen. Sie müssen einzeln mittels dem Prüfgerät unter"]
[]
[null,null,null,null,null,null,null,null,null,"Druck (0.5 bar) bis zur Auslösung aufgewärmt werden. Es sind verschiedene Teibereiche zu prüfen vorzugsweise hängend "]
[]
[null,null,null,null,null,null,null,null,null,"angeordnete Sprinkler."]
[]
[]
["6.","Befund",null,null,null,null,null,null,null,"Die Betriebsbereitschaft der oben genannten Sprinkleranlage ist gewährleistet?",null,null,null,null,null,null,null,null,null,null,null,null,null,null,null,null,null,null,null,null,null,null,null,null,null,null,null,"ja",null,null,null,"nein"]
[]
[null,null,null,null,null,null,null,null,null,"Bemerkungen"]
[]
[]
[]
[]
[]
[]
[]
[]
["7.","Verteiler",null,null,null,null,null,null,null,"Verteilung durch die Sprinklerfirma an"]
[]
[null,null,null,null,null,null,null,null,null,null,"Brandschutzbehörde"]
[]
[null,null,null,null,null,null,null,null,null,null,"Fachstelle(n)"]
[]
[null,null,null,null,null,null,null,null,null,null,"VKF für die Statistik (nur bei einem negativen Befund notwendig)"]
[]
[null,null,null,null,null,null,null,null,null,null,"Anlageeigentümer"]
[]
[]
[]
[]
["8.","Unterschrift",null,null,null,null,null,null,null,null,null,null,null,null,null,null,null,null,null,null,null,null,null,null,null,null,"Unterschrift der VKF anerkannten Fachfirma"]
[]
[null,null,null,null,null,null,null,null,null,null,null,null,null,null,null,null,null,null,null,null,null,null,null,null,null,null,"Ort",null,null,null,null,null,null,null,null,null,null,null,null,null,null,null,"Datum"]
[]
[]
[]
[]
[]
[]
[]
[]
[]
["9.","Versagerspiegel",null,null,null,null,null,null,null,null,null,null,null,null,null,null,null,null,null,"Versager",null,null,null,null,null,null,null,null,null,null,"Legende"]
[]
[]
[null,null,null,null,null,null,null,null,null,"Anzahl Sprinkler",null,null,null,null,null,null,null,null,null,0,null,1,null,2,null,">2",null,null,null,null,"A: ","Anlage i.O."]
[]
[]
[null,null,null,null,null,null,null,null,null,"1. Prüfung",null,null,null,null,null,null,null,null,null,"A",null,"A",null,"B",null,"C",null,null,null,null,"B: ","2. Prüfung erforderlich"]
[]
[]
[null,null,null,null,null,null,null,null,null,"2. Prüfung",null,null,null,null,null,null,null,null,null,"A",null,"C",null,"C",null,"C",null,null,null,null,"C:","Anlage sanieren"]
[]
[]
[]
[null,null,null,null,null,null,null,null,null,"Bereich:",null,null,null,null,null,null,null,null,null,null,null,null,null,null,null,null,null,null,null,null,"Systemart:"]
[]
[null,null,null,null,null,null,null,null,null,"Pos.",null,"Auslösung bei 0.5 bar",null,null,null,"Auslösung bei .. bar",null,null,null,"Sprinklerfabrikat",null,null,null,null,null,null,null,null,null,"Produktions   jahr",null,null,null,"Sprinklerart",null,null,null,null,"Einbauart"]
[]
[]
[]
[null,null,null,null,null,null,null,null,null,1]
[]
[null,null,null,null,null,null,null,null,null,2]
[]
[null,null,null,null,null,null,null,null,null,3]
[]
[null,null,null,null,null,null,null,null,null,4]
[]
[null,null,null,null,null,null,null,null,null,5]
[]
[null,null,null,null,null,null,null,null,null,6]
[]
[null,null,null,null,null,null,null,null,null,7]
[]
[null,null,null,null,null,null,null,null,null,8]
[]
[null,null,null,null,null,null,null,null,null,9]
[]
[null,null,null,null,null,null,null,null,null,10]
[]
[null,null,null,null,null,null,null,null,null,11]
[]
[null,null,null,null,null,null,null,null,null,12]
[]
[null,null,null,null,null,null,null,null,null,13]
[]
[null,null,null,null,null,null,null,null,null,14]
[]
[null,null,null,null,null,null,null,null,null,15]
[]
[null,null,null,null,null,null,null,null,null,16]
[]
[null,null,null,null,null,null,null,null,null,17]
[]
[null,null,null,null,null,null,null,null,null,18]
[]
[null,null,null,null,null,null,null,null,null,19]
[]
[null,null,null,null,null,null,null,null,null,20]
[]
[null,null,null,null,null,null,null,null,null,21]
[]
[null,null,null,null,null,null,null,null,null,22]
[]
[null,null,null,null,null,null,null,null,null,23]
[]
[null,null,null,null,null,null,null,null,null,24]
[]
[null,null,null,null,null,null,null,null,null,25]
[]
[null,null,null,null,null,null,null,null,null,26]
[]
[null,null,null,null,null,null,null,null,null,27]
[]
[null,null,null,null,null,null,null,null,null,28]
[]
[null,null,null,null,null,null,null,null,null,29]
[]
[null,null,null,null,null,null,null,null,null,30]
[]
[null,null,null,null,null,null,null,null,null,31]
[]
[null,null,null,null,null,null,null,null,null,32]
[]
[null,null,null,null,null,null,null,null,null,33]
[]
[null,null,null,null,null,null,null,null,null,34]
[]
[null,null,null,null,null,null,null,null,null,35]
[]
[null,null,null,null,null,null,null,null,null,36]
[]
[null,null,null,null,null,null,null,null,null,"Die Betriebsbereitschaft des oben genannten Alarmventilbereichs ist gewährleistet?",null,null,null,null,null,null,null,null,null,null,null,null,null,null,null,null,null,null,null,null,null,null,null,null,null,null,null,"ja",null,null,null,"nein"]
[]
[]
[]
["9.","Versagerspiegel",null,null,null,null,null,null,null,null,null,null,null,null,null,null,null,null,null,"Versager",null,null,null,null,null,null,null,null,null,null,"Legende"]
[]
[]
[null,null,null,null,null,null,null,null,null,"Anzahl Sprinkler",null,null,null,null,null,null,null,null,null,0,null,1,null,2,null,">2",null,null,null,null,"A: ","Anlage i.O."]
[]
[]
[null,null,null,null,null,null,null,null,null,"1. Prüfung",null,null,null,null,null,null,null,null,null,"A",null,"A",null,"B",null,"C",null,null,null,null,"B: ","2. Prüfung erforderlich"]
[]
[]
[null,null,null,null,null,null,null,null,null,"2. Prüfung",null,null,null,null,null,null,null,null,null,"A",null,"C",null,"C",null,"C",null,null,null,null,"C:","Anlage sanieren"]
[]
[]
[]
[null,null,null,null,null,null,null,null,null,"Bereich:",null,null,null,null,null,null,null,null,null,null,null,null,null,null,null,null,null,null,null,null,"Systemart:"]
[]
[null,null,null,null,null,null,null,null,null,"Pos.",null,"Auslösung bei 0.5 bar",null,null,null,"Auslösung bei .. bar",null,null,null,"Sprinklerfabrikat",null,null,null,null,null,null,null,null,null,"Produktions   jahr",null,null,null,"Sprinklerart",null,null,null,null,"Einbauart"]
[]
[]
[]
[null,null,null,null,null,null,null,null,null,1]
[]
[null,null,null,null,null,null,null,null,null,2]
[]
[null,null,null,null,null,null,null,null,null,3]
[]
[null,null,null,null,null,null,null,null,null,4]
[]
[null,null,null,null,null,null,null,null,null,5]
[]
[null,null,null,null,null,null,null,null,null,6]
[]
[null,null,null,null,null,null,null,null,null,7]
[]
[null,null,null,null,null,null,null,null,null,8]
[]
[null,null,null,null,null,null,null,null,null,9]
[]
[null,null,null,null,null,null,null,null,null,10]
[]
[null,null,null,null,null,null,null,null,null,11]
[]
[null,null,null,null,null,null,null,null,null,12]
[]
[null,null,null,null,null,null,null,null,null,13]
[]
[null,null,null,null,null,null,null,null,null,14]
[]
[null,null,null,null,null,null,null,null,null,15]
[]
[null,null,null,null,null,null,null,null,null,16]
[]
[null,null,null,null,null,null,null,null,null,17]
[]
[null,null,null,null,null,null,null,null,null,18]
[]
[null,null,null,null,null,null,null,null,null,19]
[]
[null,null,null,null,null,null,null,null,null,20]
[]
[null,null,null,null,null,null,null,null,null,21]
[]
[null,null,null,null,null,null,null,null,null,22]
[]
[null,null,null,null,null,null,null,null,null,23]
[]
[null,null,null,null,null,null,null,null,null,24]
[]
[null,null,null,null,null,null,null,null,null,25]
[]
[null,null,null,null,null,null,null,null,null,26]
[]
[null,null,null,null,null,null,null,null,null,27]
[]
[null,null,null,null,null,null,null,null,null,28]
[]
[null,null,null,null,null,null,null,null,null,29]
[]
[null,null,null,null,null,null,null,null,null,30]
[]
[null,null,null,null,null,null,null,null,null,31]
[]
[null,null,null,null,null,null,null,null,null,32]
[]
[null,null,null,null,null,null,null,null,null,33]
[]
[null,null,null,null,null,null,null,null,null,34]
[]
[null,null,null,null,null,null,null,null,null,35]
[]
[null,null,null,null,null,null,null,null,null,36]
[]
[null,null,null,null,null,null,null,null,null,"Die Betriebsbereitschaft des oben genannten Alarmventilbereichs ist gewährleistet?",null,null,null,null,null,null,null,null,null,null,null,null,null,null,null,null,null,null,null,null,null,null,null,null,null,null,null,"ja",null,null,null,"nein"]
[]
[]
[]
["9.","Versagerspiegel",null,null,null,null,null,null,null,null,null,null,null,null,null,null,null,null,null,"Versager",null,null,null,null,null,null,null,null,null,null,"Legende"]
[]
[]
[null,null,null,null,null,null,null,null,null,"Anzahl Sprinkler",null,null,null,null,null,null,null,null,null,0,null,1,null,2,null,">2",null,null,null,null,"A: ","Anlage i.O."]
[]
[]
[null,null,null,null,null,null,null,null,null,"1. Prüfung",null,null,null,null,null,null,null,null,null,"A",null,"A",null,"B",null,"C",null,null,null,null,"B: ","2. Prüfung erforderlich"]
[]
[]
[null,null,null,null,null,null,null,null,null,"2. Prüfung",null,null,null,null,null,null,null,null,null,"A",null,"C",null,"C",null,"C",null,null,null,null,"C:","Anlage sanieren"]
[]
[]
[]
[null,null,null,null,null,null,null,null,null,"Bereich:",null,null,null,null,null,null,null,null,null,null,null,null,null,null,null,null,null,null,null,null,"Systemart:"]
[]
[null,null,null,null,null,null,null,null,null,"Pos.",null,"Auslösung bei 0.5 bar",null,null,null,"Auslösung bei .. bar",null,null,null,"Sprinklerfabrikat",null,null,null,null,null,null,null,null,null,"Produktions   jahr",null,null,null,"Sprinklerart",null,null,null,null,"Einbauart"]
[]
[]
[]
[null,null,null,null,null,null,null,null,null,1]
[]
[null,null,null,null,null,null,null,null,null,2]
[]
[null,null,null,null,null,null,null,null,null,3]
[]
[null,null,null,null,null,null,null,null,null,4]
[]
[null,null,null,null,null,null,null,null,null,5]
[]
[null,null,null,null,null,null,null,null,null,6]
[]
[null,null,null,null,null,null,null,null,null,7]
[]
[null,null,null,null,null,null,null,null,null,8]
[]
[null,null,null,null,null,null,null,null,null,9]
[]
[null,null,null,null,null,null,null,null,null,10]
[]
[null,null,null,null,null,null,null,null,null,11]
[]
[null,null,null,null,null,null,null,null,null,12]
[]
[null,null,null,null,null,null,null,null,null,13]
[]
[null,null,null,null,null,null,null,null,null,14]
[]
[null,null,null,null,null,null,null,null,null,15]
[]
[null,null,null,null,null,null,null,null,null,16]
[]
[null,null,null,null,null,null,null,null,null,17]
[]
[null,null,null,null,null,null,null,null,null,18]
[]
[null,null,null,null,null,null,null,null,null,19]
[]
[null,null,null,null,null,null,null,null,null,20]
[]
[null,null,null,null,null,null,null,null,null,21]
[]
[null,null,null,null,null,null,null,null,null,22]
[]
[null,null,null,null,null,null,null,null,null,23]
[]
[null,null,null,null,null,null,null,null,null,24]
[]
[null,null,null,null,null,null,null,null,null,25]
[]
[null,null,null,null,null,null,null,null,null,26]
[]
[null,null,null,null,null,null,null,null,null,27]
[]
[null,null,null,null,null,null,null,null,null,28]
[]
[null,null,null,null,null,null,null,null,null,29]
[]
[null,null,null,null,null,null,null,null,null,30]
[]
[null,null,null,null,null,null,null,null,null,31]
[]
[null,null,null,null,null,null,null,null,null,32]
[]
[null,null,null,null,null,null,null,null,null,33]
[]
[null,null,null,null,null,null,null,null,null,34]
[]
[null,null,null,null,null,null,null,null,null,35]
[]
[null,null,null,null,null,null,null,null,null,36]
[]
[null,null,null,null,null,null,null,null,null,"Die Betriebsbereitschaft des oben genannten Alarmventilbereichs ist gewährleistet?",null,null,null,null,null,null,null,null,null,null,null,null,null,null,null,null,null,null,null,null,null,null,null,null,null,null,null,"ja",null,null,null,"nein"]
[]
[]
[]
["9.","Versagerspiegel",null,null,null,null,null,null,null,null,null,null,null,null,null,null,null,null,null,"Versager",null,null,null,null,null,null,null,null,null,null,"Legende"]
[]
[]
[null,null,null,null,null,null,null,null,null,"Anzahl Sprinkler",null,null,null,null,null,null,null,null,null,0,null,1,null,2,null,">2",null,null,null,null,"A: ","Anlage i.O."]
[]
[]
[null,null,null,null,null,null,null,null,null,"1. Prüfung",null,null,null,null,null,null,null,null,null,"A",null,"A",null,"B",null,"C",null,null,null,null,"B: ","2. Prüfung erforderlich"]
[]
[]
[null,null,null,null,null,null,null,null,null,"2. Prüfung",null,null,null,null,null,null,null,null,null,"A",null,"C",null,"C",null,"C",null,null,null,null,"C:","Anlage sanieren"]
[]
[]
[]
[null,null,null,null,null,null,null,null,null,"Bereich:",null,null,null,null,null,null,null,null,null,null,null,null,null,null,null,null,null,null,null,null,"Systemart:"]
[]
[null,null,null,null,null,null,null,null,null,"Pos.",null,"Auslösung bei 0.5 bar",null,null,null,"Auslösung bei .. bar",null,null,null,"Sprinklerfabrikat",null,null,null,null,null,null,null,null,null,"Produktions   jahr",null,null,null,"Sprinklerart",null,null,null,null,"Einbauart"]
[]
[]
[]
[null,null,null,null,null,null,null,null,null,1]
[]
[null,null,null,null,null,null,null,null,null,2]
[]
[null,null,null,null,null,null,null,null,null,3]
[]
[null,null,null,null,null,null,null,null,null,4]
[]
[null,null,null,null,null,null,null,null,null,5]
[]
[null,null,null,null,null,null,null,null,null,6]
[]
[null,null,null,null,null,null,null,null,null,7]
[]
[null,null,null,null,null,null,null,null,null,8]
[]
[null,null,null,null,null,null,null,null,null,9]
[]
[null,null,null,null,null,null,null,null,null,10]
[]
[null,null,null,null,null,null,null,null,null,11]
[]
[null,null,null,null,null,null,null,null,null,12]
[]
[null,null,null,null,null,null,null,null,null,13]
[]
[null,null,null,null,null,null,null,null,null,14]
[]
[null,null,null,null,null,null,null,null,null,15]
[]
[null,null,null,null,null,null,null,null,null,16]
[]
[null,null,null,null,null,null,null,null,null,17]
[]
[null,null,null,null,null,null,null,null,null,18]
[]
[null,null,null,null,null,null,null,null,null,19]
[]
[null,null,null,null,null,null,null,null,null,20]
[]
[null,null,null,null,null,null,null,null,null,21]
[]
[null,null,null,null,null,null,null,null,null,22]
[]
[null,null,null,null,null,null,null,null,null,23]
[]
[null,null,null,null,null,null,null,null,null,24]
[]
[null,null,null,null,null,null,null,null,null,25]
[]
[null,null,null,null,null,null,null,null,null,26]
[]
[null,null,null,null,null,null,null,null,null,27]
[]
[null,null,null,null,null,null,null,null,null,28]
[]
[null,null,null,null,null,null,null,null,null,29]
[]
[null,null,null,null,null,null,null,null,null,30]
[]
[null,null,null,null,null,null,null,null,null,31]
[]
[null,null,null,null,null,null,null,null,null,32]
[]
[null,null,null,null,null,null,null,null,null,33]
[]
[null,null,null,null,null,null,null,null,null,34]
[]
[null,null,null,null,null,null,null,null,null,35]
[]
[null,null,null,null,null,null,null,null,null,36]
[]
[null,null,null,null,null,null,null,null,null,"Die Betriebsbereitschaft des oben genannten Alarmventilbereichs ist gewährleistet?",null,null,null,null,null,null,null,null,null,null,null,null,null,null,null,null,null,null,null,null,null,null,null,null,null,null,null,"ja",null,null,null,"nein"]
[]
[]
[]
["9.","Versagerspiegel",null,null,null,null,null,null,null,null,null,null,null,null,null,null,null,null,null,"Versager",null,null,null,null,null,null,null,null,null,null,"Legende"]
[]
[]
[null,null,null,null,null,null,null,null,null,"Anzahl Sprinkler",null,null,null,null,null,null,null,null,null,0,null,1,null,2,null,">2",null,null,null,null,"A: ","Anlage i.O."]
[]
[]
[null,null,null,null,null,null,null,null,null,"1. Prüfung",null,null,null,null,null,null,null,null,null,"A",null,"A",null,"B",null,"C",null,null,null,null,"B: ","2. Prüfung erforderlich"]
[]
[]
[null,null,null,null,null,null,null,null,null,"2. Prüfung",null,null,null,null,null,null,null,null,null,"A",null,"C",null,"C",null,"C",null,null,null,null,"C:","Anlage sanieren"]
[]
[]
[]
[null,null,null,null,null,null,null,null,null,"Bereich:",null,null,null,null,null,null,null,null,null,null,null,null,null,null,null,null,null,null,null,null,"Systemart:"]
[]
[null,null,null,null,null,null,null,null,null,"Pos.",null,"Auslösung bei 0.5 bar",null,null,null,"Auslösung bei .. bar",null,null,null,"Sprinklerfabrikat",null,null,null,null,null,null,null,null,null,"Produktions   jahr",null,null,null,"Sprinklerart",null,null,null,null,"Einbauart"]
[]
[]
[]
[null,null,null,null,null,null,null,null,null,1]
[]
[null,null,null,null,null,null,null,null,null,2]
[]
[null,null,null,null,null,null,null,null,null,3]
[]
[null,null,null,null,null,null,null,null,null,4]
[]
[null,null,null,null,null,null,null,null,null,5]
[]
[null,null,null,null,null,null,null,null,null,6]
[]
[null,null,null,null,null,null,null,null,null,7]
[]
[null,null,null,null,null,null,null,null,null,8]
[]
[null,null,null,null,null,null,null,null,null,9]
[]
[null,null,null,null,null,null,null,null,null,10]
[]
[null,null,null,null,null,null,null,null,null,11]
[]
[null,null,null,null,null,null,null,null,null,12]
[]
[null,null,null,null,null,null,null,null,null,13]
[]
[null,null,null,null,null,null,null,null,null,14]
[]
[null,null,null,null,null,null,null,null,null,15]
[]
[null,null,null,null,null,null,null,null,null,16]
[]
[null,null,null,null,null,null,null,null,null,17]
[]
[null,null,null,null,null,null,null,null,null,18]
[]
[null,null,null,null,null,null,null,null,null,19]
[]
[null,null,null,null,null,null,null,null,null,20]
[]
[null,null,null,null,null,null,null,null,null,21]
[]
[null,null,null,null,null,null,null,null,null,22]
[]
[null,null,null,null,null,null,null,null,null,23]
[]
[null,null,null,null,null,null,null,null,null,24]
[]
[null,null,null,null,null,null,null,null,null,25]
[]
[null,null,null,null,null,null,null,null,null,26]
[]
[null,null,null,null,null,null,null,null,null,27]
[]
[null,null,null,null,null,null,null,null,null,28]
[]
[null,null,null,null,null,null,null,null,null,29]
[]
[null,null,null,null,null,null,null,null,null,30]
[]
[null,null,null,null,null,null,null,null,null,31]
[]
[null,null,null,null,null,null,null,null,null,32]
[]
[null,null,null,null,null,null,null,null,null,33]
[]
[null,null,null,null,null,null,null,null,null,34]
[]
[null,null,null,null,null,null,null,null,null,35]
[]
[null,null,null,null,null,null,null,null,null,36]
[]
[null,null,null,null,null,null,null,null,null,"Die Betriebsbereitschaft des oben genannten Alarmventilbereichs ist gewährleistet?",null,null,null,null,null,null,null,null,null,null,null,null,null,null,null,null,null,null,null,null,null,null,null,null,null,null,null,"ja",null,null,null,"nein"]
[]
[]
[]
["9.","Versagerspiegel",null,null,null,null,null,null,null,null,null,null,null,null,null,null,null,null,null,"Versager",null,null,null,null,null,null,null,null,null,null,"Legende"]
[]
[]
[null,null,null,null,null,null,null,null,null,"Anzahl Sprinkler",null,null,null,null,null,null,null,null,null,0,null,1,null,2,null,">2",null,null,null,null,"A: ","Anlage i.O."]
[]
[]
[null,null,null,null,null,null,null,null,null,"1. Prüfung",null,null,null,null,null,null,null,null,null,"A",null,"A",null,"B",null,"C",null,null,null,null,"B: ","2. Prüfung erforderlich"]
[]
[]
[null,null,null,null,null,null,null,null,null,"2. Prüfung",null,null,null,null,null,null,null,null,null,"A",null,"C",null,"C",null,"C",null,null,null,null,"C:","Anlage sanieren"]
[]
[]
[]
[null,null,null,null,null,null,null,null,null,"Bereich:",null,null,null,null,null,null,null,null,null,null,null,null,null,null,null,null,null,null,null,null,"Systemart:"]
[]
[null,null,null,null,null,null,null,null,null,"Pos.",null,"Auslösung bei 0.5 bar",null,null,null,"Auslösung bei .. bar",null,null,null,"Sprinklerfabrikat",null,null,null,null,null,null,null,null,null,"Produktions   jahr",null,null,null,"Sprinklerart",null,null,null,null,"Einbauart"]
[]
[]
[]
[null,null,null,null,null,null,null,null,null,1]
[]
[null,null,null,null,null,null,null,null,null,2]
[]
[null,null,null,null,null,null,null,null,null,3]
[]
[null,null,null,null,null,null,null,null,null,4]
[]
[null,null,null,null,null,null,null,null,null,5]
[]
[null,null,null,null,null,null,null,null,null,6]
[]
[null,null,null,null,null,null,null,null,null,7]
[]
[null,null,null,null,null,null,null,null,null,8]
[]
[null,null,null,null,null,null,null,null,null,9]
[]
[null,null,null,null,null,null,null,null,null,10]
[]
[null,null,null,null,null,null,null,null,null,11]
[]
[null,null,null,null,null,null,null,null,null,12]
[]
[null,null,null,null,null,null,null,null,null,13]
[]
[null,null,null,null,null,null,null,null,null,14]
[]
[null,null,null,null,null,null,null,null,null,15]
[]
[null,null,null,null,null,null,null,null,null,16]
[]
[null,null,null,null,null,null,null,null,null,17]
[]
[null,null,null,null,null,null,null,null,null,18]
[]
[null,null,null,null,null,null,null,null,null,19]
[]
[null,null,null,null,null,null,null,null,null,20]
[]
[null,null,null,null,null,null,null,null,null,21]
[]
[null,null,null,null,null,null,null,null,null,22]
[]
[null,null,null,null,null,null,null,null,null,23]
[]
[null,null,null,null,null,null,null,null,null,24]
[]
[null,null,null,null,null,null,null,null,null,25]
[]
[null,null,null,null,null,null,null,null,null,26]
[]
[null,null,null,null,null,null,null,null,null,27]
[]
[null,null,null,null,null,null,null,null,null,28]
[]
[null,null,null,null,null,null,null,null,null,29]
[]
[null,null,null,null,null,null,null,null,null,30]
[]
[null,null,null,null,null,null,null,null,null,31]
[]
[null,null,null,null,null,null,null,null,null,32]
[]
[null,null,null,null,null,null,null,null,null,33]
[]
[null,null,null,null,null,null,null,null,null,34]
[]
[null,null,null,null,null,null,null,null,null,35]
[]
[null,null,null,null,null,null,null,null,null,36]
[]
[null,null,null,null,null,null,null,null,null,"Die Betriebsbereitschaft des oben genannten Alarmventilbereichs ist gewährleistet?",null,null,null,null,null,null,null,null,null,null,null,null,null,null,null,null,null,null,null,null,null,null,null,null,null,null,null,"ja",null,null,null,"nein"]
[]
[]
[]
["9.","Versagerspiegel",null,null,null,null,null,null,null,null,null,null,null,null,null,null,null,null,null,"Versager",null,null,null,null,null,null,null,null,null,null,"Legende"]
[]
[]
[null,null,null,null,null,null,null,null,null,"Anzahl Sprinkler",null,null,null,null,null,null,null,null,null,0,null,1,null,2,null,">2",null,null,null,null,"A: ","Anlage i.O."]
[]
[]
[null,null,null,null,null,null,null,null,null,"1. Prüfung",null,null,null,null,null,null,null,null,null,"A",null,"A",null,"B",null,"C",null,null,null,null,"B: ","2. Prüfung erforderlich"]
[]
[]
[null,null,null,null,null,null,null,null,null,"2. Prüfung",null,null,null,null,null,null,null,null,null,"A",null,"C",null,"C",null,"C",null,null,null,null,"C:","Anlage sanieren"]
[]
[]
[]
[null,null,null,null,null,null,null,null,null,"Bereich:",null,null,null,null,null,null,null,null,null,null,null,null,null,null,null,null,null,null,null,null,"Systemart:"]
[]
[null,null,null,null,null,null,null,null,null,"Pos.",null,"Auslösung bei 0.5 bar",null,null,null,"Auslösung bei .. bar",null,null,null,"Sprinklerfabrikat",null,null,null,null,null,null,null,null,null,"Produktions   jahr",null,null,null,"Sprinklerart",null,null,null,null,"Einbauart"]
[]
[]
[]
[null,null,null,null,null,null,null,null,null,1]
[]
[null,null,null,null,null,null,null,null,null,2]
[]
[null,null,null,null,null,null,null,null,null,3]
[]
[null,null,null,null,null,null,null,null,null,4]
[]
[null,null,null,null,null,null,null,null,null,5]
[]
[null,null,null,null,null,null,null,null,null,6]
[]
[null,null,null,null,null,null,null,null,null,7]
[]
[null,null,null,null,null,null,null,null,null,8]
[]
[null,null,null,null,null,null,null,null,null,9]
[]
[null,null,null,null,null,null,null,null,null,10]
[]
[null,null,null,null,null,null,null,null,null,11]
[]
[null,null,null,null,null,null,null,null,null,12]
[]
[null,null,null,null,null,null,null,null,null,13]
[]
[null,null,null,null,null,null,null,null,null,14]
[]
[null,null,null,null,null,null,null,null,null,15]
[]
[null,null,null,null,null,null,null,null,null,16]
[]
[null,null,null,null,null,null,null,null,null,17]
[]
[null,null,null,null,null,null,null,null,null,18]
[]
[null,null,null,null,null,null,null,null,null,19]
[]
[null,null,null,null,null,null,null,null,null,20]
[]
[null,null,null,null,null,null,null,null,null,21]
[]
[null,null,null,null,null,null,null,null,null,22]
[]
[null,null,null,null,null,null,null,null,null,23]
[]
[null,null,null,null,null,null,null,null,null,24]
[]
[null,null,null,null,null,null,null,null,null,25]
[]
[null,null,null,null,null,null,null,null,null,26]
[]
[null,null,null,null,null,null,null,null,null,27]
[]
[null,null,null,null,null,null,null,null,null,28]
[]
[null,null,null,null,null,null,null,null,null,29]
[]
[null,null,null,null,null,null,null,null,null,30]
[]
[null,null,null,null,null,null,null,null,null,31]
[]
[null,null,null,null,null,null,null,null,null,32]
[]
[null,null,null,null,null,null,null,null,null,33]
[]
[null,null,null,null,null,null,null,null,null,34]
[]
[null,null,null,null,null,null,null,null,null,35]
[]
[null,null,null,null,null,null,null,null,null,36]
[]
[null,null,null,null,null,null,null,null,null,"Die Betriebsbereitschaft des oben genannten Alarmventilbereichs ist gewährleistet?",null,null,null,null,null,null,null,null,null,null,null,null,null,null,null,null,null,null,null,null,null,null,null,null,null,null,null,"ja",null,null,null,"nein"]
[]
[]
[]
["9.","Versagerspiegel",null,null,null,null,null,null,null,null,null,null,null,null,null,null,null,null,null,"Versager",null,null,null,null,null,null,null,null,null,null,"Legende"]
[]
[]
[null,null,null,null,null,null,null,null,null,"Anzahl Sprinkler",null,null,null,null,null,null,null,null,null,0,null,1,null,2,null,">2",null,null,null,null,"A: ","Anlage i.O."]
[]
[]
[null,null,null,null,null,null,null,null,null,"1. Prüfung",null,null,null,null,null,null,null,null,null,"A",null,"A",null,"B",null,"C",null,null,null,null,"B: ","2. Prüfung erforderlich"]
[]
[]
[null,null,null,null,null,null,null,null,null,"2. Prüfung",null,null,null,null,null,null,null,null,null,"A",null,"C",null,"C",null,"C",null,null,null,null,"C:","Anlage sanieren"]
[]
[]
[]
[null,null,null,null,null,null,null,null,null,"Bereich:",null,null,null,null,null,null,null,null,null,null,null,null,null,null,null,null,null,null,null,null,"Systemart:"]
[]
[null,null,null,null,null,null,null,null,null,"Pos.",null,"Auslösung bei 0.5 bar",null,null,null,"Auslösung bei .. bar",null,null,null,"Sprinklerfabrikat",null,null,null,null,null,null,null,null,null,"Produktions   jahr",null,null,null,"Sprinklerart",null,null,null,null,"Einbauart"]
[]
[]
[]
[null,null,null,null,null,null,null,null,null,1]
[]
[null,null,null,null,null,null,null,null,null,2]
[]
[null,null,null,null,null,null,null,null,null,3]
[]
[null,null,null,null,null,null,null,null,null,4]
[]
[null,null,null,null,null,null,null,null,null,5]
[]
[null,null,null,null,null,null,null,null,null,6]
[]
[null,null,null,null,null,null,null,null,null,7]
[]
[null,null,null,null,null,null,null,null,null,8]
[]
[null,null,null,null,null,null,null,null,null,9]
[]
[null,null,null,null,null,null,null,null,null,10]
[]
[null,null,null,null,null,null,null,null,null,11]
[]
[null,null,null,null,null,null,null,null,null,12]
[]
[null,null,null,null,null,null,null,null,null,13]
[]
[null,null,null,null,null,null,null,null,null,14]
[]
[null,null,null,null,null,null,null,null,null,15]
[]
[null,null,null,null,null,null,null,null,null,16]
[]
[null,null,null,null,null,null,null,null,null,17]
[]
[null,null,null,null,null,null,null,null,null,18]
[]
[null,null,null,null,null,null,null,null,null,19]
[]
[null,null,null,null,null,null,null,null,null,20]
[]
[null,null,null,null,null,null,null,null,null,21]
[]
[null,null,null,null,null,null,null,null,null,22]
[]
[null,null,null,null,null,null,null,null,null,23]
[]
[null,null,null,null,null,null,null,null,null,24]
[]
[null,null,null,null,null,null,null,null,null,25]
[]
[null,null,null,null,null,null,null,null,null,26]
[]
[null,null,null,null,null,null,null,null,null,27]
[]
[null,null,null,null,null,null,null,null,null,28]
[]
[null,null,null,null,null,null,null,null,null,29]
[]
[null,null,null,null,null,null,null,null,null,30]
[]
[null,null,null,null,null,null,null,null,null,31]
[]
[null,null,null,null,null,null,null,null,null,32]
[]
[null,null,null,null,null,null,null,null,null,33]
[]
[null,null,null,null,null,null,null,null,null,34]
[]
[null,null,null,null,null,null,null,null,null,35]
[]
[null,null,null,null,null,null,null,null,null,36]
[]
[null,null,null,null,null,null,null,null,null,"Die Betriebsbereitschaft des oben genannten Alarmventilbereichs ist gewährleistet?",null,null,null,null,null,null,null,null,null,null,null,null,null,null,null,null,null,null,null,null,null,null,null,null,null,null,null,"ja",null,null,null,"nein"]
[]
[]
[]
["9.","Versagerspiegel",null,null,null,null,null,null,null,null,null,null,null,null,null,null,null,null,null,"Versager",null,null,null,null,null,null,null,null,null,null,"Legende"]
[]
[]
[null,null,null,null,null,null,null,null,null,"Anzahl Sprinkler",null,null,null,null,null,null,null,null,null,0,null,1,null,2,null,">2",null,null,null,null,"A: ","Anlage i.O."]
[]
[]
[null,null,null,null,null,null,null,null,null,"1. Prüfung",null,null,null,null,null,null,null,null,null,"A",null,"A",null,"B",null,"C",null,null,null,null,"B: ","2. Prüfung erforderlich"]
[]
[]
[null,null,null,null,null,null,null,null,null,"2. Prüfung",null,null,null,null,null,null,null,null,null,"A",null,"C",null,"C",null,"C",null,null,null,null,"C:","Anlage sanieren"]
[null,null,null,null,null,null,null,null,null,null,null,null,null,null,null,null,null,null,null,null,null,null,null,null,null,null,null,null,null,null,null,null,null,null,null,null,null,null,null,null,null,null,null,null,null,null,"."]
[]
[]
[null,null,null,null,null,null,null,null,null,"Bereich:",null,null,null,null,null,null,null,null,null,null,null,null,null,null,null,null,null,null,null,null,"Systemart:"]
[]
[null,null,null,null,null,null,null,null,null,"Pos.",null,"Auslösung bei 0.5 bar",null,null,null,"Auslösung bei .. bar",null,null,null,"Sprinklerfabrikat",null,null,null,null,null,null,null,null,null,"Produktions   jahr",null,null,null,"Sprinklerart",null,null,null,null,"Einbauart"]
[]
[]
[]
[null,null,null,null,null,null,null,null,null,1]
[]
[null,null,null,null,null,null,null,null,null,2]
[]
[null,null,null,null,null,null,null,null,null,3]
[]
[null,null,null,null,null,null,null,null,null,4]
[]
[null,null,null,null,null,null,null,null,null,5]
[]
[null,null,null,null,null,null,null,null,null,6]
[]
[null,null,null,null,null,null,null,null,null,7]
[]
[null,null,null,null,null,null,null,null,null,8]
[]
[null,null,null,null,null,null,null,null,null,9]
[]
[null,null,null,null,null,null,null,null,null,10]
[]
[null,null,null,null,null,null,null,null,null,11]
[]
[null,null,null,null,null,null,null,null,null,12]
[]
[null,null,null,null,null,null,null,null,null,13]
[]
[null,null,null,null,null,null,null,null,null,14]
[]
[null,null,null,null,null,null,null,null,null,15]
[]
[null,null,null,null,null,null,null,null,null,16]
[]
[null,null,null,null,null,null,null,null,null,17]
[]
[null,null,null,null,null,null,null,null,null,18]
[]
[null,null,null,null,null,null,null,null,null,19]
[]
[null,null,null,null,null,null,null,null,null,20]
[]
[null,null,null,null,null,null,null,null,null,21]
[]
[null,null,null,null,null,null,null,null,null,22]
[]
[null,null,null,null,null,null,null,null,null,23]
[]
[null,null,null,null,null,null,null,null,null,24]
[]
[null,null,null,null,null,null,null,null,null,25]
[]
[null,null,null,null,null,null,null,null,null,26]
[]
[null,null,null,null,null,null,null,null,null,27]
[]
[null,null,null,null,null,null,null,null,null,28]
[]
[null,null,null,null,null,null,null,null,null,29]
[]
[null,null,null,null,null,null,null,null,null,30]
[]
[null,null,null,null,null,null,null,null,null,31]
[]
[null,null,null,null,null,null,null,null,null,32]
[]
[null,null,null,null,null,null,null,null,null,33]
[]
[null,null,null,null,null,null,null,null,null,34]
[]
[null,null,null,null,null,null,null,null,null,35]
[]
[null,null,null,null,null,null,null,null,null,36]
[]
[null,null,null,null,null,null,null,null,null,"Die Betriebsbereitschaft des oben genannten Alarmventilbereichs ist gewährleistet?",null,null,null,null,null,null,null,null,null,null,null,null,null,null,null,null,null,null,null,null,null,null,null,null,null,null,null,"ja",null,null,null,"nein"]
[]
[]
[]
["9.","Versagerspiegel",null,null,null,null,null,null,null,null,null,null,null,null,null,null,null,null,null,"Versager",null,null,null,null,null,null,null,null,null,null,"Legende"]
[]
[]
[null,null,null,null,null,null,null,null,null,"Anzahl Sprinkler",null,null,null,null,null,null,null,null,null,0,null,1,null,2,null,">2",null,null,null,null,"A: ","Anlage i.O."]
[]
[]
[null,null,null,null,null,null,null,null,null,"1. Prüfung",null,null,null,null,null,null,null,null,null,"A",null,"A",null,"B",null,"C",null,null,null,null,"B: ","2. Prüfung erforderlich"]
[]
[]
[null,null,null,null,null,null,null,null,null,"2. Prüfung",null,null,null,null,null,null,null,null,null,"A",null,"C",null,"C",null,"C",null,null,null,null,"C:","Anlage sanieren"]
[]
[]
[]
[null,null,null,null,null,null,null,null,null,"Bereich:",null,null,null,null,null,null,null,null,null,null,null,null,null,null,null,null,null,null,null,null,"Systemart:"]
[]
[null,null,null,null,null,null,null,null,null,"Pos.",null,"Auslösung bei 0.5 bar",null,null,null,"Auslösung bei .. bar",null,null,null,"Sprinklerfabrikat",null,null,null,null,null,null,null,null,null,"Produktions   jahr",null,null,null,"Sprinklerart",null,null,null,null,"Einbauart"]
[]
[]
[]
[null,null,null,null,null,null,null,null,null,1]
[]
[null,null,null,null,null,null,null,null,null,2]
[]
[null,null,null,null,null,null,null,null,null,3]
[]
[null,null,null,null,null,null,null,null,null,4]
[]
[null,null,null,null,null,null,null,null,null,5]
[]
[null,null,null,null,null,null,null,null,null,6]
[]
[null,null,null,null,null,null,null,null,null,7]
[]
[null,null,null,null,null,null,null,null,null,8]
[]
[null,null,null,null,null,null,null,null,null,9]
[]
[null,null,null,null,null,null,null,null,null,10]
[]
[null,null,null,null,null,null,null,null,null,11]
[]
[null,null,null,null,null,null,null,null,null,12]
[]
[null,null,null,null,null,null,null,null,null,13]
[]
[null,null,null,null,null,null,null,null,null,14]
[]
[null,null,null,null,null,null,null,null,null,15]
[]
[null,null,null,null,null,null,null,null,null,16]
[]
[null,null,null,null,null,null,null,null,null,17]
[]
[null,null,null,null,null,null,null,null,null,18]
[]
[null,null,null,null,null,null,null,null,null,19]
[]
[null,null,null,null,null,null,null,null,null,20]
[]
[null,null,null,null,null,null,null,null,null,21]
[]
[null,null,null,null,null,null,null,null,null,22]
[]
[null,null,null,null,null,null,null,null,null,23]
[]
[null,null,null,null,null,null,null,null,null,24]
[]
[null,null,null,null,null,null,null,null,null,25]
[]
[null,null,null,null,null,null,null,null,null,26]
[]
[null,null,null,null,null,null,null,null,null,27]
[]
[null,null,null,null,null,null,null,null,null,28]
[]
[null,null,null,null,null,null,null,null,null,29]
[]
[null,null,null,null,null,null,null,null,null,30]
[]
[null,null,null,null,null,null,null,null,null,31]
[]
[null,null,null,null,null,null,null,null,null,32]
[]
[null,null,null,null,null,null,null,null,null,33]
[]
[null,null,null,null,null,null,null,null,null,34]
[]
[null,null,null,null,null,null,null,null,null,35]
[]
[null,null,null,null,null,null,null,null,null,36]
[]
[null,null,null,null,null,null,null,null,null,"Die Betriebsbereitschaft des oben genannten Alarmventilbereichs ist gewährleistet?",null,null,null,null,null,null,null,null,null,null,null,null,null,null,null,null,null,null,null,null,null,null,null,null,null,null,null,"ja",null,null,null,"nein"]
[]
[]
[]
["9.","Versagerspiegel",null,null,null,null,null,null,null,null,null,null,null,null,null,null,null,null,null,"Versager",null,null,null,null,null,null,null,null,null,null,"Legende"]
[]
[]
[null,null,null,null,null,null,null,null,null,"Anzahl Sprinkler",null,null,null,null,null,null,null,null,null,0,null,1,null,2,null,">2",null,null,null,null,"A: ","Anlage i.O."]
[]
[]
[null,null,null,null,null,null,null,null,null,"1. Prüfung",null,null,null,null,null,null,null,null,null,"A",null,"A",null,"B",null,"C",null,null,null,null,"B: ","2. Prüfung erforderlich"]
[]
[]
[null,null,null,null,null,null,null,null,null,"2. Prüfung",null,null,null,null,null,null,null,null,null,"A",null,"C",null,"C",null,"C",null,null,null,null,"C:","Anlage sanieren"]
[]
[]
[]
[null,null,null,null,null,null,null,null,null,"Bereich:",null,null,null,null,null,null,null,null,null,null,null,null,null,null,null,null,null,null,null,null,"Systemart:"]
[]
[null,null,null,null,null,null,null,null,null,"Pos.",null,"Auslösung bei 0.5 bar",null,null,null,"Auslösung bei .. bar",null,null,null,"Sprinklerfabrikat",null,null,null,null,null,null,null,null,null,"Produktions   jahr",null,null,null,"Sprinklerart",null,null,null,null,"Einbauart"]
[]
[]
[]
[null,null,null,null,null,null,null,null,null,1]
[]
[null,null,null,null,null,null,null,null,null,2]
[]
[null,null,null,null,null,null,null,null,null,3]
[]
[null,null,null,null,null,null,null,null,null,4]
[]
[null,null,null,null,null,null,null,null,null,5]
[]
[null,null,null,null,null,null,null,null,null,6]
[]
[null,null,null,null,null,null,null,null,null,7]
[]
[null,null,null,null,null,null,null,null,null,8]
[]
[null,null,null,null,null,null,null,null,null,9]
[]
[null,null,null,null,null,null,null,null,null,10]
[]
[null,null,null,null,null,null,null,null,null,11]
[]
[null,null,null,null,null,null,null,null,null,12]
[]
[null,null,null,null,null,null,null,null,null,13]
[]
[null,null,null,null,null,null,null,null,null,14]
[]
[null,null,null,null,null,null,null,null,null,15]
[]
[null,null,null,null,null,null,null,null,null,16]
[]
[null,null,null,null,null,null,null,null,null,17]
[]
[null,null,null,null,null,null,null,null,null,18]
[]
[null,null,null,null,null,null,null,null,null,19]
[]
[null,null,null,null,null,null,null,null,null,20]
[]
[null,null,null,null,null,null,null,null,null,21]
[]
[null,null,null,null,null,null,null,null,null,22]
[]
[null,null,null,null,null,null,null,null,null,23]
[]
[null,null,null,null,null,null,null,null,null,24]
[]
[null,null,null,null,null,null,null,null,null,25]
[]
[null,null,null,null,null,null,null,null,null,26]
[]
[null,null,null,null,null,null,null,null,null,27]
[]
[null,null,null,null,null,null,null,null,null,28]
[]
[null,null,null,null,null,null,null,null,null,29]
[]
[null,null,null,null,null,null,null,null,null,30]
[]
[null,null,null,null,null,null,null,null,null,31]
[]
[null,null,null,null,null,null,null,null,null,32]
[]
[null,null,null,null,null,null,null,null,null,33]
[]
[null,null,null,null,null,null,null,null,null,34]
[]
[null,null,null,null,null,null,null,null,null,35]
[]
[null,null,null,null,null,null,null,null,null,36]
[]
[null,null,null,null,null,null,null,null,null,"Die Betriebsbereitschaft des oben genannten Alarmventilbereichs ist gewährleistet?",null,null,null,null,null,null,null,null,null,null,null,null,null,null,null,null,null,null,null,null,null,null,null,null,null,null,null,"ja",null,null,null,"nein"]
[]
[]
[]
["9.","Versagerspiegel",null,null,null,null,null,null,null,null,null,null,null,null,null,null,null,null,null,"Versager",null,null,null,null,null,null,null,null,null,null,"Legende"]
[]
[]
[null,null,null,null,null,null,null,null,null,"Anzahl Sprinkler",null,null,null,null,null,null,null,null,null,0,null,1,null,2,null,">2",null,null,null,null,"A: ","Anlage i.O."]
[]
[]
[null,null,null,null,null,null,null,null,null,"1. Prüfung",null,null,null,null,null,null,null,null,null,"A",null,"A",null,"B",null,"C",null,null,null,null,"B: ","2. Prüfung erforderlich"]
[]
[]
[null,null,null,null,null,null,null,null,null,"2. Prüfung",null,null,null,null,null,null,null,null,null,"A",null,"C",null,"C",null,"C",null,null,null,null,"C:","Anlage sanieren"]
[]
[]
[]
[null,null,null,null,null,null,null,null,null,"Bereich:",null,null,null,null,null,null,null,null,null,null,null,null,null,null,null,null,null,null,null,null,"Systemart:"]
[]
[null,null,null,null,null,null,null,null,null,"Pos.",null,"Auslösung bei 0.5 bar",null,null,null,"Auslösung bei .. bar",null,null,null,"Sprinklerfabrikat",null,null,null,null,null,null,null,null,null,"Produktions   jahr",null,null,null,"Sprinklerart",null,null,null,null,"Einbauart"]
[]
[]
[]
[null,null,null,null,null,null,null,null,null,1]
[]
[null,null,null,null,null,null,null,null,null,2]
[]
[null,null,null,null,null,null,null,null,null,3]
[]
[null,null,null,null,null,null,null,null,null,4]
[]
[null,null,null,null,null,null,null,null,null,5]
[]
[null,null,null,null,null,null,null,null,null,6]
[]
[null,null,null,null,null,null,null,null,null,7]
[]
[null,null,null,null,null,null,null,null,null,8]
[]
[null,null,null,null,null,null,null,null,null,9]
[]
[null,null,null,null,null,null,null,null,null,10]
[]
[null,null,null,null,null,null,null,null,null,11]
[]
[null,null,null,null,null,null,null,null,null,12]
[]
[null,null,null,null,null,null,null,null,null,13]
[]
[null,null,null,null,null,null,null,null,null,14]
[]
[null,null,null,null,null,null,null,null,null,15]
[]
[null,null,null,null,null,null,null,null,null,16]
[]
[null,null,null,null,null,null,null,null,null,17]
[]
[null,null,null,null,null,null,null,null,null,18]
[]
[null,null,null,null,null,null,null,null,null,19]
[]
[null,null,null,null,null,null,null,null,null,20]
[]
[null,null,null,null,null,null,null,null,null,21]
[]
[null,null,null,null,null,null,null,null,null,22]
[]
[null,null,null,null,null,null,null,null,null,23]
[]
[null,null,null,null,null,null,null,null,null,24]
[]
[null,null,null,null,null,null,null,null,null,25]
[]
[null,null,null,null,null,null,null,null,null,26]
[]
[null,null,null,null,null,null,null,null,null,27]
[]
[null,null,null,null,null,null,null,null,null,28]
[]
[null,null,null,null,null,null,null,null,null,29]
[]
[null,null,null,null,null,null,null,null,null,30]
[]
[null,null,null,null,null,null,null,null,null,31]
[]
[null,null,null,null,null,null,null,null,null,32]
[]
[null,null,null,null,null,null,null,null,null,33]
[]
[null,null,null,null,null,null,null,null,null,34]
[]
[null,null,null,null,null,null,null,null,null,35]
[]
[null,null,null,null,null,null,null,null,null,36]
[]
[null,null,null,null,null,null,null,null,null,"Die Betriebsbereitschaft des oben genannten Alarmventilbereichs ist gewährleistet?",null,null,null,null,null,null,null,null,null,null,null,null,null,null,null,null,null,null,null,null,null,null,null,null,null,null,null,"ja",null,null,null,"nein"]
[]
[]
[]
["9.","Versagerspiegel",null,null,null,null,null,null,null,null,null,null,null,null,null,null,null,null,null,"Versager",null,null,null,null,null,null,null,null,null,null,"Legende"]
[]
[]
[null,null,null,null,null,null,null,null,null,"Anzahl Sprinkler",null,null,null,null,null,null,null,null,null,0,null,1,null,2,null,">2",null,null,null,null,"A: ","Anlage i.O."]
[]
[]
[null,null,null,null,null,null,null,null,null,"1. Prüfung",null,null,null,null,null,null,null,null,null,"A",null,"A",null,"B",null,"C",null,null,null,null,"B: ","2. Prüfung erforderlich"]
[]
[]
[null,null,null,null,null,null,null,null,null,"2. Prüfung",null,null,null,null,null,null,null,null,null,"A",null,"C",null,"C",null,"C",null,null,null,null,"C:","Anlage sanieren"]
[]
[]
[]
[null,null,null,null,null,null,null,null,null,"Bereich:",null,null,null,null,null,null,null,null,null,null,null,null,null,null,null,null,null,null,null,null,"Systemart:"]
[]
[null,null,null,null,null,null,null,null,null,"Pos.",null,"Auslösung bei 0.5 bar",null,null,null,"Auslösung bei .. bar",null,null,null,"Sprinklerfabrikat",null,null,null,null,null,null,null,null,null,"Produktions   jahr",null,null,null,"Sprinklerart",null,null,null,null,"Einbauart"]
[]
[]
[]
[null,null,null,null,null,null,null,null,null,1]
[]
[null,null,null,null,null,null,null,null,null,2]
[]
[null,null,null,null,null,null,null,null,null,3]
[]
[null,null,null,null,null,null,null,null,null,4]
[]
[null,null,null,null,null,null,null,null,null,5]
[]
[null,null,null,null,null,null,null,null,null,6]
[]
[null,null,null,null,null,null,null,null,null,7]
[]
[null,null,null,null,null,null,null,null,null,8]
[]
[null,null,null,null,null,null,null,null,null,9]
[]
[null,null,null,null,null,null,null,null,null,10]
[]
[null,null,null,null,null,null,null,null,null,11]
[]
[null,null,null,null,null,null,null,null,null,12]
[]
[null,null,null,null,null,null,null,null,null,13]
[]
[null,null,null,null,null,null,null,null,null,14]
[]
[null,null,null,null,null,null,null,null,null,15]
[]
[null,null,null,null,null,null,null,null,null,16]
[]
[null,null,null,null,null,null,null,null,null,17]
[]
[null,null,null,null,null,null,null,null,null,18]
[]
[null,null,null,null,null,null,null,null,null,19]
[]
[null,null,null,null,null,null,null,null,null,20]
[]
[null,null,null,null,null,null,null,null,null,21]
[]
[null,null,null,null,null,null,null,null,null,22]
[]
[null,null,null,null,null,null,null,null,null,23]
[]
[null,null,null,null,null,null,null,null,null,24]
[]
[null,null,null,null,null,null,null,null,null,25]
[]
[null,null,null,null,null,null,null,null,null,26]
[]
[null,null,null,null,null,null,null,null,null,27]
[]
[null,null,null,null,null,null,null,null,null,28]
[]
[null,null,null,null,null,null,null,null,null,29]
[]
[null,null,null,null,null,null,null,null,null,30]
[]
[null,null,null,null,null,null,null,null,null,31]
[]
[null,null,null,null,null,null,null,null,null,32]
[]
[null,null,null,null,null,null,null,null,null,33]
[]
[null,null,null,null,null,null,null,null,null,34]
[]
[null,null,null,null,null,null,null,null,null,35]
[]
[null,null,null,null,null,null,null,null,null,36]
[]
[null,null,null,null,null,null,null,null,null,"Die Betriebsbereitschaft des oben genannten Alarmventilbereichs ist gewährleistet?",null,null,null,null,null,null,null,null,null,null,null,null,null,null,null,null,null,null,null,null,null,null,null,null,null,null,null,"ja",null,null,null,"nein"]

{"sheet":"alt-Beurteilungs-Attest","index":7,"n_rows":270,"n_cols":50,"rows_kept":270,"cut":false,"hidden":true,"merged":[[123,21,123,24],[123,29,123,32],[125,21,125,24],[125,29,125,32],[127,13,127,50],[123,1,123,7],[1,35,1,50],[101,16,101,29],[101,33,101,35],[101,41,101,50],[104,16,104,29],[106,16,106,29],[106,41,106,50],[109,1,111,7],[111,9,113,50],[116,1,116,7],[89,16,89,29],[89,33,89,35],[89,41,89,50],[92,16,92,29],[94,16,94,29],[94,41,94,50],[97,1,99,7],[97,16,97,29],[99,16,99,29],[99,33,99,35],[99,41,99,50],[77,16,77,29],[77,33,77,35],[77,41,77,50],[80,16,80,29],[82,16,82,29],[82,41,82,50],[85,1,87,7],[85,16,85,29],[87,16,87,29],[87,33,87,35],[87,41,87,50],[65,16,65,29],[65,33,65,35],[65,41,65,50],[68,16,68,29],[70,16,70,29],[70,41,70,50],[73,1,75,7],[73,16,73,29],[75,16,75,29],[75,33,75,35],[75,41,75,50],[53,16,53,29],[53,33,53,35],[53,41,53,50],[56,16,56,29],[58,16,58,29],[58,41,58,50],[61,1,63,7],[61,16,61,29],[63,16,63,29],[63,33,63,35],[63,41,63,50],[41,16,41,29],[41,33,41,35],[41,41,41,50],[44,16,44,29],[44,35,44,40],[44,41,44,50],[46,16,46,29],[46,41,46,50],[49,1,51,7],[49,16,49,29],[51,16,51,29],[51,33,51,35],[51,41,51,50],[29,16,29,29],[29,33,29,35],[29,41,29,50],[32,16,32,29],[32,35,32,40],[32,41,32,50],[34,16,34,29],[34,41,34,50],[37,1,39,7],[37,16,37,29],[37,41,37,50],[39,16,39,29],[39,33,39,35],[39,41,39,50],[20,16,20,29],[20,41,20,50],[22,16,22,29],[25,1,27,7],[25,16,25,29],[25,41,25,50],[27,16,27,29],[27,33,27,35],[27,41,27,50],[8,41,8,50],[13,1,15,7],[13,16,13,29],[13,41,13,50],[15,16,15,29],[15,33,15,35],[15,41,15,50],[17,16,17,29],[17,33,17,35],[17,41,17,50],[8,16,8,22],[8,28,8,35],[267,35,267,38],[267,39,267,46],[267,47,267,50],[269,9,269,10],[269,11,269,14],[269,15,269,18],[269,19,269,26],[269,27,269,30],[269,31,269,34],[269,35,269,38],[267,9,267,10],[267,11,267,14],[267,15,267,18],[267,19,267,26],[267,27,267,30],[267,31,267,34],[269,39,269,46],[269,47,269,50],[263,47,263,50],[265,9,265,10],[265,11,265,14],[265,15,265,18],[265,19,265,26],[265,27,265,30],[265,31,265,34],[265,35,265,38],[265,39,265,46],[265,47,265,50],[263,9,263,10],[263,11,263,14],[263,15,263,18],[263,19,263,26],[263,27,263,30],[263,31,263,34],[263,35,263,38],[263,39,263,46],[261,9,261,10],[261,11,261,14],[261,15,261,18],[261,19,261,26],[261,27,261,30],[261,31,261,34],[261,35,261,38],[261,39,261,46],[261,47,261,50],[259,9,259,10],[259,11,259,14],[259,15,259,18],[259,19,259,26],[259,27,259,30],[259,31,259,34],[259,35,259,38],[259,39,259,46],[259,47,259,50],[255,35,255,38],[255,39,255,46],[255,47,255,50],[257,9,257,10],[257,11,257,14],[257,15,257,18],[257,19,257,26],[257,27,257,30],[257,31,257,34],[257,35,257,38],[255,9,255,10],[255,11,255,14],[255,15,255,18],[255,19,255,26],[255,27,255,30],[255,31,255,34],[257,39,257,46],[257,47,257,50],[253,9,253,10],[253,11,253,14],[253,15,253,18],[253,19,253,26],[253,27,253,30],[253,31,253,34],[253,35,253,38],[253,39,253,46],[253,47,253,50],[251,9,251,10],[251,11,251,14],[251,15,251,18],[251,19,251,26],[251,27,251,30],[251,31,251,34],[251,35,251,38],[251,39,251,46],[251,47,251,50],[247,35,247,38],[247,39,247,46],[247,47,247,50],[249,9,249,10],[249,11,249,14],[249,15,249,18],[249,19,249,26],[249,27,249,30],[249,31,249,34],[249,35,249,38],[247,9,247,10],[247,11,247,14],[247,15,247,18],[247,19,247,26],[247,27,247,30],[247,31,247,34],[249,39,249,46],[249,47,249,50],[245,9,245,10],[245,11,245,14],[245,15,245,18],[245,19,245,26],[245,27,245,30],[245,31,245,34],[245,35,245,38],[245,39,245,46],[245,47,245,50],[243,9,243,10],[243,11,243,14],[243,15,243,18],[243,19,243,26],[243,27,243,30],[243,31,243,34],[243,35,243,38],[243,39,243,46],[243,47,243,50],[241,9,241,10],[241,11,241,14],[241,15,241,18],[241,19,241,26],[241,27,241,30],[241,31,241,34],[241,35,241,38],[241,39,241,46],[241,47,241,50],[239,9,239,10],[239,11,239,14],[239,15,239,18],[239,19,239,26],[239,27,239,30],[239,31,239,34],[239,35,239,38],[239,39,239,46],[239,47,239,50],[235,27,235,30],[235,31,235,34],[235,35,235,38],[235,39,235,46],[235,47,235,50],[237,9,237,10],[237,11,237,14],[237,15,237,18],[237,19,237,26],[237,27,237,30],[235,9,235,10],[235,11,235,14],[235,15,235,18],[235,19,235,26],[237,31,237,34],[237,35,237,38],[237,39,237,46],[237,47,237,50],[233,9,233,10],[233,11,233,14],[233,15,233,18],[233,19,233,26],[233,27,233,30],[233,31,233,34],[233,35,233,38],[233,39,233,46],[233,47,233,50],[231,9,231,10],[231,11,231,14],[231,15,231,18],[231,19,231,26],[231,27,231,30],[231,31,231,34],[231,35,231,38],[231,39,231,46],[231,47,231,50],[229,9,229,10],[229,11,229,14],[229,15,229,18],[229,19,229,26],[229,27,229,30],[229,31,229,34],[229,35,229,38],[229,39,229,46],[229,47,229,50],[227,9,227,10],[227,11,227,14],[227,15,227,18],[227,19,227,26],[227,27,227,30],[227,31,227,34],[227,35,227,38],[227,39,227,46],[227,47,227,50],[223,27,223,30],[223,31,223,34],[223,35,223,38],[223,39,223,46],[223,47,223,50],[225,9,225,10],[225,11,225,14],[225,15,225,18],[225,19,225,26],[225,27,225,30],[223,9,223,10],[223,11,223,14],[223,15,223,18],[223,19,223,26],[225,31,225,34],[225,35,225,38],[225,39,225,46],[225,47,225,50],[221,9,221,10],[221,11,221,14],[221,15,221,18],[221,19,221,26],[221,27,221,30],[221,31,221,34],[221,35,221,38],[221,39,221,46],[221,47,221,50],[217,35,217,38],[217,39,217,46],[217,47,217,50],[219,9,219,10],[219,11,219,14],[219,15,219,18],[219,19,219,26],[219,27,219,30],[219,31,219,34],[219,35,219,38],[217,9,217,10],[217,11,217,14],[217,15,217,18],[217,19,217,26],[217,27,217,30],[217,31,217,34],[219,39,219,46],[219,47,219,50],[215,9,215,10],[215,11,215,14],[215,15,215,18],[215,19,215,26],[215,27,215,30],[215,31,215,34],[215,35,215,38],[215,39,215,46],[215,47,215,50],[213,9,213,10],[213,11,213,14],[213,15,213,18],[213,19,213,26],[213,27,213,30],[213,31,213,34],[213,35,213,38],[213,39,213,46],[213,47,213,50],[211,9,211,10],[211,11,211,14],[211,15,211,18],[211,19,211,26],[211,27,211,30],[211,31,211,34],[211,35,211,38],[211,39,211,46],[211,47,211,50],[207,47,207,50],[208,9,208,10],[209,9,209,10],[209,11,209,14],[209,15,209,18],[209,19,209,26],[209,27,209,30],[209,31,209,34],[209,35,209,38],[209,39,209,46],[209,47,209,50],[206,9,206,10],[207,9,207,10],[207,11,207,14],[207,15,207,18],[207,19,207,26],[207,27,207,30],[207,31,207,34],[207,35,207,38],[207,39,207,46],[203,47,203,50],[204,9,204,10],[205,9,205,10],[205,11,205,14],[205,15,205,18],[205,19,205,26],[205,27,205,30],[205,31,205,34],[205,35,205,38],[205,39,205,46],[205,47,205,50],[202,9,202,10],[203,9,203,10],[203,11,203,14],[203,15,203,18],[203,19,203,26],[203,27,203,30],[203,31,203,34],[203,35,203,38],[203,39,203,46],[201,9,201,10],[201,11,201,14],[201,15,201,18],[201,19,201,26],[201,27,201,30],[201,31,201,34],[201,35,201,38],[201,39,201,46],[201,47,201,50],[197,9,198,10],[197,11,198,14],[197,15,198,18],[197,19,198,26],[177,28,177,50],[187,19,187,20],[187,21,187,22],[187,23,187,24],[187,25,187,26],[190,19,190,20],[190,21,190,22],[190,23,190,24],[190,25,190,26],[197,27,198,30],[197,31,198,34],[197,35,198,38],[197,39,198,46],[197,47,198,50],[162,1,162,5],[170,10,170,28],[135,1,135,4],[135,9,135,50],[139,9,139,50],[141,9,141,50],[144,9,144,50],[146,9,146,50],[193,19,193,20],[193,21,193,22],[193,23,193,24],[193,25,193,26],[175,28,175,40],[175,45,175,50],[148,9,148,50],[159,9,159,50],[153,14,153,50],[155,9,155,50],[157,9,157,50],[0,0,0,11],[2,16,2,17],[3,2,3,14],[4,1,7,7],[4,16,4,50],[6,16,6,26],[6,28,6,29],[6,34,6,35],[6,39,6,50]]}
["Sprinkleranlage "]
["Beurteilungs-Attest",null,null,null,null,null,null,null,null,null,null,null,null,null,null,null,null,null,null,null,null,null,null,null,null,null,null,null,null,null,null,null,null,null,null,"Entwurf: Stand 23.09.2015"]
[]
[]
["1.","Geschütztes              Gebäude",null,null,null,null,null,null,null,"Objekt",null,null,null,null,null,null,{"$f":"'Allgemeine Daten'!$Q$5","v":0}]
[]
[null,null,null,null,null,null,null,null,null,"Strasse",null,null,null,null,null,null,{"$f":"'Allgemeine Daten'!Q7:AA7","v":0},null,null,null,null,null,null,null,null,null,null,"Nr.",{"$f":"'Allgemeine Daten'!$AE$7","v":0},null,null,null,"PLZ",null,{"$f":"'Allgemeine Daten'!$AH$9","v":0},null,null,"Ort",null,{"$f":"'Allgemeine Daten'!$Q$9","v":0}]
[]
[null,null,null,null,null,null,null,null,null,"Versicherungs Nr.",null,null,null,null,null,null,{"$f":"'Allgemeine Daten'!#REF!","v":{"$error":"#REF!"}},null,null,null,null,null,null,null,"Kataster Nr.",null,null,null,{"$f":"'Allgemeine Daten'!$AQ$9","v":0},null,null,null,null,null,null,null,null,"Anlage Nr.",null,null,null,{"$f":"'Allgemeine Daten'!$AP$7","v":0}]
[]
[null,null,null,null,null,null,null,null,null,"Qualitätssicherungsstufe ",null,null,null,null,null,null,null,"QSS 1",null,null,null,null,null,null,"QSS 2",null,null,null,null,null,null,"QSS 3",null,null,null,null,null,null,"QSS 4"]
[]
[]
["2.","QS Verantwortlicher Brandschutz",null,null,null,null,null,null,null,"Name",null,null,null,null,null,null,{"$f":"'Allgemeine Daten'!Q64:AD64","v":0},null,null,null,null,null,null,null,null,null,null,null,null,null,null,"VKF Anerkennung Nr.",null,null,null,null,null,null,null,null,null,{"$f":"'Allgemeine Daten'!#REF!","v":{"$error":"#REF!"}}]
[]
[null,null,null,null,null,null,null,null,null,"Strasse",null,null,null,null,null,null,{"$f":"'Allgemeine Daten'!$Q$66","v":0},null,null,null,null,null,null,null,null,null,null,null,null,null,null,"Nr.",null,{"$f":"'Allgemeine Daten'!$AH$66","v":0},null,null,null,"Tel.",null,null,null,{"$f":"'Allgemeine Daten'!AQ66","v":0}]
[]
[null,null,null,null,null,null,null,null,null,"Ort",null,null,null,null,null,null,{"$f":"'Allgemeine Daten'!$Q$68","v":0},null,null,null,null,null,null,null,null,null,null,null,null,null,null,"PLZ",null,{"$f":"'Allgemeine Daten'!$AH$68","v":0},null,null,null,"Fax",null,null,null,{"$f":"'Allgemeine Daten'!AQ68","v":0}]
[]
[]
[null,null,null,null,null,null,null,null,null,"Kontaktperson",null,null,null,null,null,null,{"$f":"'Allgemeine Daten'!$Q$71","v":0},null,null,null,null,null,null,null,null,null,null,null,null,null,null,null,null,null,null,null,null,"Tel. direkt",null,null,null,{"$f":"'Allgemeine Daten'!AO64","v":0}]
[]
[null,null,null,null,null,null,null,null,null,"E-Mail",null,null,null,null,null,null,{"$f":"'Allgemeine Daten'!$Q$73","v":0}]
[]
[]
["3.","Anerkannte Fachfirma für Planung",null,null,null,null,null,null,null,"Name",null,null,null,null,null,null,{"$f":"'Allgemeine Daten'!Q76","v":0},null,null,null,null,null,null,null,null,null,null,null,null,null,null,"VKF Anerkennung Nr.",null,null,null,null,null,null,null,null,null,{"$f":"'Allgemeine Daten'!AQ76","v":0}]
[]
[null,null,null,null,null,null,null,null,null,"Strasse",null,null,null,null,null,null,{"$f":"'Allgemeine Daten'!Q78","v":0},null,null,null,null,null,null,null,null,null,null,null,null,null,null,"Nr.",null,{"$f":"'Allgemeine Daten'!AH78","v":0},null,null,null,"Tel.",null,null,null,{"$f":"'Allgemeine Daten'!AQ78","v":0}]
[]
[null,null,null,null,null,null,null,null,null,"Ort",null,null,null,null,null,null,{"$f":"'Allgemeine Daten'!Q80","v":0},null,null,null,null,null,null,null,null,null,null,null,null,null,null,"PLZ",null,{"$f":"'Allgemeine Daten'!AH80","v":0},null,null,null,"Fax",null,null,null,{"$f":"'Allgemeine Daten'!AQ80","v":0}]
[]
[]
[null,null,null,null,null,null,null,null,null,"Zuständige Person",null,null,null,null,null,null,{"$f":"'Allgemeine Daten'!Q83:AD83","v":0},null,null,null,null,null,null,null,null,null,null,null,null,null,null,null,null,null,null,"VKF Zertifikat Nr.",null,null,null,null,null,{"$f":"'Allgemeine Daten'!AQ83","v":0}]
[]
[null,null,null,null,null,null,null,null,null,"E-Mail",null,null,null,null,null,null,{"$f":"'Allgemeine Daten'!Q85","v":0},null,null,null,null,null,null,null,null,null,null,null,null,null,null,null,null,null,null,null,null,"Tel. direkt",null,null,null,{"$f":"'Allgemeine Daten'!AQ85:AZ85","v":{"$error":"#VALUE!"}}]
[]
[]
["4.","Anerkannte Fachfirma für Errichtung",null,null,null,null,null,null,null,"Firma",null,null,null,null,null,null,{"$f":"'Allgemeine Daten'!Q88","v":0},null,null,null,null,null,null,null,null,null,null,null,null,null,null,"VKF Anerkennung Nr.",null,null,null,null,null,null,null,null,null,{"$f":"'Allgemeine Daten'!AQ88","v":0}]
[]
[null,null,null,null,null,null,null,null,null,"Strasse",null,null,null,null,null,null,{"$f":"'Allgemeine Daten'!Q90","v":0},null,null,null,null,null,null,null,null,null,null,null,null,null,null,"Nr.",null,{"$f":"'Allgemeine Daten'!AH90","v":0},null,null,null,"Tel.",null,null,null,{"$f":"'Allgemeine Daten'!AQ90","v":0}]
[]
[null,null,null,null,null,null,null,null,null,"Ort",null,null,null,null,null,null,{"$f":"'Allgemeine Daten'!Q92","v":0},null,null,null,null,null,null,null,null,null,null,null,null,null,null,"PLZ",null,{"$f":"'Allgemeine Daten'!AH92","v":0},null,null,null,"Fax",null,null,null,{"$f":"'Allgemeine Daten'!AQ92","v":0}]
[]
[]
[null,null,null,null,null,null,null,null,null,"Zuständige Person",null,null,null,null,null,null,{"$f":"'Allgemeine Daten'!Q95","v":0},null,null,null,null,null,null,null,null,null,null,null,null,null,null,null,null,null,null,"VKF Zertifikat Nr.",null,null,null,null,null,{"$f":"'Allgemeine Daten'!AQ95","v":0}]
[]
[null,null,null,null,null,null,null,null,null,"E-Mail",null,null,null,null,null,null,{"$f":"'Allgemeine Daten'!Q97","v":0},null,null,null,null,null,null,null,null,null,null,null,null,null,null,null,null,null,null,null,null,"Tel. direkt",null,null,null,{"$f":"'Allgemeine Daten'!AQ97","v":0}]
[]
[]
["5.","Eigentümerschaft",null,null,null,null,null,null,null,"Name",null,null,null,null,null,null,{"$f":"'Allgemeine Daten'!#REF!","v":{"$error":"#REF!"}}]
[]
[null,null,null,null,null,null,null,null,null,"Strasse",null,null,null,null,null,null,{"$f":"'Allgemeine Daten'!#REF!","v":{"$error":"#REF!"}},null,null,null,null,null,null,null,null,null,null,null,null,null,null,"Nr.",null,{"$f":"'Allgemeine Daten'!#REF!","v":{"$error":"#REF!"}},null,null,null,"Tel.",null,null,null,{"$f":"'Allgemeine Daten'!#REF!","v":{"$error":"#REF!"}}]
[]
[null,null,null,null,null,null,null,null,null,"Ort",null,null,null,null,null,null,{"$f":"'Allgemeine Daten'!#REF!","v":{"$error":"#REF!"}},null,null,null,null,null,null,null,null,null,null,null,null,null,null,"PLZ",null,{"$f":"'Allgemeine Daten'!#REF!","v":{"$error":"#REF!"}},null,null,null,"Fax",null,null,null,{"$f":"'Allgemeine Daten'!#REF!","v":{"$error":"#REF!"}}]
[]
[]
[null,null,null,null,null,null,null,null,null,"Zuständige Person",null,null,null,null,null,null,{"$f":"'Allgemeine Daten'!#REF!","v":{"$error":"#REF!"}}]
[]
[null,null,null,null,null,null,null,null,null,"E-Mail",null,null,null,null,null,null,{"$f":"'Allgemeine Daten'!#REF!","v":{"$error":"#REF!"}},null,null,null,null,null,null,null,null,null,null,null,null,null,null,null,null,null,null,null,null,"Tel. direkt",null,null,null,{"$f":"'Allgemeine Daten'!#REF!","v":{"$error":"#REF!"}}]
[]
[]
["6.","Vertreter der Eigentümerschaft",null,null,null,null,null,null,null,"Name",null,null,null,null,null,null,{"$f":"'Allgemeine Daten'!#REF!","v":{"$error":"#REF!"}}]
[]
[null,null,null,null,null,null,null,null,null,"Strasse",null,null,null,null,null,null,{"$f":"'Allgemeine Daten'!#REF!","v":{"$error":"#REF!"}},null,null,null,null,null,null,null,null,null,null,null,null,null,null,"Nr.",null,{"$f":"'Allgemeine Daten'!#REF!","v":{"$error":"#REF!"}},null,null,null,"Tel.",null,null,null,{"$f":"'Allgemeine Daten'!#REF!","v":{"$error":"#REF!"}}]
[]
[null,null,null,null,null,null,null,null,null,"Ort",null,null,null,null,null,null,{"$f":"'Allgemeine Daten'!#REF!","v":{"$error":"#REF!"}},null,null,null,null,null,null,null,null,null,null,null,null,null,null,"PLZ",null,{"$f":"'Allgemeine Daten'!#REF!","v":{"$error":"#REF!"}},null,null,null,"Fax",null,null,null,{"$f":"'Allgemeine Daten'!#REF!","v":{"$error":"#REF!"}}]
[]
[]
[null,null,null,null,null,null,null,null,null,"Zuständige Person",null,null,null,null,null,null,{"$f":"'Allgemeine Daten'!#REF!","v":{"$error":"#REF!"}}]
[]
[null,null,null,null,null,null,null,null,null,"E-Mail",null,null,null,null,null,null,{"$f":"'Allgemeine Daten'!#REF!","v":{"$error":"#REF!"}},null,null,null,null,null,null,null,null,null,null,null,null,null,null,null,null,null,null,null,null,"Tel. direkt",null,null,null,{"$f":"'Allgemeine Daten'!#REF!","v":{"$error":"#REF!"}}]
[]
[]
["7.","Sprinklerwart",null,null,null,null,null,null,null,"Name",null,null,null,null,null,null,{"$f":"'Allgemeine Daten'!Q100:AD100","v":0}]
[]
[null,null,null,null,null,null,null,null,null,"Strasse",null,null,null,null,null,null,{"$f":"'Allgemeine Daten'!Q102:AD102","v":0},null,null,null,null,null,null,null,null,null,null,null,null,null,null,"Nr.",null,{"$f":"'Allgemeine Daten'!AH102:AJ102","v":0},null,null,null,"Tel.",null,null,null,{"$f":"'Allgemeine Daten'!AQ102:AZ102","v":{"$error":"#VALUE!"}}]
[]
[null,null,null,null,null,null,null,null,null,"Ort",null,null,null,null,null,null,{"$f":"'Allgemeine Daten'!Q104:AD104","v":0},null,null,null,null,null,null,null,null,null,null,null,null,null,null,"PLZ",null,{"$f":"'Allgemeine Daten'!AH104:AJ104","v":0},null,null,null,"Fax",null,null,null,{"$f":"'Allgemeine Daten'!AQ104:AZ104","v":{"$error":"#VALUE!"}}]
[]
[]
[null,null,null,null,null,null,null,null,null,"Zuständige Person",null,null,null,null,null,null,{"$f":"'Allgemeine Daten'!Q107:AD107","v":0}]
[]
[null,null,null,null,null,null,null,null,null,"E-Mail",null,null,null,null,null,null,{"$f":"'Allgemeine Daten'!Q109:AD109","v":0},null,null,null,null,null,null,null,null,null,null,null,null,null,null,null,null,null,null,null,null,"Tel. direkt",null,null,null,{"$f":"'Allgemeine Daten'!AQ109:AZ109","v":{"$error":"#VALUE!"}}]
[]
[]
["8.","Brandschutz               Behörde",null,null,null,null,null,null,null,"Name",null,null,null,null,null,null,{"$f":"'Allgemeine Daten'!Q117:AD117","v":0}]
[]
[null,null,null,null,null,null,null,null,null,"Strasse",null,null,null,null,null,null,{"$f":"'Allgemeine Daten'!Q119:AD119","v":0},null,null,null,null,null,null,null,null,null,null,null,null,null,null,"Nr.",null,{"$f":"'Allgemeine Daten'!AH119:AJ119","v":0},null,null,null,"Tel.",null,null,null,{"$f":"'Allgemeine Daten'!AQ119:AZ119","v":{"$error":"#VALUE!"}}]
[]
[null,null,null,null,null,null,null,null,null,"Ort",null,null,null,null,null,null,{"$f":"'Allgemeine Daten'!Q121:AD121","v":0},null,null,null,null,null,null,null,null,null,null,null,null,null,null,"PLZ",null,{"$f":"'Allgemeine Daten'!AH121:AJ121","v":0},null,null,null,"Fax",null,null,null,{"$f":"'Allgemeine Daten'!AQ121:AZ121","v":{"$error":"#VALUE!"}}]
[]
[]
[null,null,null,null,null,null,null,null,null,"Zuständige Person",null,null,null,null,null,null,{"$f":"'Allgemeine Daten'!Q124:AD124","v":0}]
[]
[null,null,null,null,null,null,null,null,null,"E-Mail",null,null,null,null,null,null,{"$f":"'Allgemeine Daten'!Q126:AD126","v":0},null,null,null,null,null,null,null,null,null,null,null,null,null,null,null,null,null,null,null,null,"Tel. direkt",null,null,null,{"$f":"'Allgemeine Daten'!AQ126:AZ126","v":{"$error":"#VALUE!"}}]
[]
[]
["9.","Inspektionsstelle",null,null,null,null,null,null,null,"Name",null,null,null,null,null,null,{"$f":"'Allgemeine Daten'!Q129:AD129","v":0}]
[]
[null,null,null,null,null,null,null,null,null,"Strasse",null,null,null,null,null,null,{"$f":"'Allgemeine Daten'!Q131:AD131","v":0},null,null,null,null,null,null,null,null,null,null,null,null,null,null,"Nr.",null,{"$f":"'Allgemeine Daten'!AH131:AJ131","v":0},null,null,null,"Tel.",null,null,null,{"$f":"'Allgemeine Daten'!AQ131:AZ131","v":{"$error":"#VALUE!"}}]
[]
[null,null,null,null,null,null,null,null,null,"Ort",null,null,null,null,null,null,{"$f":"'Allgemeine Daten'!Q133:AD133","v":0},null,null,null,null,null,null,null,null,null,null,null,null,null,null,"PLZ",null,{"$f":"'Allgemeine Daten'!AH133:AJ133","v":0},null,null,null,"Fax",null,null,null,{"$f":"'Allgemeine Daten'!AQ133:AZ133","v":{"$error":"#VALUE!"}}]
[]
[]
[null,null,null,null,null,null,null,null,null,"Zuständige Person",null,null,null,null,null,null,{"$f":"'Allgemeine Daten'!Q136:AD136","v":0}]
[]
[null,null,null,null,null,null,null,null,null,"E-Mail",null,null,null,null,null,null,{"$f":"'Allgemeine Daten'!Q138:AD138","v":0},null,null,null,null,null,null,null,null,null,null,null,null,null,null,null,null,null,null,null,null,"Tel. direkt",null,null,null,{"$f":"'Allgemeine Daten'!AQ138:AZ138","v":{"$error":"#VALUE!"}}]
[]
[]
["10.","Projekt Beschreibung",null,null,null,null,null,null,null,null,"  Neuanlage",null,null,null,null,null,null,null,"Erweiterungen ",null,null,null,null,null,null,null,null,"  Umbau / Sanierungen"]
[]
[null,null,null,null,null,null,null,null,null,{"$f":"'Allgemeine Daten'!#REF!","v":{"$error":"#REF!"}}]
[]
[]
[]
[]
["11.","Anlagestatus",null,null,null,null,null,null,null,"Vorgeschrieben aufgrund:",null,null,null,null,null,null,null,null,"Baulichem Konzept (VKF BSN Art. 10)",null,null,null,null,null,null,null,null,null,null,null,null,null,null,null,null," Löschanlagenkonzept  (VKF BSN Art. 10)"]
[]
[null,null,null,null,null,null,null,null,null,null,null,null,null,null,null,null,null,null,"Alternativem Brandschutzkonzept (VKF BSN Art. 11 /12)"]
[]
[null,null,null,null,null,null,null,null,null,null,"  freiwillig und auf die öffentliche Feuermeldestelle aufgeschaltet"]
[]
[]
["12","Planungsgrundlagen",null,null,null,null,null,null,null,null,"Brandschutzpläne (QSS 1/2) vom",null,null,null,null,null,null,null,null,null,null,null,null,null,null,null,"Version"]
[]
[null,null,null,null,null,null,null,null,null,null,"Brandschutzkonzept (QSS 3/4) vom",null,null,null,null,null,null,null,null,null,null,null,null,null,null,null,"Version"]
[]
[null,null,null,null,null,null,null,null,null,"Verfasser:"]
[]
[]
["13.","Schutzumfang",null,null,null,null,null,null,null,null,"Vollschutz",null,null,null,null,null,null,null,"Teilschutz",null,null,null,null,null,null,null,"zusätzliche Handfeuermelder"]
[]
[null,null,null,null,null,null,null,null,null,"Ungeschützte Überdachungen / Rampen vorhanden",null,null,null,null,null,null,null,null,null,null,null,null,null,null,null,null,"ja",null,null,"nein",null,null,"wenn ja, Bestätigung keine Lagerung",null,null,null,null,null,null,null,null,null,null,null,null,null,"ja",null,null,"nein"]
[]
[]
["4.","Vorgehen",null,null,null,null,null,null,null,"Überprüfung der Sprinkleranlage alle 10 Jahre anlässlich der Wartung bezüglich Betriebsbereitschaft. Insbesondere sind die Funktions-"]
[]
[null,null,null,null,null,null,null,null,null,"bereitschaft der Sprinkler sowie die Austrittsöffnung der Rohrleitungen stichprobeweise zu kontrollieren. Das Ergebnis ist mittels dem"]
[]
[null,null,null,null,null,null,null,null,null,"Beurteilungs-Attest dem Anlageeigentümer sowie den kantonalen Brandschutzbehörden zu melden. Die kantonale Brandschutzbehörde"]
[]
[null,null,null,null,null,null,null,null,null,"setzt je nach Ergebins die Frist für allfällig notwendige Massnahmen fest."]
[]
[]
[null,null,null,null,null,null,null,null,null,"Pro Alarmventil und pro Bauetappe sind je 20 Sprinkler an Ort und Stelle zu überprüfen. Sie müssen einzeln mittels dem Prüfgerät unter"]
[]
[null,null,null,null,null,null,null,null,null,"Druck (0.5 bar) bis zur Auslösung aufgewärmt werden. Es sind verschiedene Teibereiche zu prüfen vorzugsweise hängend "]
[]
[null,null,null,null,null,null,null,null,null,"angeordnete Sprinkler."]
[]
[]
["5.","Befund",null,null,null,null,null,null,null,"Die Betriebsbereitschaft des oben genannten Alarmventilbereichs ist gewährleistet?",null,null,null,null,null,null,null,null,null,null,null,null,null,null,null,null,null,null,null,null,null,null,null,null,null,null,null,"ja",null,null,null,"nein"]
[]
[null,null,null,null,null,null,null,null,null,"Bemerkungen"]
[]
[]
[]
[]
[]
[]
[]
[]
["6.","Verteiler",null,null,null,null,null,null,null,"Verteilung durch die Sprinklerfirma an"]
[]
[]
[]
[]
[]
[null,null,null,null,null,null,null,null,null,null,"Anlageeigentümer"]
[]
[]
[]
[]
["7.","Unterschrift",null,null,null,null,null,null,null,null,null,null,null,null,null,null,null,null,null,null,null,null,null,null,null,null,"Unterschrift der VKF anerkannten Fachfirma"]
[]
[null,null,null,null,null,null,null,null,null,null,null,null,null,null,null,null,null,null,null,null,null,null,null,null,null,null,"Ort",null,null,null,null,null,null,null,null,null,null,null,null,null,null,null,"Datum"]
[]
[]
[]
[]
[]
[]
[]
[]
["8.","Versagerspiegel",null,null,null,null,null,null,null,null,null,null,null,null,null,null,null,null,null,"Versager",null,null,null,null,null,null,null,null,null,null,"Legende"]
[]
[]
[null,null,null,null,null,null,null,null,null,"Anzahl Sprinkler",null,null,null,null,null,null,null,null,null,0,null,1,null,2,null,">2",null,null,null,null,"A: ","Anlage i.O."]
[]
[]
[null,null,null,null,null,null,null,null,null,"1. Prüfung",null,null,null,null,null,null,null,null,null,"A",null,"A",null,"B",null,"C",null,null,null,null,"B: ","2. Prüfung erforderlich"]
[]
[]
[null,null,null,null,null,null,null,null,null,"2. Prüfung",null,null,null,null,null,null,null,null,null,"A",null,"C",null,"C",null,"C",null,null,null,null,"C:","Anlage sanieren"]
[]
[]
[]
[null,null,null,null,null,null,null,null,null,"Pos.",null,"Auslösung bei 0.5 bar",null,null,null,"Auslösung bei .. bar",null,null,null,"Sprinklerfabrikat",null,null,null,null,null,null,null,"Produktions   jahr",null,null,null,"Sprinklerart",null,null,null,"Einbauart",null,null,null,"Bereich",null,null,null,null,null,null,null,"Systemart"]
[]
[]
[]
[null,null,null,null,null,null,null,null,null,1]
[]
[null,null,null,null,null,null,null,null,null,2]
[]
[null,null,null,null,null,null,null,null,null,3]
[]
[null,null,null,null,null,null,null,null,null,4]
[]
[null,null,null,null,null,null,null,null,null,5]
[]
[null,null,null,null,null,null,null,null,null,6]
[]
[null,null,null,null,null,null,null,null,null,7]
[]
[null,null,null,null,null,null,null,null,null,8]
[]
[null,null,null,null,null,null,null,null,null,9]
[]
[null,null,null,null,null,null,null,null,null,10]
[]
[null,null,null,null,null,null,null,null,null,11]
[]
[null,null,null,null,null,null,null,null,null,12]
[]
[null,null,null,null,null,null,null,null,null,13]
[]
[null,null,null,null,null,null,null,null,null,14]
[]
[null,null,null,null,null,null,null,null,null,15]
[]
[null,null,null,null,null,null,null,null,null,16]
[]
[null,null,null,null,null,null,null,null,null,17]
[]
[null,null,null,null,null,null,null,null,null,18]
[]
[null,null,null,null,null,null,null,null,null,19]
[]
[null,null,null,null,null,null,null,null,null,20]
[]
[null,null,null,null,null,null,null,null,null,21]
[]
[null,null,null,null,null,null,null,null,null,22]
[]
[null,null,null,null,null,null,null,null,null,23]
[]
[null,null,null,null,null,null,null,null,null,24]
[]
[null,null,null,null,null,null,null,null,null,25]
[]
[null,null,null,null,null,null,null,null,null,26]
[]
[null,null,null,null,null,null,null,null,null,27]
[]
[null,null,null,null,null,null,null,null,null,28]
[]
[null,null,null,null,null,null,null,null,null,29]
[]
[null,null,null,null,null,null,null,null,null,30]
[]
[null,null,null,null,null,null,null,null,null,31]
[]
[null,null,null,null,null,null,null,null,null,32]
[]
[null,null,null,null,null,null,null,null,null,33]
[]
[null,null,null,null,null,null,null,null,null,34]
[]
[null,null,null,null,null,null,null,null,null,35]

{"sheet":"Vorabklärung-Generalüberholung","index":8,"n_rows":475,"n_cols":49,"rows_kept":475,"cut":false,"hidden":false,"merged":[[371,1,373,7],[340,1,342,7],[344,1,346,7],[367,1,369,7],[329,1,331,7],[348,1,350,7],[4,1,7,7],[143,1,144,7],[77,1,79,7],[183,1,185,7],[296,1,298,7],[300,1,302,7],[65,1,67,7],[196,1,196,7],[162,1,164,7],[166,1,168,7],[150,1,152,7],[158,1,160,7],[275,1,277,7],[279,1,281,7],[13,1,15,7],[187,1,189,7],[271,1,273,7],[25,1,25,7],[77,16,77,29],[79,16,79,29],[79,33,79,35],[96,16,96,29],[81,33,81,35],[84,16,84,29],[86,16,86,29],[89,1,91,7],[136,1,136,7],[98,16,98,29],[101,1,103,7],[89,16,89,29],[91,16,91,29],[93,16,93,29],[93,33,93,35],[143,21,143,24],[143,29,143,32],[476,1,481,22],[257,1,259,7],[456,1,456,22],[460,1,465,22],[425,29,425,48],[427,29,427,48],[430,1,432,7],[440,28,440,50],[442,28,442,50],[449,1,449,23],[468,1,468,15],[468,17,468,22],[309,1,311,7],[420,11,420,19],[420,24,420,28],[420,35,420,50],[472,1,472,22],[452,17,452,22],[380,1,382,7],[405,1,407,7],[409,1,411,7],[413,1,415,7],[452,1,452,15],[425,10,425,26],[91,33,91,35],[60,16,60,29],[62,16,62,29],[427,10,427,26],[375,1,377,7],[108,1,110,7],[113,1,115,7],[123,1,125,7],[127,1,129,7],[121,32,121,35],[81,16,81,29],[131,1,133,7],[304,1,306,7],[321,1,323,7],[325,1,327,7],[220,1,222,7],[224,1,226,7],[238,10,240,35],[230,1,232,7],[145,21,145,24],[145,29,145,32],[191,1,193,7],[147,13,147,44],[200,10,200,36],[216,1,218,7],[252,1,254,7],[271,9,273,50],[275,9,277,50],[279,9,281,50],[248,1,250,7],[244,1,246,7],[4,16,4,35],[4,41,4,51],[6,16,6,28],[6,33,6,35],[6,41,6,51],[8,16,8,28],[8,33,8,35],[8,41,8,51],[72,16,72,29],[72,41,72,51],[22,16,22,29],[22,41,22,51],[34,16,34,29],[34,41,34,51],[46,16,46,29],[46,41,46,51],[57,16,57,29],[57,33,57,35],[25,16,25,29],[27,16,27,29],[27,33,27,35],[27,41,27,51],[29,16,29,29],[29,33,29,35],[53,16,53,29],[55,16,55,29],[53,1,55,7],[57,41,57,51],[13,16,13,29],[15,16,15,29],[15,33,15,35],[15,41,15,51],[17,16,17,29],[17,33,17,35],[17,41,17,51],[20,16,20,29],[48,16,48,29],[50,16,50,29],[50,41,50,51],[53,41,53,51],[55,41,55,51],[55,33,55,35],[300,9,302,50],[191,9,193,50],[216,9,218,50],[220,9,222,50],[224,9,226,50],[244,9,246,50],[248,9,250,50],[252,9,254,50],[296,9,298,50],[198,10,198,36],[304,9,306,50],[65,16,65,29],[65,41,65,51],[29,41,29,51],[32,16,32,29],[37,1,39,7],[37,16,37,29],[39,16,39,29],[39,33,39,35],[39,41,39,51],[41,16,41,29],[41,33,41,35],[41,41,41,51],[67,16,67,29],[67,33,67,35],[67,41,67,51],[69,16,69,29],[69,33,69,35],[69,41,69,51],[101,9,105,51],[74,16,74,29],[74,41,74,51],[196,10,196,36],[187,9,189,50],[10,41,10,51],[405,9,407,50],[409,9,411,50],[413,9,415,50],[321,9,323,50],[325,9,327,50],[329,9,331,50],[340,9,342,50],[344,9,346,50],[348,9,350,50],[367,9,369,50],[371,9,373,50],[375,9,377,50],[44,16,44,29],[60,41,60,51],[62,41,62,51],[401,9,403,36],[123,9,125,50],[127,9,129,50],[131,9,133,50],[158,9,160,50],[162,9,164,50],[166,9,168,50],[183,9,185,50]]}
[null,null,null,null,null,null,null,null,null,"Sprinkleranlage "]
[null,null,null,null,null,null,null,null,null,"Vorabklärung-Generalüberholung Ziffer 5.4 Abs.3 BSR 19-15"]
[]
[]
["1.","Geschütztes              Gebäude",null,null,null,null,null,null,null,"Objekt",null,null,null,null,null,null,{"$f":"'Allgemeine Daten'!Q5:AJ5","v":0},null,null,null,null,null,null,null,null,null,null,null,null,null,null,null,null,null,null,null,null,"Vers.- Nr.",null,null,null,{"$f":"'Allgemeine Daten'!AP5:AZ5","v":0}]
[]
[null,null,null,null,null,null,null,null,null,"Strasse",null,null,null,null,null,null,{"$f":"'Allgemeine Daten'!Q7:AC7","v":0},null,null,null,null,null,null,null,null,null,null,null,null,null,null,"Nr.",null,{"$f":"'Allgemeine Daten'!AH7:AJ7","v":0},null,null,null,"Anlage Nr.",null,null,null,{"$f":"'Allgemeine Daten'!AP7:AZ7","v":0}]
[]
[null,null,null,null,null,null,null,null,null,"Ort",null,null,null,null,null,null,{"$f":"'Allgemeine Daten'!Q9:AC9","v":0},null,null,null,null,null,null,null,null,null,null,null,null,null,null,"PLZ",null,{"$f":"'Allgemeine Daten'!AH9:AJ9","v":0},null,null,null,"Kataster Nr.",null,null,null,{"$f":"'Allgemeine Daten'!AP9:AZ9","v":0}]
[]
[null,null,null,null,null,null,null,null,null,"Qualitätssicherungsstufe ",null,null,null,null,null,null,null," QSS",null,{"$f":"'Allgemeine Daten'!S11","v":" -"},null,null,null,null,null,null,null,null,null,null,null,null,null,null,null,null,null,"EGID Nr.",null,null,null,{"$f":"'Allgemeine Daten'!AP11:AZ11","v":0}]
[]
[]
["2.","Eigentümer- und Nutzerschaft",null,null,null,null,null,null,null,"Name",null,null,null,null,null,null,{"$f":"'Allgemeine Daten'!Q14:AD14","v":0}]
[]
[null,null,null,null,null,null,null,null,null,"Strasse",null,null,null,null,null,null,{"$f":"'Allgemeine Daten'!Q16:AD16","v":0},null,null,null,null,null,null,null,null,null,null,null,null,null,null,"Nr.",null,{"$f":"'Allgemeine Daten'!AH16:AJ16","v":0},null,null,null,"Tel.",null,null,null,{"$f":"'Allgemeine Daten'!AP16:AZ16","v":0}]
[]
[null,null,null,null,null,null,null,null,null,"Ort",null,null,null,null,null,null,{"$f":"'Allgemeine Daten'!Q18:AD18","v":0},null,null,null,null,null,null,null,null,null,null,null,null,null,null,"PLZ",null,{"$f":"'Allgemeine Daten'!AH18:AJ18","v":0},null,null,null,"Fax",null,null,null,{"$f":"'Allgemeine Daten'!AP18:AZ18","v":0}]
[]
[]
[null,null,null,null,null,null,null,null,null,"Zuständige Person",null,null,null,null,null,null,{"$f":"'Allgemeine Daten'!Q21:AD21","v":0}]
[]
[null,null,null,null,null,null,null,null,null,"E-Mail",null,null,null,null,null,null,{"$f":"'Allgemeine Daten'!Q23:AD23","v":0},null,null,null,null,null,null,null,null,null,null,null,null,null,null,null,null,null,null,null,null,"Tel. direkt",null,null,null,{"$f":"'Allgemeine Daten'!AP23:AZ23","v":0}]
[]
[]
["3.","Vertreter",null,null,null,null,null,null,null,"Firma",null,null,null,null,null,null,{"$f":"'Allgemeine Daten'!Q26:AD26","v":0}]
[]
[null,null,null,null,null,null,null,null,null,"Strasse",null,null,null,null,null,null,{"$f":"'Allgemeine Daten'!Q28:AD28","v":0},null,null,null,null,null,null,null,null,null,null,null,null,null,null,"Nr.",null,{"$f":"'Allgemeine Daten'!AH28:AJ28","v":0},null,null,null,"Tel.",null,null,null,{"$f":"'Allgemeine Daten'!AP28:AZ28","v":0}]
[]
[null,null,null,null,null,null,null,null,null,"Ort",null,null,null,null,null,null,{"$f":"'Allgemeine Daten'!Q30:AD30","v":0},null,null,null,null,null,null,null,null,null,null,null,null,null,null,"PLZ",null,{"$f":"'Allgemeine Daten'!AH30:AJ30","v":0},null,null,null,"Fax",null,null,null,{"$f":"'Allgemeine Daten'!AP30:AZ30","v":0}]
[]
[]
[null,null,null,null,null,null,null,null,null,"Zuständige Person",null,null,null,null,null,null,{"$f":"'Allgemeine Daten'!Q33:AD33","v":0}]
[]
[null,null,null,null,null,null,null,null,null,"E-Mail",null,null,null,null,null,null,{"$f":"'Allgemeine Daten'!Q35:AD35","v":0},null,null,null,null,null,null,null,null,null,null,null,null,null,null,null,null,null,null,null,null,"Tel. direkt",null,null,null,{"$f":"'Allgemeine Daten'!AP35:AZ35","v":0}]
[]
[]
["4.","Sprinklerwart",null,null,null,null,null,null,null,"Firma",null,null,null,null,null,null,{"$f":"'Allgemeine Daten'!Q100:AD100","v":0}]
[]
[null,null,null,null,null,null,null,null,null,"Strasse",null,null,null,null,null,null,{"$f":"'Allgemeine Daten'!Q102:AD102","v":0},null,null,null,null,null,null,null,null,null,null,null,null,null,null,"Nr.",null,{"$f":"'Allgemeine Daten'!AH102:AJ102","v":0},null,null,null,"Tel.",null,null,null,{"$f":"'Allgemeine Daten'!AP102:AZ102","v":0}," -"]
[]
[null,null,null,null,null,null,null,null,null,"Ort",null,null,null,null,null,null,{"$f":"'Allgemeine Daten'!Q104:AD104","v":0},null,null,null,null,null,null,null,null,null,null,null,null,null,null,"PLZ",null,{"$f":"'Allgemeine Daten'!AH104:AJ104","v":0},null,null,null,"Fax",null,null,null,{"$f":"'Allgemeine Daten'!AP104:AZ104","v":0}," -"]
[]
[]
[null,null,null,null,null,null,null,null,null,"Zuständige Person",null,null,null,null,null,null,{"$f":"'Allgemeine Daten'!Q107:AD107","v":0}]
[]
[null,null,null,null,null,null,null,null,null,"E-Mail",null,null,null,null,null,null,{"$f":"'Allgemeine Daten'!Q109:AD109","v":0},null,null,null,null,null,null,null,null,null,null,null,null,null,null,null,null,null,null,null,null,"Tel. direkt",null,null,null,{"$f":"'Allgemeine Daten'!AP109:AZ109","v":0}," -"]
[]
[null,null,null,null,null,null,null,null,null,"Stellvertretung",null,null,null,null,null,null,{"$f":"'Allgemeine Daten'!Q111:AD111","v":0}]
[]
[null,null,null,null,null,null,null,null,null,"E-Mail",null,null,null,null,null,null,{"$f":"'Allgemeine Daten'!Q113:AD113","v":0},null,null,null,null,null,null,null,null,null,null,null,null,null,null,null,null,null,null,null,null,"Tel. direkt",null,null,null,{"$f":"'Allgemeine Daten'!AP113:AZ113","v":0}," -"]
[]
[]
["5.","Fachfirma für die Planung von Sprinkleranlagen",null,null,null,null,null,null,null,"Firma",null,null,null,null,null,null,{"$f":"'Allgemeine Daten'!Q76:AD76","v":0},null,null,null,null,null,null,null,null,null,null,null,null,null,null,"VKF Anerkennung Nr.",null,null,null,null,null,null,null,null,null,{"$f":"'Allgemeine Daten'!AP76:AZ76","v":0}," -"]
[]
[null,null,null,null,null,null,null,null,null,"Strasse",null,null,null,null,null,null,{"$f":"'Allgemeine Daten'!Q78:AD78","v":0},null,null,null,null,null,null,null,null,null,null,null,null,null,null,"Nr.",null,{"$f":"'Allgemeine Daten'!AH78:AJ78","v":0},null,null,null,"Tel.",null,null,null,{"$f":"'Allgemeine Daten'!AP78:AZ78","v":0}," -"]
[]
[null,null,null,null,null,null,null,null,null,"Ort",null,null,null,null,null,null,{"$f":"'Allgemeine Daten'!Q80:AD80","v":0},null,null,null,null,null,null,null,null,null,null,null,null,null,null,"PLZ",null,{"$f":"'Allgemeine Daten'!AH80:AJ80","v":0},null,null,null,"Fax",null,null,null,{"$f":"'Allgemeine Daten'!AP80:AZ80","v":0}," -"]
[]
[]
[null,null,null,null,null,null,null,null,null,"Zuständige Person",null,null,null,null,null,null,{"$f":"'Allgemeine Daten'!Q83:AD83","v":0},null,null,null,null,null,null,null,null,null,null,null,null,null,null,"VKF Zertifikat Nr.",null,null,null,null,null,null,null,null,null,{"$f":"'Allgemeine Daten'!AP83:AZ83","v":0}," -"]
[]
[null,null,null,null,null,null,null,null,null,"E-Mail",null,null,null,null,null,null,{"$f":"'Allgemeine Daten'!Q85:AD85","v":0},null,null,null,null,null,null,null,null,null,null,null,null,null,null,null,null,null,null,null,null,"Tel. direkt",null,null,null,{"$f":"'Allgemeine Daten'!AP85:AZ85","v":0}," -"]
[]
[]
["6.","Fachfirma für die Errichtung von Sprinkleranlagen",null,null,null,null,null,null,null,"Firma",null,null,null,null,null,null,{"$f":"'Allgemeine Daten'!Q88:AD88","v":0},null,null,null,null,null,null,null,null,null,null,null,null,null,null,"VKF Anerkennung Nr.",null,null,null,null,null,null,null,null,null,{"$f":"'Allgemeine Daten'!AP88:AZ88","v":0}," -"]
[]
[null,null,null,null,null,null,null,null,null,"Strasse",null,null,null,null,null,null,{"$f":"'Allgemeine Daten'!Q90:AD90","v":0},null,null,null,null,null,null,null,null,null,null,null,null,null,null,"Nr.",null,{"$f":"'Allgemeine Daten'!AH90:AJ90","v":0},null,null,null,"Tel.",null,null,null,{"$f":"'Allgemeine Daten'!AP90:AZ90","v":0}," -"]
[]
[null,null,null,null,null,null,null,null,null,"Ort",null,null,null,null,null,null,{"$f":"'Allgemeine Daten'!Q92:AD92","v":0},null,null,null,null,null,null,null,null,null,null,null,null,null,null,"PLZ",null,{"$f":"'Allgemeine Daten'!AH92:AJ92","v":0},null,null,null,"Fax",null,null,null,{"$f":"'Allgemeine Daten'!AP92:AZ92","v":0}," -"]
[]
[]
[null,null,null,null,null,null,null,null,null,"Zuständige Person",null,null,null,null,null,null,{"$f":"'Allgemeine Daten'!Q95:AD95","v":0},null,null,null,null,null,null,null,null,null,null,null,null,null,null,"VKF Zertifikat Nr.",null,null,null,null,null,null,null,null,null,{"$f":"'Allgemeine Daten'!AP95:AZ95","v":0}," -"]
[]
[null,null,null,null,null,null,null,null,null,"E-Mail",null,null,null,null,null,null,{"$f":"'Allgemeine Daten'!Q97:AD97","v":0},null,null,null,null,null,null,null,null,null,null,null,null,null,null,null,null,null,null,null,null,"Tel. direkt",null,null,null,{"$f":"'Allgemeine Daten'!AP97:AZ97","v":0}," -"]
[]
[]
["8.","Brandschutz-behörde",null,null,null,null,null,null,null,"Firma",null,null,null,null,null,null,"-"]
[]
[null,null,null,null,null,null,null,null,null,"Strasse",null,null,null,null,null,null,"-",null,null,null,null,null,null,null,null,null,null,null,null,null,null,"Nr.",null,"-",null,null,null,"Tel.",null,null,null,"-"]
[]
[null,null,null,null,null,null,null,null,null,"Ort",null,null,null,null,null,null,"-",null,null,null,null,null,null,null,null,null,null,null,null,null,null,"PLZ",null,"-",null,null,null,"Fax",null,null,null,"-"]
[]
[]
[null,null,null,null,null,null,null,null,null,"Zuständige Person",null,null,null,null,null,null,"-"]
[]
[null,null,null,null,null,null,null,null,null,"E-Mail",null,null,null,null,null,null,"-",null,null,null,null,null,null,null,null,null,null,null,null,null,null,null,null,null,null,null,null,"Tel. direkt",null,null,null,"-"]
[]
[]
["9.","Inspektionsstelle",null,null,null,null,null,null,null,"Firma",null,null,null,null,null,null,"-"]
[]
[null,null,null,null,null,null,null,null,null,"Strasse",null,null,null,null,null,null,"-",null,null,null,null,null,null,null,null,null,null,null,null,null,null,"Nr.",null,"-",null,null,null,"Tel.",null,null,null,"-"]
[]
[null,null,null,null,null,null,null,null,null,"Ort",null,null,null,null,null,null,"-",null,null,null,null,null,null,null,null,null,null,null,null,null,null,"PLZ",null,"-",null,null,null,"Fax",null,null,null,"-"]
[]
[]
[null,null,null,null,null,null,null,null,null,"Zuständige Person",null,null,null,null,null,null,"-"]
[]
[null,null,null,null,null,null,null,null,null,"E-Mail",null,null,null,null,null,null,"-",null,null,null,null,null,null,null,null,null,null,null,null,null,null,null,null,null,null,null,null,"Tel. direkt",null,null,null,"-"]
[]
[]
["6.","Projekt Beschreibung",null,null,null,null,null,null,null,{"$f":"'Allgemeine Daten'!Q40","v":0}]
[]
[]
[]
[]
[]
[]
["7.","Rohrproben",null,null,null,null,null,null,null,"1. ","Zustand Rohrleitungsnetz in Ordnung (Stichprobenprüfung je Alarmventil u. Dimension)",null,null,null,null,null,null,null,null,null,null,null,null,null,null,null,null,null,null,null,null,null,null,null,null,null,null,null,null,"ja",null,null,null,"nein*"]
[]
[null,null,null,null,null,null,null,null,null,null,"* Wenn nein, ist das weitere Vorgehen mit der Brandschutzbehörde abzuklären."]
[]
[]
["8.","Sprinklerdüsen - \nProben",null,null,null,null,null,null,null,"1.","Sprinklerdüsen anerkannt",null,null,null,null,null,null,null,null,null,null,null,null,null,null,null,null,null,null,null,null,null,null,null,null,null,null,null,null,"ja",null,null,null,"nein"]
[]
[null,null,null,null,null,null,null,null,null,"2.","Einbauart der Sprinklerdüsen in Ordnung",null,null,null,null,null,null,null,null,null,null,null,null,null,null,null,null,null,null,null,null,null,null,null,null,null,null,null,null,"ja",null,null,null,"nein"]
[]
[null,null,null,null,null,null,null,null,null,"3."," RTI-Werte der Sprinklerdüsen in Ordnung",null,null,null,null,null,null,null,null,null,null,null,null,null,null,null,null,null,null,null,null,null,null,null,null,null,null,null,null,"ja",null,null,null,"nein"]
[]
[null,null,null,null,null,null,null,null,null,"4.","Ansprechtemperatur der Sprinklerdüsen in Ordnung",null,null,null,null,null,null,null,null,null,null,null,null,null,null,null,null,null,null,null,null,null,null,null,null,null,null,null,null,"ja",null,null,null,"nein"]
[]
[null,null,null,null,null,null,null,null,null,"5.","10 Jahres-Sprinklertest durchgeführt und in Ordnung",null,null,null,null,null,null,null,null,null,null,null,null,null,null,null,"Datum letzter Test:",null,null,null,null,null,null,null,null,null,null,null,null,"ja",null,null,null,"nein"]
[]
[null,"Abweichung\nIST / SOLL"]
[]
[]
[]
[null,"Lösungsvorschlag der Errichterfirma"]
[]
[]
[]
[null,"Entscheid BS-Behörde oder deren Vertreter"]
[]
[]
[]
[]
["11.","Anlagestatus",null,null,null,null,null,null,null,"Vorgeschrieben aufgrund:",null,null,null,null,null,null,null," -","Baulichem Konzept (VKF BSN Art. 10)",null,null,null,null,null,null,null,null,null,null,null,null,null,null,null," -"," Löschanlagenkonzept  (VKF BSN Art.10)"]
[]
[null,null,null,null,null,null,null,null,null,null,null,null,null,null,null,null,null," -","Alternativem Brandschutzkonzept (VKF BSN Art. 11/12)"]
[]
[null,null,null,null,null,null,null,null,null," -","  freiwillig und auf die öffentliche Feuermeldestelle aufgeschaltet"]
[]
[]
["12","Planungsgrund-         lagen",null,null,null,null,null,null,null," -","Brandschutzpläne vom",null,null,null,null,null,null,null,null,null,null,"-",null,null,null,null,"Version",null,null,"-"]
[]
[null,null,null,null,null,null,null,null,null," -","Brandschutzkonzept vom",null,null,null,null,null,null,null,null,null,null,"-",null,null,null,null,"Version",null,null,"-"]
[]
[null,null,null,null,null,null,null,null,null,"Verfasser:",null,null,null,"-"]
[]
[]
["9.","Vorhandener Schutzumfang",null,null,null,null,null,null,null,"1. ","Ist der Schutzumfang gemäss Brandschutzpläne eingehalten",null,null,null,null,null,null,null,null,null,null,null,null,null,null,null,null,null,null,null,null,null,null,null,null,null,null,null,null,"ja",null,null,null,"nein",null,null,null,null,"entfällt"]
[]
[null,null,null,null,null,null,null,null,null,"2. ","Gesamter Brandabschnitt geschützt",null,null,null,null,null,null,null,null,null,null,null,null,null,null,null,null,null,null,null,null,null,null,null,null,null,null,null,null,"ja",null,null,null,"nein"]
[]
[null,null,null,null,null,null,null,null,null,"3.","Hohlraumsprinkler falls erforderlich vorhanden",null,null,null,null,null,null,null,null,null,null,null,null,null,null,null,null,null,null,null,null,null,null,null,null,null,null,null,null,"ja",null,null,null,"nein",null,null,null,null,"entfällt"]
[]
[null,null,null,null,null,null,null,null,null,"4.","Vorhandene Anbauten, Überdachungen und Rampen geschützt",null,null,null,null,null,null,null,null,null,null,null,null,null,null,null,null,null,null,null,null,null,null,null,null,null,null,null,null,"ja",null,null,null,"nein",null,null,null,null,"entfällt"]
[]
[null,"Abweichung\nIST / SOLL"]
[]
[]
[]
[null,"Lösungsvorschlag der Errichterfirma"]
[]
[]
[]
[null,"Entscheid BS-Behörde oder deren Vertreter"]
[]
[]
[]
[]
["10.","Auslegung ",null,null,null,null,null,null,null,"In \"Technische Daten\" auszufüllen"]
[]
[null,null,null,null,null,null,null,null,null,"1. ","Anlage entsprechend Nutzung ausgelegt",null,null,null,null,null,null,null,null,null,null,null,null,null,null,null,null,null,null,null,null,null,null,null,null,null,null,null,null,"ja",null,null,null,"nein",null,null,null,null,"entfällt"]
[]
[null,null,null,null,null,null,null,null,null,"2.","Maximale Raumhöhe gemäss verwendetem Standart in Ordnung (z.B. Atrien)",null,null,null,null,null,null,null,null,null,null,null,null,null,null,null,null,null,null,null,null,null,null,null,null,null,null,null,null,"ja",null,null,null,"nein",null,null,null,null,"entfällt"]
[]
[null,null,null,null,null,null,null,null,null,"3.","Abstände der Zwischenebenen in Regal in Ordnung",null,null,null,null,null,null,null,null,null,null,null,null,null,null,null,null,null,null,null,null,null,null,null,null,null,null,null,null,"ja",null,null,null,"nein",null,null,null,null,"entfällt"]
[]
[null,null,null,null,null,null,null,null,null,"4.","Teillagerflächen / Freistreifen in Ordnung",null,null,null,null,null,null,null,null,null,null,null,null,null,null,null,null,null,null,null,null,null,null,null,null,null,null,null,null,"ja",null,null,null,"nein",null,null,null,null,"entfällt"]
[]
[null,null,null,null,null,null,null,null,null,"Bemerkungen:"]
[]
[null,"Abweichung\nIST / SOLL"]
[]
[]
[]
[null,"Lösungsvorschlag der Errichterfirma"]
[]
[]
[]
[null,"Entscheid BS-Behörde oder deren Vertreter"]
[]
[]
[]
[]
["11.","Sprinklerzentrale",null,null,null,null,null,null,null,"1. ","Separater Brandabschnitt mindestens EI30 (keine andere Nutzung)",null,null,null,null,null,null,null,null,null,null,null,null,null,null,null,null,null,null,null,null,null,null,null,null,null,null,null,null,"ja",null,null,null,"nein"]
[]
[null,null,null,null,null,null,null,null,null,"2. ","Lage und Zugang in Ordnung",null,null,null,null,null,null,null,null,null,null,null,null,null,null,null,null,null,null,null,null,null,null,null,null,null,null,null,null,"ja",null,null,null,"nein"]
[]
[null,null,null,null,null,null,null,null,null,"3. ","Auffangwanne ≥ 1m3 ca. 0.5m Höhe, Ablauf DN 100",null,null,null,null,null,null,null,null,null,null,null,null,null,null,null,null,null,null,null,null,null,null,null,null,null,null,null,null,"ja",null,null,null,"nein"]
[]
[null,null,null,null,null,null,null,null,null,"4.","Wasseranschlussarmaturen gemäss SVGW in Ordnung (z.B. Trinkwasserschutzventil)",null,null,null,null,null,null,null,null,null,null,null,null,null,null,null,null,null,null,null,null,null,null,null,null,null,null,null,null,"ja",null,null,null,"nein"]
[]
[null,null,null,null,null,null,null,null,null,"5.","Schieber nach Alarmventil vorhanden",null,null,null,null,null,null,null,null,null,null,null,null,null,null,null,null,null,null,null,null,null,null,null,null,null,null,null,null,"ja",null,null,null,"nein"]
[]
[null,null,null,null,null,null,null,null,null,"6.","Prüfleitung mit 2 x Storz 75 falls erforderlich vorhanden",null,null,null,null,null,null,null,null,null,null,null,null,null,null,null,null,null,null,null,null,null,null,null,null,null,null,null,null,"ja",null,null,null,"nein",null,null,null,null,"entfällt"]
[]
[null,null,null,null,null,null,null,null,null,"7.","Gebäudeanschlussleitung bis Sprinklerzentrale gegen Brandeinwirkung geschützt",null,null,null,null,null,null,null,null,null,null,null,null,null,null,null,null,null,null,null,null,null,null,null,null,null,null,null,null,"ja",null,null,null,"nein",null,null,null,null,"entfällt"]
[]
[null,null,null,null,null,null,null,null,null,"8.","Aktuelle Dokumentation in Sprinklerzentrale vorhanden",null,null,null,null,null,null,null,null,null,null,null,null,null,null,null,null,null,null,null,null,null,null,null,null,null,null,null,null,"ja",null,null,null,"nein"]
[]
[null,null,null,null,null,null,null,null,null,"9.","Reserve-Sprinkler vorhanden",null,null,null,null,null,null,null,null,null,null,null,null,null,null,null,null,null,null,null,null,null,null,null,null,null,null,null,null,"ja",null,null,null,"nein"]
[]
[null,null,null,null,null,null,null,null,null,"Bemerkungen:"]
[]
[null,"Abweichung\nIST / SOLL"]
[]
[]
[]
[null,"Lösungsvorschlag der Errichterfirma"]
[]
[]
[]
[null,"Entscheid BS-Behörde oder deren Vertreter"]
[]
[]
[]
[]
[]
["12.","Alarm- und Störungs-         übermittlung",null,null,null,null,null,null,null,"1. ","Externer Alarm auf öffentliche Feuermeldestelle funktioniert",null,null,null,null,null,null,null,null,null,null,null,null,null,null,null,null,null,null,null,null,null,null,null,null,null,null,null,null,"ja",null,null,null,"nein"]
[]
[null,null,null,null,null,null,null,null,null,"2. ","Interner Alarm im geschützten Bereich funktioniert (akustisch, optisch)",null,null,null,null,null,null,null,null,null,null,null,null,null,null,null,null,null,null,null,null,null,null,null,null,null,null,null,null,"ja",null,null,null,"nein"]
[]
[null,null,null,null,null,null,null,null,null,"3.","Störungsmeldung an ständig besetzter Stelle funktioniert (Meldeliste aktuell)",null,null,null,null,null,null,null,null,null,null,null,null,null,null,null,null,null,null,null,null,null,null,null,null,null,null,null,null,"ja",null,null,null,"nein"]
[]
[null,null,null,null,null,null,null,null,null,"4.","Strömungsmelder vorhanden und prüfbar",null,null,null,null,null,null,null,null,null,null,null,null,null,null,null,null,null,null,null,null,null,null,null,null,null,null,null,null,"ja",null,null,null,"nein",null,null,null,null,"entfällt"]
[]
[null,null,null,null,null,null,null,null,null,"5.","Alle sicherheitsrelevanten Einrichtungen (inkl. Schieber der Gebäudeanschlussleitung) elektrisch überwacht und auf BMZ korrekt signalisiert",null,null,null,null,null,null,null,null,null,null,null,null,null,null,null,null,null,null,null,null,null,null,null,null,null,null,null,null,"ja",null,null,null,"nein"]
[]
[]
[]
[null,null,null,null,null,null,null,null,null,"6.","Prüfvorrichtung (Sprinklerprüfbox) vorhanden",null,null,null,null,null,null,null,null,null,null,null,null,null,null,null,null,null,null,null,null,null,null,null,null,null,null,null,null,"ja",null,null,null,"nein"]
[]
[null,"Abweichung\nIST / SOLL"]
[]
[]
[]
[null,"Lösungsvorschlag der Errichterfirma"]
[]
[]
[]
[null,"Entscheid BS-Behörde oder deren Vertreter"]
[]
[]
[]
[]
["13.","Bemessung/ Anordnung",null,null,null,null,null,null,null,"1. ","Geschützte Fläche bzw. Rohrvolumen je Alarmventil in Ordnung",null,null,null,null,null,null,null,null,null,null,null,null,null,null,null,null,null,null,null,null,null,null,null,null,null,null,null,null,"ja",null,null,null,"nein"]
[]
[null,null,null,null,null,null,null,null,null,"2. ","Schutzfläche pro Sprinkler in Ordnung",null,null,null,null,null,null,null,null,null,null,null,null,null,null,null,null,null,null,null,null,null,null,null,null,null,null,null,null,"ja",null,null,null,"nein"]
[]
[null,null,null,null,null,null,null,null,null,"3. ","Wand-, Sprinkler- und Deckenabstände in Ordnung",null,null,null,null,null,null,null,null,null,null,null,null,null,null,null,null,null,null,null,null,null,null,null,null,null,null,null,null,"ja",null,null,null,"nein"]
[]
[null,null,null,null,null,null,null,null,null,"4.","Abstände zu Hindernissen in Ordnung",null,null,null,null,null,null,null,null,null,null,null,null,null,null,null,null,null,null,null,null,null,null,null,null,null,null,null,null,"ja",null,null,null,"nein"]
[]
[null,null,null,null,null,null,null,null,null,"5. ","Anordnungen bei Deckenöffnungen, Galerien, Zwischenböden etc. in Ordnung",null,null,null,null,null,null,null,null,null,null,null,null,null,null,null,null,null,null,null,null,null,null,null,null,null,null,null,null,"ja",null,null,null,"nein",null,null,null,null,"entfällt"]
[]
[null,null,null,null,null,null,null,null,null,"6.","Anordnung der Regalsprinkler in Ordnung",null,null,null,null,null,null,null,null,null,null,null,null,null,null,null,null,null,null,null,null,null,null,null,null,null,null,null,null,"ja",null,null,null,"nein",null,null,null,null,"entfällt"]
[]
[null,null,null,null,null,null,null,null,null,"7.","Aktuelle hydraulische Berechnung in Ordnung",null,null,null,null,null,null,null,null,null,null,null,null,null,null,null,null,null,null,null,null,null,null,null,null,null,null,null,null,"ja",null,null,null,"nein"]
[]
[null,"Abweichung\nIST / SOLL"]
[]
[]
[]
[null,"Lösungsvorschlag der Errichterfirma"]
[]
[]
[]
[null,"Entscheid BS-Behörde oder deren Vertreter"]
[]
[]
[]
[]
["14.","Rohrleitungsnetz",null,null,null,null,null,null,null,"1. ","Wahl des Rohrmaterials in Ordnung",null,null,null,null,null,null,null,null,null,null,null,null,null,null,null,null,null,null,null,null,null,null,null,null,null,null,null,null,"ja",null,null,null,"nein"]
[]
[null,null,null,null,null,null,null,null,null,"2. ","Material der Halterungen in Ordnung (z.B. keine Kunststoffdübel)",null,null,null,null,null,null,null,null,null,null,null,null,null,null,null,null,null,null,null,null,null,null,null,null,null,null,null,null,"ja",null,null,null,"nein"]
[]
[null,null,null,null,null,null,null,null,null,"3. ","Bemessung und Anordnung der Halterungen in Ordnung",null,null,null,null,null,null,null,null,null,null,null,null,null,null,null,null,null,null,null,null,null,null,null,null,null,null,null,null,"ja",null,null,null,"nein"]
[]
[null,null,null,null,null,null,null,null,null,"4.","Entleer- und Spülmöglichkeiten genügend vorhanden und richtig angeordnet",null,null,null,null,null,null,null,null,null,null,null,null,null,null,null,null,null,null,null,null,null,null,null,null,null,null,null,null,"ja",null,null,null,"nein"]
[]
[null,null,null,null,null,null,null,null,null,"5. ","Keine fremden Gegenstände aufgehängt",null,null,null,null,null,null,null,null,null,null,null,null,null,null,null,null,null,null,null,null,null,null,null,null,null,null,null,null,"ja",null,null,null,"nein"]
[]
[null,null,null,null,null,null,null,null,null,"6.","Zonen-Absperrorgane konform gemäss VKF-BSR",null,null,null,null,null,null,null,null,null,null,null,null,null,null,null,null,null,null,null,null,null,null,null,null,null,null,null,null,"ja",null,null,null,"nein",null,null,null,null,"entfällt"]
[]
[null,"Abweichung\nIST / SOLL"]
[]
[]
[]
[null,"Lösungsvorschlag der Errichterfirma"]
[]
[]
[]
[null,"Entscheid BS-Behörde oder deren Vertreter"]
[]
[]
[]
[]
["15.","Besondere Gegebenheiten",null,null,null,null,null,null,null,"1. ","Trockenanlagen: Ausströmzeit in Ordnung und Nachweis vorhanden",null,null,null,null,null,null,null,null,null,null,null,null,null,null,null,null,null,null,null,null,null,null,null,null,null,null,null,null,"ja",null,null,null,"nein",null,null,null,null,"entfällt"]
[]
[null,null,null,null,null,null,null,null,null,"2. ","Anlagen mit Frostschutz: Konzentrationsmessung durchgeführt und in Ordnung",null,null,null,null,null,null,null,null,null,null,null,null,null,null,null,null,null,null,null,null,null,null,null,null,null,null,null,null,"ja",null,null,null,"nein",null,null,null,null,"entfällt"]
[]
[null,null,null,null,null,null,null,null,null,"3. ","Anlagen mit AFFF:",null,null,null,null,null,null,null,null,null,null,null,null,null,null,null,null,null,null,null,null,null,null,null,null,null,null,null,null,"ja",null,null,null,"nein",null,null,null,null,"entfällt"]
[]
[null,null,null,null,null,null,null,null,null,null,"Schaummittel für Anwendung geeignet",null,null,null,null,null,null,null,null,null,null,null,null,null,null,null,null,null,null,null,null,null,null,null,null,null,null,null,null,"ja",null,null,null,"nein",null,null,null,null,"entfällt"]
[]
[null,null,null,null,null,null,null,null,null,null,"Qualitätsprüfung durch Schaummittel-Hersteller durchgeführt und in Ordnung",null,null,null,null,null,null,null,null,null,null,null,null,null,null,null,null,null,null,null,null,null,null,null,null,null,null,null,null,"ja",null,null,null,"nein",null,null,null,null,"entfällt"]
[]
[null,null,null,null,null,null,null,null,null,null,"Schaummittel-Konzentration geprüft und in Ordnung",null,null,null,null,null,null,null,null,null,null,null,null,null,null,null,null,null,null,null,null,null,null,null,null,null,null,null,null,"ja",null,null,null,"nein",null,null,null,null,"entfällt"]
[]
[null,"Abweichung\nIST / SOLL"]
[]
[]
[]
[null,"Lösungsvorschlag der Errichterfirma"]
[]
[]
[]
[null,"Entscheid BS-Behörde oder deren Vertreter"]
[]
[]
[]
[]
["16.","Betriebsbereitschaft",null,null,null,null,null,null,null,"1. ","Alarmorganisation vorhanden",null,null,null,null,null,null,null,null,null,null,null,null,null,null,null,null,null,null,null,null,null,null,null,null,null,null,null,null,"ja",null,null,null,"nein",null,null,null,null,"entfällt"]
[]
[null,null,null,null,null,null,null,null,null,"2. ","Sprinklerwart und dessen Stellvertreter bestimmt und instruiert",null,null,null,null,null,null,null,null,null,null,null,null,null,null,null,null,null,null,null,null,null,null,null,null,null,null,null,null,"ja",null,null,null,"nein",null,null,null,null,"entfällt"]
[]
[null,null,null,null,null,null,null,null,null,"3.","Kontrollen gemäss Kontrollbuch für Wasserlöschanlagen durchgeführt",null,null,null,null,null,null,null,null,null,null,null,null,null,null,null,null,null,null,null,null,null,null,null,null,null,null,null,null,"ja",null,null,null,"nein",null,null,null,null,"entfällt"]
[]
[null,"Abweichung\nIST / SOLL"]
[]
[]
[]
[null,"Lösungsvorschlag der Errichterfirma"]
[]
[]
[]
[null,"Entscheid BS-Behörde oder deren Vertreter"]
[]
[]
[]
[]
["17.","Wasserversorgung",null,null,null,null,null,null,null,"1. ","Zuverlässigkeit der Wasserversorgung entspricht der QSS",null,null,null,null,null,null,null,null,null,null,null,null,null,null,null,null,null,null,null,null,null,null,null,null,null,null,null,null,"ja",null,null,null,"nein"]
[]
[null,null,null,null,null,null,null,null,null,"2. ","Anforderungen an Druckerhöhungspumpen in Ordnung",null,null,null,null,null,null,null,null,null,null,null,null,null,null,null,null,null,null,null,null,null,null,null,null,null,null,null,null,"ja",null,null,null,"nein",null,null,null,null,"entfällt"]
[]
[null,null,null,null,null,null,null,null,null,"3.","Anforderungen an Zwischenbehälter in Ordnung",null,null,null,null,null,null,null,null,null,null,null,null,null,null,null,null,null,null,null,null,null,null,null,null,null,null,null,null,"ja",null,null,null,"nein",null,null,null,null,"entfällt"]
[]
[null,null,null,null,null,null,null,null,null,"4.","Anforderungen an Sprinklerpumpen in Ordnung",null,null,null,null,null,null,null,null,null,null,null,null,null,null,null,null,null,null,null,null,null,null,null,null,null,null,null,null,"ja",null,null,null,"nein",null,null,null,null,"entfällt"]
[]
[null,null,null,null,null,null,null,null,null,"5.","Anforderungen der Energieversorgung bei Pumpen (inkl. Druckerhöhungspumpen) in Ordnung",null,null,null,null,null,null,null,null,null,null,null,null,null,null,null,null,null,null,null,null,null,null,null,null,null,null,null,null,"ja",null,null,null,"nein",null,null,null,null,"entfällt"]
[]
[null,null,null,null,null,null,null,null,null,"6.","Anforderungen an Wasserlöschposten, Innenhydranten und Rohrbruchsicherungen in Ordnung",null,null,null,null,null,null,null,null,null,null,null,null,null,null,null,null,null,null,null,null,null,null,null,null,null,null,null,null,"ja",null,null,null,"nein",null,null,null,null,"entfällt"]
[]
[null,null,null,null,null,null,null,null,null,"7.","Aktuelle Wassermessung durchgeführt und Nachweis vorhanden",null,null,null,null,null,null,null,null,null,null,null,null,null,null,null,null,null,null,null,null,null,null,null,null,null,null,null,null,"ja",null,null,null,"nein",null,null,null,null,"entfällt"]
[]
[null,"Abweichung\nIST / SOLL"]
[]
[]
[]
[null,"Lösungsvorschlag der Errichterfirma"]
[]
[]
[]
[null,"Entscheid BS-Behörde oder deren Vertreter"]
[]
[]
[]
[]
["18.","Dokumentation",null,null,null,null,null,null,null,"1.","Aktuelle Orientierungspläne für den Feuerwehreinsatz vorhanden",null,null,null,null,null,null,null,null,null,null,null,null,null,null,null,null,null,null,null,null,null,null,null,null,null,null,null,null,"ja",null,null,null,"nein"]
[]
[null,null,null,null,null,null,null,null,null,"2.","Aktuelle Lagepläne je Geschoss vorhanden",null,null,null,null,null,null,null,null,null,null,null,null,null,null,null,null,null,null,null,null,null,null,null,null,null,null,null,null,"ja",null,null,null,"nein"]
[]
[null,null,null,null,null,null,null,null,null,"3.","Aktuelle Nutzungspläne je Geschoss vorhanden",null,null,null,null,null,null,null,null,null,null,null,null,null,null,null,null,null,null,null,null,null,null,null,null,null,null,null,null,"ja",null,null,null,"nein"]
[]
[null,null,null,null,null,null,null,null,null,"4.","Aktuelles Anlageschema und Schema der Zentrale vorhanden",null,null,null,null,null,null,null,null,null,null,null,null,null,null,null,null,null,null,null,null,null,null,null,null,null,null,null,null,"ja",null,null,null,"nein"]
[]
[null,null,null,null,null,null,null,null,null,"5.","Aktuelle Rohrleitungspläne vorhanden",null,null,null,null,null,null,null,null,null,null,null,null,null,null,null,null,null,null,null,null,null,null,null,null,null,null,null,null,"ja",null,null,null,"nein"]
[]
[null,null,null,null,null,null,null,null,null,"6.","Aktuelle hydraulische Berechnung, inkl. Isometrie und p/Q-Diagramm vorhanden",null,null,null,null,null,null,null,null,null,null,null,null,null,null,null,null,null,null,null,null,null,null,null,null,null,null,null,null,"ja",null,null,null,"nein"]
[]
[null,null,null,null,null,null,null,null,null,"7.","Aktuelle Bedienungsanleitung vorhanden",null,null,null,null,null,null,null,null,null,null,null,null,null,null,null,null,null,null,null,null,null,null,null,null,null,null,null,null,"ja",null,null,null,"nein"]
[]
[null,null,null,null,null,null,null,null,null,"8.","Kontrollbuch für Wasserlöschanlagen vorhanden",null,null,null,null,null,null,null,null,null,null,null,null,null,null,null,null,null,null,null,null,null,null,null,null,null,null,null,null,"ja",null,null,null,"nein"]
[]
[null,null,null,null,null,null,null,null,null,"9.","Weisung für die Durchführung von Funktionskontrollen und über das Verhalten bei Unterbruch ",null,null,null,null,null,null,null,null,null,null,null,null,null,null,null,null,null,null,null,null,null,null,null,null,null,null,null,null,"ja",null,null,null,"nein"]
[null,null,null,null,null,null,null,null,null,null,"der Anlage vorhanden"]
[]
[null,null,null,null,null,null,null,null,null,"10.","Weitere notwendigen Unterlagen (z.B. Elektroschema Eigenversorgung) vorhanden",null,null,null,null,null,null,null,null,null,null,null,null,null,null,null,null,null,null,null,null,null,null,null,null,null,null,null,null,"ja",null,null,null,"nein"]
[]
[]
[]
[]
[]
[null,"Abweichung\nIST / SOLL"]
[]
[]
[]
[null,"Lösungsvorschlag der Errichterfirma"]
[]
[]
[]
[null,"Entscheid BS-Behörde oder deren Vertreter"]
[]
[]
[]
[]
["19.","Bestätigung",null,null,null,null,null,null,null,"Der Unterzeichnende bestätigt, die Vorabklärung gemäss den heute geltenden Vorschriften durchgeführt zu haben."]
[]
[null,null,null,null,null,null,null,null,null,"Ort",null,null,null,null,null,null,null,null,null,null,null,"Datum",null,null,null,null,null,null,null,null,"Unterschrift"]
[]
[]
["20.","Verteiler",null,null,null,null,null,null,null,"Versand an"]
[]
[null,null,null,null,null,null,null,null,null,null,"Brandschutzbehörde"]
[]
[null,null,null,null,null,null,null,null,null,null,"Fachstelle(n)"]
[]
[]
["21.","Beilagen",null,null,null,null,null,null,null,null,"Brandschutzkonzept/-pläne",null,null,null,null,null,null,null,null,null,null,null,null,null,null,null,null,null,"Anlageschema"]
[]
[null,null,null,null,null,null,null,null,null,null,"Massstäbliche Grundriss- und Schnittpläne ",null,null,null,null,null,null,null,null,null,null,null,null,null,null,null,null,null,"Katasterplan (Gebäude)"]
[]
[null,null,null,null,null,null,null,null,null,null,"Nutzungs- und Lagepläne ",null,null,null,null,null,null,null,null,null,null,null,null,null,null,null,null,null,"Bestätigung keine Lagerung in ungeschützten Bereichen"]
[]
[null,null,null,null,null,null,null,null,null,null,"p/Q-Diagramm inkl. allfällige Pumpenkennlinie",null,null,null,null,null,null,null,null,null,null,null,null,null,null,null,null,null,"Genehmigung Sonderanwendungen (falls erforderlich)"]
[]
[null,null,null,null,null,null,null,null,null,null,"Hydraulische Berechnungen mit Isometrieplänen",null,null,null,null,null,null,null,null,null,null,null,null,null,null,null,null,null,"Genehmigung Gewässerschutzbehörde"]
[]
[null,null,null,null,null,null,null,null,null,null,"Plan Sprinklerzentrale"]
[]
[null,null,null,null,null,null,null,null,null,"X","Beilage Auslegung"]
[]
[]
["22.","Unterschriften"]
[]
[null,"Anerkannte Fachfirma für Planung/ Errichtung für Sprinkleranlagen"]
[]
[null,"Die Fachfirma für Planung bestätigt, dass die Sprinkleranlage gemäss den geltenden Brandschutzvorschriften und Vollzugsbestimmungen sowie dem verwendeten Stand der Technik erstellt wurde."]
[null,"Ort",null,null,null,null,null,null,null,null,null,null,null,null,null,null,null,"Datum"]
[]
[]
[]
[null,"Name der zuständigen Person"]
[]
[]
[]
[null,"Stempel und Unterschrift"]
[]
[]
[]
[]
[]
[]
[]
[null,"Ort",null,null,null,null,null,null,null,null,null,null,null,null,null,null,null,"Datum"]
[]
[]
[]
[null,"Name der zuständigen Person"]
[]
[]
[]
[null,"Stempel und Unterschrift"]

{"sheet":"Überarbeitung-Änderungen","index":9,"n_rows":25,"n_cols":8,"rows_kept":25,"cut":false,"hidden":true,"merged":[[3,4,3,5]]}
[]
[]
[]
[null,null,null,null,"SPA-Formulare Änderungen",null,"Allgemeine Daten"]
[null,null,null,null,null,null,"Technische Daten"]
[null,null,null,null,null,null,"Vorabklärung"]
[null,null,null,null,null,null,"Anmeldung"]
[null,null,null,null,null,null,"Installations-Attest"]
[null,"Änderungen-Überarbeitung",null,null,null,null,"Beurteilungs-Attest"]
[null,null,null,null,null,null,"Vorabklärung Generalüberholung"]
["Datum","Formular"," Zelle","Änderung","Übersetzung erforderlich?","was ist zu übersetzen","französische Übersetzung","italienische Übersetzung"]
[]
["2019-12-04","Technische Daten",21,"Funktion Auswahl eliminiert","nein"]
["2019-12-04","Technische Daten",39,"WK angepasst = zusätzlich Kat. IV wählbar","nein"]
["2019-12-04","Technische Daten",92,"Neu: öffnende Sprinkler pro Strang","ja","öffnende Sprinkler pro Strang","??","Sprinkler che si aprono per ogni linea di tubi"]
["2019-12-04","Technische Daten",124,"Neue Abkürzung:  (Qca)","ja"," (Qca)","??","(Qca)  (gleich wie Zeile 105) "]
["2019-12-04","Technische Daten",130,"Formel ergänz mit:  *1.2  (20%)","nein"]
["2019-12-04","Technische Daten",173,"Formel korrigiert: 117 mit 118 ersetzt","nein"]
["2019-12-04","Technische Daten",224,"Hinzugefügt das Wort: ausserhalb SPZ","ja","ausserhalb SPZ","à l'extérieur SSP ??","Valvole di arresto all'esterno della CSP"]
["2019-12-04","Technische Daten",191,"Qtot ersetzt mit Qca","ja"]
["2019-12-04","Technische Daten",192,"Hinzugefügt das Wort: ausserhalb SPZ","ja"]
["2019-12-04","Vorabklärung",136,"Titel angepasst gemäss BSV: Sonderanwendungen, ausländische Standarts","ja"," aussländische Standarts","normes étrangères ??","Applicazioni speciali, modello straniero normato"]
["2019-12-04","Vorabklärung",138,"Neues Wort eingefügt: Brandschutzbehörden","ja","Brandschutzbehörden","autorité cantonal","Sono disponibili le relative autorizzazioni delle autorità della protezione antincendio"]
["2019-12-04","Vorabklärung",150,"Zeile 150 wurde neu eingefügt","ja","Absperrorgane ausserhalb SPZ","Vannes à l'extérieur SSP","Valvole di arresto all'esterno della CSP"]
["2019-12-04","Installations-Attest",90,"Wort eingefügt: interne","ja","interne Abnahme","interne","Collaudo interno"]

{"sheet":"Abkürzungen SES","index":10,"n_rows":59,"n_cols":4,"rows_kept":59,"cut":false,"hidden":true,"merged":[[11,1,13,1]]}
[]
[]
[]
[]
[]
[]
[]
[]
[null,"Vergleich der Kurzzeichen der SES Richtlinie «Sprinkleranlagen», Ausgabe 01.03.2018 und SES Richtlinie Sprinkleranlagen, Ausgabe 01.07.2015 bzw. den VKF-Formularen "]
[]
[]
[null,"Bezeichnung ","Kurzzeichen","Kurzzeichen"]
[null,null,"SES-RL 2018  ","SES-RL 2015"]
[null,null,null,"bzw. Formulare"]
[null,"Höhen"]
[null,"Geschützte Gebäudehöhe ","h ","*"]
[null,"Raumhöhe ","Rh ","*"]
[null,"Stapelhöhe ","hS ","HS"]
[null,"Flächen"]
[null,"Bereichsfläche ","AAL ","*"]
[null,"Wirkfläche ","AW ","A"]
[null,"Wirkflächenanpassung ","AWA ","A’"]
[null,"Schutzfläche Sprinkler ","ADU ","AS"]
[null,"Maximale Schutzfläche Sprinkler ","ADU ","AS_max"]
[null,"Effektive Schutzfläche Sprinkler ","ADU ","AS_eff"]
[null,"Anzahl "]
[null,"Anzahl Zwischenebenen im Regal ","nZEtot ","nR"]
[null,"Anzurechnende Zwischenebenen ","nZE ","nZE"]
[null,"Anzahl Rohre pro Zwischenebene ","nZER ","*"]
[null,"Anzahl Sprinkler pro Strang ","ny ","y"]
[null,"Anzahl Zweigrohre ","nz ","z"]
[null,"Anzahl der zu berechnenden Sprinkler ","nDU ","nS"]
[null,"Wasserleistung/Durchfluss/Wasserbedarf "]
[null,"Spez. Wasserleistung ","QS ","W"]
[null,"Nenndurchfluss Regal pro Zwischenebene ","QNze ","QN Ze"]
[null,"Nenndurchfluss theoretisch ","QN ","QN(Sptot)"]
[null,"Nenndurchfluss theoretisch + 20% Unförmigkeit ","QN120% ","QN (Sp+20%) "]
[null,"Wasserbedarf ","QCA ","QN(Speff)"]
[null,"Wasserleistung einer Sprinklerdüse ","QDU ","Q"]
[null,"Feuerwehrbedarf ","QF ","QF "]
[null,"Bedarf andere Zwecke ","QD ","Q andere Zwecke"]
[null,"Durchfluss Hauszuleitung, Wasserzulauf","QZ ","QZ "]
[null,"Durchfluss/Wasserbedarf total ","Qtot ","Qtot "]
[null,"Nenndurchfluss Regalsprinkler ","QNR ","QNR "]
[null,"Nenndurchfluss Deckensprinkler ","QND ","QND "]
[null,"Volumen"]
[null,"Erforderliches Löschwasservolumen ","Vtot ","Vmin"]
[null,"Sprinkler - Löschwasserbehälter ","Vres ","*"]
[null,"Zeiten"]
[null,"Nennwirkzeit ","tN ","tN "]
[null,"Drücke "]
[null,"Ruhedruck Wasserversorgung ","pR ","*"]
[null,"Fliessdruck Wasserversorgung ","pFL ","*"]
[null,"Druckbedarf am Sprinkler ","pDU ","p"]
[null,"Mindestdruck am Sprinkler ","pmin ","p’"]
[null,"Einschaltdruck ","pEIN ","*"]
[null,"Ausschaltdruck ","pAUS ","*"]
[]
[null,"* werden in der SES RL 2015 und in den für die Prüfung massgebenden VKF-Formularen nicht verwendet."]

{"sheet":"Kurz Anmeldung","index":11,"n_rows":217,"n_cols":50,"rows_kept":217,"cut":false,"hidden":true,"merged":[[202,10,202,24],[137,1,137,8],[214,1,214,22],[214,29,214,50],[218,1,223,22],[193,31,193,50],[195,31,195,50],[198,1,200,7],[210,1,210,15],[210,17,210,22],[164,1,166,7],[150,17,150,18],[148,29,148,30],[150,29,150,30],[152,29,152,30],[132,9,132,50],[186,9,186,50],[188,9,188,50],[125,21,125,24],[125,29,125,32],[127,13,127,44],[130,1,130,7],[130,9,130,50],[131,9,131,50],[138,15,138,50],[142,17,142,18],[142,25,142,26],[142,32,142,33],[148,38,148,50],[150,38,150,50],[154,40,154,41],[154,49,154,50],[156,49,156,50],[156,40,156,41],[160,17,160,18],[160,29,160,30],[160,40,160,41],[160,49,160,50],[148,17,148,18],[109,1,111,7],[111,9,113,50],[116,1,116,7],[123,1,124,7],[123,21,123,24],[123,29,123,32],[101,16,101,29],[101,33,101,35],[101,41,101,50],[104,16,104,29],[106,16,106,29],[106,41,106,50],[92,16,92,29],[94,16,94,29],[94,41,94,50],[97,1,99,7],[97,16,97,29],[99,16,99,29],[99,33,99,35],[99,41,99,50],[85,1,87,7],[85,16,85,29],[87,16,87,29],[87,33,87,35],[87,41,87,50],[89,16,89,29],[89,33,89,35],[89,41,89,50],[77,16,77,29],[77,33,77,35],[77,41,77,50],[80,16,80,29],[82,16,82,29],[82,41,82,50],[68,16,68,29],[70,16,70,29],[70,41,70,50],[73,1,75,7],[73,16,73,29],[75,16,75,29],[75,33,75,35],[75,41,75,50],[61,1,63,7],[61,16,61,29],[63,16,63,29],[63,33,63,35],[63,41,63,50],[65,16,65,29],[65,33,65,35],[65,41,65,50],[53,16,53,29],[53,33,53,35],[53,41,53,50],[56,16,56,29],[58,16,58,29],[58,41,58,50],[46,16,46,29],[46,41,46,50],[49,1,51,7],[49,16,49,29],[51,16,51,29],[51,33,51,35],[51,41,51,50],[41,16,41,29],[41,33,41,35],[41,41,41,50],[44,16,44,29],[44,35,44,40],[44,41,44,50],[34,16,34,29],[34,41,34,50],[37,1,39,7],[37,16,37,29],[37,41,37,50],[39,16,39,29],[39,33,39,35],[39,41,39,50],[29,16,29,29],[29,33,29,35],[29,41,29,50],[32,16,32,29],[32,35,32,40],[32,41,32,50],[22,16,22,29],[22,41,22,50],[25,1,27,7],[25,16,25,29],[25,41,25,50],[27,16,27,29],[27,33,27,35],[27,41,27,50],[17,16,17,29],[17,33,17,35],[17,41,17,50],[20,16,20,29],[20,35,20,40],[20,41,20,50],[8,16,8,22],[8,28,8,35],[8,41,8,50],[13,1,15,7],[13,16,13,29],[15,16,15,29],[15,33,15,35],[15,41,15,50],[0,0,0,11],[1,35,1,50],[3,2,3,14],[4,1,7,7],[4,16,4,50],[6,16,6,26],[6,28,6,29],[6,34,6,35],[6,39,6,50]]}
["Sprinkleranlage "]
["Meldung für Umbau, Anpassungen",null,null,null,null,null,null,null,null,null,null,null,null,null,null,null,null,null,null,null,null,null,null,null,null,null,null,null,null,null,null,null,null,null,null,"Entwurf: Stand 18-05-2016"]
["Mit Bauentscheid und QS (QSS - Definition)"]
[]
["1.","Geschütztes              Gebäude",null,null,null,null,null,null,null,"Objekt",null,null,null,null,null,null,"-"]
[]
[null,null,null,null,null,null,null,null,null,"Strasse",null,null,null,null,null,null,"-",null,null,null,null,null,null,null,null,null,null,"Nr.","-",null,null,null,"PLZ",null,"-",null,null,"Ort",null,"-"]
[]
[null,null,null,null,null,null,null,null,null,"Versicherungs Nr.",null,null,null,null,null,null,"-",null,null,null,null,null,null,null,"Kataster Nr.",null,null,null,"-",null,null,null,null,null,null,null,null,"Anlage Nr.",null,null,null,"-"]
[]
[null,null,null,null,null,null,null,null,null,"Qualitätssicherungsstufe ",null,null,null,null,null,null,null," QSS 1",null,null,"-",null,null,null,"QSS 2",null,null,"-",null,null,null,"QSS 3",null,null,"-",null,null,null,"QSS 4",null,null,"-"]
[]
[]
["2.","QS Verantwortlicher Brandschutz",null,null,null,null,null,null,null,"Firma",null,null,null,null,null,null,"-"]
[]
[null,null,null,null,null,null,null,null,null,"Strasse",null,null,null,null,null,null,"-",null,null,null,null,null,null,null,null,null,null,null,null,null,null,"Nr.",null,"-",null,null,null,"Tel.",null,null,null,"-"]
[]
[null,null,null,null,null,null,null,null,null,"Ort",null,null,null,null,null,null,"-",null,null,null,null,null,null,null,null,null,null,null,null,null,null,"PLZ",null,"-",null,null,null,"Fax",null,null,null,"-"]
[]
[]
[null,null,null,null,null,null,null,null,null,"Zuständige Person",null,null,null,null,null,null,"-",null,null,null,null,null,null,null,null,null,null,null,null,null,null,null,null,null,null,"VKF Zertifikat Nr.",null,null,null,null,null,"-"]
[]
[null,null,null,null,null,null,null,null,null,"E-Mail",null,null,null,null,null,null,"-",null,null,null,null,null,null,null,null,null,null,null,null,null,null,null,null,null,null,null,null,"Tel. direkt",null,null,null,"-"]
[]
[]
["3.","Fachfirma für die Planung von Sprinkleranlagen",null,null,null,null,null,null,null,"Firma",null,null,null,null,null,null,"-",null,null,null,null,null,null,null,null,null,null,null,null,null,null,"VKF Anerkennung Nr.",null,null,null,null,null,null,null,null,null,"-"]
[]
[null,null,null,null,null,null,null,null,null,"Strasse",null,null,null,null,null,null,"-",null,null,null,null,null,null,null,null,null,null,null,null,null,null,"Nr.",null,"-",null,null,null,"Tel.",null,null,null,"-"]
[]
[null,null,null,null,null,null,null,null,null,"Ort",null,null,null,null,null,null,"-",null,null,null,null,null,null,null,null,null,null,null,null,null,null,"PLZ",null,"-",null,null,null,"Fax",null,null,null,"-"]
[]
[]
[null,null,null,null,null,null,null,null,null,"Zuständige Person",null,null,null,null,null,null,"-",null,null,null,null,null,null,null,null,null,null,null,null,null,null,null,null,null,null,"VKF Zertifikat Nr.",null,null,null,null,null,"-"]
[]
[null,null,null,null,null,null,null,null,null,"E-Mail",null,null,null,null,null,null,"-",null,null,null,null,null,null,null,null,null,null,null,null,null,null,null,null,null,null,null,null,"Tel. direkt",null,null,null,"-"]
[]
[]
["4.","Fachfirma für die Errichtung von Sprinkleranlagen",null,null,null,null,null,null,null,"Firma",null,null,null,null,null,null,"-",null,null,null,null,null,null,null,null,null,null,null,null,null,null,"VKF Anerkennung Nr.",null,null,null,null,null,null,null,null,null,"-"]
[]
[null,null,null,null,null,null,null,null,null,"Strasse",null,null,null,null,null,null,"-",null,null,null,null,null,null,null,null,null,null,null,null,null,null,"Nr.",null,"-",null,null,null,"Tel.",null,null,null,"-"]
[]
[null,null,null,null,null,null,null,null,null,"Ort",null,null,null,null,null,null,"-",null,null,null,null,null,null,null,null,null,null,null,null,null,null,"PLZ",null,"-",null,null,null,"Fax",null,null,null,"-"]
[]
[]
[null,null,null,null,null,null,null,null,null,"Zuständige Person",null,null,null,null,null,null,"-",null,null,null,null,null,null,null,null,null,null,null,null,null,null,null,null,null,null,"VKF Zertifikat Nr.",null,null,null,null,null,"-"]
[]
[null,null,null,null,null,null,null,null,null,"E-Mail",null,null,null,null,null,null,"-",null,null,null,null,null,null,null,null,null,null,null,null,null,null,null,null,null,null,null,null,"Tel. direkt",null,null,null,"-"]
[]
[]
["5.","Eigentümerschaft",null,null,null,null,null,null,null,"Name",null,null,null,null,null,null,"-"]
[]
[null,null,null,null,null,null,null,null,null,"Strasse",null,null,null,null,null,null,"-",null,null,null,null,null,null,null,null,null,null,null,null,null,null,"Nr.",null,"-",null,null,null,"Tel.",null,null,null,"-"]
[]
[null,null,null,null,null,null,null,null,null,"Ort",null,null,null,null,null,null,"-",null,null,null,null,null,null,null,null,null,null,null,null,null,null,"PLZ",null,"-",null,null,null,"Fax",null,null,null,"-"]
[]
[]
[null,null,null,null,null,null,null,null,null,"Zuständige Person",null,null,null,null,null,null,"-"]
[]
[null,null,null,null,null,null,null,null,null,"E-Mail",null,null,null,null,null,null,"-",null,null,null,null,null,null,null,null,null,null,null,null,null,null,null,null,null,null,null,null,"Tel. direkt",null,null,null,"-"]
[]
[]
["6.","Vertreter",null,null,null,null,null,null,null,"Firma",null,null,null,null,null,null,"-"]
[]
[null,null,null,null,null,null,null,null,null,"Strasse",null,null,null,null,null,null,"-",null,null,null,null,null,null,null,null,null,null,null,null,null,null,"Nr.",null,"-",null,null,null,"Tel.",null,null,null,"-"]
[]
[null,null,null,null,null,null,null,null,null,"Ort",null,null,null,null,null,null,"-",null,null,null,null,null,null,null,null,null,null,null,null,null,null,"PLZ",null,"-",null,null,null,"Fax",null,null,null,"-"]
[]
[]
[null,null,null,null,null,null,null,null,null,"Zuständige Person",null,null,null,null,null,null,"-"]
[]
[null,null,null,null,null,null,null,null,null,"E-Mail",null,null,null,null,null,null,"-",null,null,null,null,null,null,null,null,null,null,null,null,null,null,null,null,null,null,null,null,"Tel. direkt",null,null,null,"-"]
[]
[]
["6.","Sprinklerwart",null,null,null,null,null,null,null,"Firma",null,null,null,null,null,null,"-"]
[]
[null,null,null,null,null,null,null,null,null,"Strasse",null,null,null,null,null,null,"-",null,null,null,null,null,null,null,null,null,null,null,null,null,null,"Nr.",null,"-",null,null,null,"Tel.",null,null,null,"-"]
[]
[null,null,null,null,null,null,null,null,null,"Ort",null,null,null,null,null,null,"-",null,null,null,null,null,null,null,null,null,null,null,null,null,null,"PLZ",null,"-",null,null,null,"Fax",null,null,null,"-"]
[]
[]
[null,null,null,null,null,null,null,null,null,"Zuständige Person",null,null,null,null,null,null,"-"]
[]
[null,null,null,null,null,null,null,null,null,"E-Mail",null,null,null,null,null,null,"-",null,null,null,null,null,null,null,null,null,null,null,null,null,null,null,null,null,null,null,null,"Tel. direkt",null,null,null,"-"]
[]
[]
["8.","Brandschutz-behörde",null,null,null,null,null,null,null,"Firma",null,null,null,null,null,null,"-"]
[]
[null,null,null,null,null,null,null,null,null,"Strasse",null,null,null,null,null,null,"-",null,null,null,null,null,null,null,null,null,null,null,null,null,null,"Nr.",null,"-",null,null,null,"Tel.",null,null,null,"-"]
[]
[null,null,null,null,null,null,null,null,null,"Ort",null,null,null,null,null,null,"-",null,null,null,null,null,null,null,null,null,null,null,null,null,null,"PLZ",null,"-",null,null,null,"Fax",null,null,null,"-"]
[]
[]
[null,null,null,null,null,null,null,null,null,"Zuständige Person",null,null,null,null,null,null,"-"]
[]
[null,null,null,null,null,null,null,null,null,"E-Mail",null,null,null,null,null,null,"-",null,null,null,null,null,null,null,null,null,null,null,null,null,null,null,null,null,null,null,null,"Tel. direkt",null,null,null,"-"]
[]
[]
["9.","Inspektionsstelle",null,null,null,null,null,null,null,"Firma",null,null,null,null,null,null,"-"]
[]
[null,null,null,null,null,null,null,null,null,"Strasse",null,null,null,null,null,null,"-",null,null,null,null,null,null,null,null,null,null,null,null,null,null,"Nr.",null,"-",null,null,null,"Tel.",null,null,null,"-"]
[]
[null,null,null,null,null,null,null,null,null,"Ort",null,null,null,null,null,null,"-",null,null,null,null,null,null,null,null,null,null,null,null,null,null,"PLZ",null,"-",null,null,null,"Fax",null,null,null,"-"]
[]
[]
[null,null,null,null,null,null,null,null,null,"Zuständige Person",null,null,null,null,null,null,"-"]
[]
[null,null,null,null,null,null,null,null,null,"E-Mail",null,null,null,null,null,null,"-",null,null,null,null,null,null,null,null,null,null,null,null,null,null,null,null,null,null,null,null,"Tel. direkt",null,null,null,"-"]
[]
[]
["7.","Projekt Beschreibung",null,null,null,null,null,null,null,"-","Erweiterungen ",null,null,null,null,null,null,null,"-","  Umbau / Sanierungen"]
[]
[null,null,null,null,null,null,null,null,null,"-"]
[]
[]
[]
[]
["11.","Anlagestatus",null,null,null,null,null,null,null,"Vorgeschrieben aufgrund:",null,null,null,null,null,null,null," -","Baulichem Konzept (VKF BSN Art. 10)",null,null,null,null,null,null,null,null,null,null,null,null,null,null,null," -"," Löschanlagenkonzept  (VKF BSN Art. 10)"]
[]
[null,null,null,null,null,null,null,null,null,null,null,null,null,null,null,null,null," -","Alternativem Brandschutzkonzept (VKF BSN Art. 11/12)"]
[]
[null,null,null,null,null,null,null,null,null," -","  freiwillig und auf die öffentliche Feuermeldestelle aufgeschaltet"]
[]
[]
["8.","Planungsgrund-         lagen",null,null,null,null,null,null,null," -","Brandschutzpläne (QSS 1/2) vom",null,null,null,null,null,null,null,null,null,null,"-",null,null,null,null,"Version",null,null,"-"]
[]
[null,null,null,null,null,null,null,null,null," -","Brandschutzkonzept (QSS 3/4) vom",null,null,null,null,null,null,null,null,null,null,"-",null,null,null,null,"Version",null,null,"-"]
[]
[null,null,null,null,null,null,null,null,null,"Verfasser:",null,null,null,"-"]
[]
[]
["9.","Vorgehen",null,null,null,null,null,null,null,"Erweiterungen von Sprinkleranlagen die mehr als 100m2 oder 10 Sprinkler umfasst bis zu einer grösse einer Wirkfläche."]
[]
[]
[]
[]
[]
["10.","Auslegung ",null,null,null,null,null,null,null,"1. ","Die Auslegung der Sprinkleranlage ist die selbe Brandgefahr wie die bestehende Anlage",null,null,null,null,null,null,null,null,null,null,null,null,null,null,null,null,null,null,null,null,null,null,null,null,null,null,null,null,"ja",null,null,null,"nein"]
[]
[null,null,null,null,null,null,null,null,null,"Bereich/Geschoss"]
[]
[null,null,null,null,null,null,null,null,null,"Frostgefahr",null,null,null,null,null," -","ja",null," -","nein",null,"Systemart"]
[]
[null,null,null,null,null,null,null,null,null,"Bereichsfläche",null,null,null,null,null,null,null,null,null,"m2",null,"Raumhöhe",null,null,null," -",null,"m",null,"RTI-Wert",null,null," -",null,"m1/2  s1/2"]
[]
[]
[]
[null,null,null,null,null,null,null,null,null,"Zellenbauweise",null,null,null,null,null,null,null,null,null,null,null,"Betrieb",null,null,null,null,null,null,null,null,null,null,null,"Lager"]
[]
[null,null,null,null,null,null,null,null,null,"Max. Raumgrösse",null,null,null,null,null,"m2",null,null,null,null,null,"Brandbelastung",null,null,null,null,null,"MJ/m2",null," -",null,null,null,"Lagermaterial",null,null,null,null,{"$f":"IF(0,\"-\",\"-\")","v":"-"}]
[]
[null,null,null,null,null,null,null,null,null,"Brandbelastung",null,null,null,null,null,"MJ/m2",null," -",null,null,null,"Brennbarkeit",null,null,null,null,null,"F",null," -",null,null,null,"Verpackung",null,null,null,null,{"$f":"IF(0,\"-\",\"-\")","v":"-"}]
[]
[null,null,null,null,null,null,null,null,null,null,null,null,null,null,null,null,null,null,null,null,null,"Warenkategorie",null,null,null,null,null,"WK",null," -",null,null,null,"Lagerart",null,null,null,null," -","A"," -","B"," -","C",null," -","Fächerlager"]
[]
[null,null,null,null,null,null,null,null,null,null,null,null,null,null,null,null,null,null,null,null,null,null,null,null,null,null,null,null,null,null,null,null,null,"Warenkategorie",null,null,null,null,"WK",null,{"$f":"IF(0,\"-\",\"-\")","v":"-"},null,null,"ZE im Regal",null,null,null,null,null," -"]
[]
[null,null,null,null,null,null,null,null,null,null,null,null,null,null,null,null,null,null,null,null,null,null,null,null,null,null,null,null,null,null,null,null,null,"Rohre pro ZE",null,null,null,null,null,null,{"$f":"IF(0,\"-\",\"-\")","v":"-"},null,null,"Sprinkler ZE (nspr)",null,null,null,null,null," -"]
[]
[]
[]
[null,null,null,null,null,null,null,null,null,"Brandgefahr Decke",null,null,null,null,null,"BG",null," -",null,null,null,"Brandgefahr Regal",null,null,null,null,null,"BG",null," -",null,null,null,"QN Decke",null,null,null,null,null,null,{"$f":"IF(0,\"-\",\"-\")","v":"-"},null,null,"QN Regal",null,null,null,null,null," -"]
[]
[]
[]
["11.","Schutzumfang / Bemessung/ Anordnung",null,null,null,null,null,null,null,"1. ","Geschützte Fläche je Kontrollstation in Ordnung",null,null,null,null,null,null,null,null,null,null,null,null,null,null,null,null,null,null,null,null,null,null,null,null,null,null,null,null,"ja",null,null,null,"nein"]
[]
[null,null,null,null,null,null,null,null,null,"2. ","Schutzfläche pro Sprinkler in Ordnung",null,null,null,null,null,null,null,null,null,null,null,null,null,null,null,null,null,null,null,null,null,null,null,null,null,null,null,null,"ja",null,null,null,"nein"]
[]
[null,null,null,null,null,null,null,null,null,"3. ","Wand-, Sprinkler- und Deckenabstände in Ordnung",null,null,null,null,null,null,null,null,null,null,null,null,null,null,null,null,null,null,null,null,null,null,null,null,null,null,null,null,"ja",null,null,null,"nein"]
[]
[null,null,null,null,null,null,null,null,null,"4.","Anordnungen bei Deckenöffnungen, Galerien, Zwischenböden etc. in Ordnung",null,null,null,null,null,null,null,null,null,null,null,null,null,null,null,null,null,null,null,null,null,null,null,null,null,null,null,null,"ja",null,null,null,"nein"]
[]
[null,null,null,null,null,null,null,null,null,"5.","Gültige hydraulische Berechnung in Ordnung",null,null,null,null,null,null,null,null,null,null,null,null,null,null,null,null,null,null,null,null,null,null,null,null,null,null,null,null,"ja",null,null,null,"nein"]
[]
[null,null,null,null,null,null,null,null,null,"6.","Ganze Brandabschnitte geschützt",null,null,null,null,null,null,null,null,null,null,null,null,null,null,null,null,null,null,null,null,null,null,null,null,null,null,null,null,"ja",null,null,null,"nein"]
[]
[null,null,null,null,null,null,null,null,null,"7.","Entleer- und Spülmöglichkeiten eingeplant (z.B. Storz 55)",null,null,null,null,null,null,null,null,null,null,null,null,null,null,null,null,null,null,null,null,null,null,null,null,null,null,null,null,"ja",null,null,null,"nein"]
[]
[null,null,null,null,null,null,null,null,null,"8.","Hohlraumsprinkler falls erforderlich eingeplant",null,null,null,null,null,null,null,null,null,null,null,null,null,null,null,null,null,null,null,null,null,null,null,null,null,null,null,null,"ja",null,null,null,"nein"]
[]
[null,null,null,null,null,null,null,null,null,"9.","Strömungsmelder falls erforderlich prüfbar und eingeplant",null,null,null,null,null,null,null,null,null,null,null,null,null,null,null,null,null,null,null,null,null,null,null,null,null,null,null,null,"ja",null,null,null,"nein"]
[]
[null,null,null,null,null,null,null,null,null,"10.","Wasseranschlussarmaturen gemäss SVGW",null,null,null,null,null,null,null,null,null,null,null,null,null,null,null,null,null,null,null,null,null,null,null,null,null,null,null,null,"ja",null,null,null,"nein"]
[]
[null,null,null,null,null,null,null,null,null,"11.","Brandschutzpläne / Brandschutzkonzept geprüft",null,null,null,null,null,null,null,null,null,null,null,null,null,null,null,null,null,null,null,null,null,null,null,null,null,null,null,null,"ja",null,null,null,"nein"]
[]
[]
[]
[]
[]
[]
["12.","Verteiler",null,null,null,null,null,null,null,"Versand an"]
[]
[]
[]
[]
[]
[]
["13.","Beilagen",null,null,null,null,null,null,null,null,"Ausführungsplan Umbaubereich",null,null,null,null,null,null,null,null,null,null,null,null,null,null,null,null,null,"Anlageschema"]
[]
[null,null,null,null,null,null,null,null,null,null,"Nutzungs- und Lagepläne ",null,null,null,null,null,null,null,null,null,null,null,null,null,null,null,null,null,"Katasterplan (Gebäude)"]
[]
[]
[]
[]
["14.","Unterschriften",null,null,null,null,null,null,null,null,null,null,null,null,null,null,null,null,null,null,null,"Satz zu Unterschrift bez Verantwortung"]
[]
[null,"QS Verantwortlicher Brandschutz / Bauherr",null,null,null,null,null,null,null,null,null,null,null,null,null,null,null,null,null,null,null,null,null,null,null,null,null,null,null,"Anerkannte Fachfirma für die Errichtung von Sprinkleranlagen"]
[null,"Ort",null,null,null,null,null,null,null,null,null,null,null,null,null,null,null,"Datum"]
[]
[]
[]
[null,"Name der zuständigen Person",null,null,null,null,null,null,null,null,null,null,null,null,null,null,null,null,null,null,null,null,null,null,null,null,null,null,null,"Name der zuständigen Person"]
[]
[]
[]
[null,"Stempel und Unterschrift",null,null,null,null,null,null,null,null,null,null,null,null,null,null,null,null,null,null,null,null,null,null,null,null,null,null,null,"Stempel und Unterschrift"]

{"sheet":"Ausserbetrieb-Inbetriebsetzung","index":12,"n_rows":179,"n_cols":42,"rows_kept":179,"cut":false,"hidden":true,"merged":[[167,9,167,50],[169,9,169,50],[171,9,171,50],[173,9,173,50],[178,9,178,19],[178,24,178,30],[178,32,178,50],[142,9,142,50],[147,9,147,19],[147,24,147,30],[157,18,157,25],[162,31,162,48],[164,31,164,48],[162,10,162,26],[130,1,132,8],[132,10,132,27],[132,30,132,50],[136,9,136,50],[138,9,138,50],[140,9,140,50],[109,31,109,50],[111,31,111,50],[114,1,116,7],[116,9,120,50],[121,9,123,50],[125,9,127,50],[109,10,109,26],[99,1,99,7],[99,9,99,50],[101,9,101,50],[104,1,104,7],[104,18,104,25],[104,38,104,45],[88,16,88,29],[89,16,89,29],[89,33,89,50],[92,9,92,50],[94,9,94,50],[96,9,96,50],[82,1,84,7],[82,16,82,29],[84,16,84,29],[84,33,84,35],[84,41,84,50],[86,16,86,29],[86,33,86,35],[86,41,86,50],[76,24,76,25],[76,27,76,29],[76,39,76,40],[76,41,76,50],[78,16,78,29],[79,16,79,29],[79,41,79,50],[66,16,66,29],[68,16,68,29],[68,41,68,50],[69,2,69,14],[72,2,72,14],[74,1,76,7],[74,27,74,37],[74,39,74,40],[74,41,74,50],[76,9,76,22],[59,1,61,7],[59,16,59,29],[61,16,61,29],[61,33,61,35],[61,41,61,50],[63,16,63,29],[63,33,63,35],[63,41,63,50],[51,16,51,29],[51,33,51,35],[51,41,51,50],[54,16,54,29],[56,16,56,29],[56,41,56,50],[42,16,42,29],[42,35,42,40],[42,41,42,50],[44,16,44,29],[44,41,44,50],[47,1,49,7],[47,16,47,29],[49,16,49,29],[49,33,49,35],[49,41,49,50],[35,1,37,7],[35,16,35,29],[37,16,37,29],[37,33,37,35],[37,41,37,50],[39,16,39,29],[39,33,39,35],[39,41,39,50],[27,16,27,29],[27,33,27,35],[27,41,27,50],[30,16,30,29],[30,41,30,50],[32,16,32,29],[23,1,25,7],[23,16,23,29],[23,41,23,50],[25,16,25,29],[25,33,25,35],[25,41,25,50],[15,16,15,29],[15,33,15,35],[15,41,15,50],[18,16,18,29],[18,41,18,50],[20,16,20,29],[8,16,8,22],[8,28,8,35],[8,41,8,50],[11,1,13,7],[11,16,11,29],[11,41,11,50],[13,16,13,29],[13,33,13,35],[13,41,13,50],[0,0,0,11],[2,16,2,17],[3,2,3,14],[4,1,7,7],[4,16,4,50],[6,16,6,26],[6,28,6,29],[6,34,6,35],[6,39,6,50]]}
["Sprinkleranlage "]
["è",null,"Ausserbetriebsetzung"]
[]
[]
["1.","Geschütztes              Gebäude",null,null,null,null,null,null,null,"Objekt"]
[]
[null,null,null,null,null,null,null,null,null,"Strasse",null,null,null,null,null,null,null,null,null,null,null,null,null,null,null,null,null,"Nr.",null,null,null,null,"PLZ",null,null,null,null,"Ort"]
[]
[null,null,null,null,null,null,null,null,null,"Versicherungs Nr.",null,null,null,null,null,null,null,null,null,null,null,null,null,null,"Kataster Nr.",null,null,null,null,null,null,null,null,null,null,null,null,"Anlage Nr."]
[]
[]
["2.","Fachfirma Planung",null,null,null,null,null,null,null,"Name",null,null,null,null,null,null,{"$f":"'Allgemeine Daten'!$Q$64","v":0},null,null,null,null,null,null,null,null,null,null,null,null,null,null,"VKF Anerkennung Nr."]
[]
[null,null,null,null,null,null,null,null,null,"Strasse",null,null,null,null,null,null,{"$f":"'Allgemeine Daten'!$Q$66","v":0},null,null,null,null,null,null,null,null,null,null,null,null,null,null,"Nr.",null,{"$f":"'Allgemeine Daten'!$AH$66","v":0},null,null,null,"Tel.",null,null,null,{"$f":"'Allgemeine Daten'!AQ66","v":0}]
[]
[null,null,null,null,null,null,null,null,null,"Ort",null,null,null,null,null,null,{"$f":"'Allgemeine Daten'!$Q$68","v":0},null,null,null,null,null,null,null,null,null,null,null,null,null,null,"PLZ",null,{"$f":"'Allgemeine Daten'!$AH$68","v":0},null,null,null,"Fax",null,null,null,{"$f":"'Allgemeine Daten'!AQ68","v":0}]
[]
[]
[null,null,null,null,null,null,null,null,null,"Kontaktperson",null,null,null,null,null,null,{"$f":"'Allgemeine Daten'!$Q$71","v":0},null,null,null,null,null,null,null,null,null,null,null,null,null,null,null,null,null,null,null,null,"Tel. direkt",null,null,null,{"$f":"'Allgemeine Daten'!AO64","v":0}]
[]
[null,null,null,null,null,null,null,null,null,"E-Mail",null,null,null,null,null,null,{"$f":"'Allgemeine Daten'!$Q$73","v":0}]
[]
[]
["3.","Fachfirma Errichtung",null,null,null,null,null,null,null,"Name",null,null,null,null,null,null,{"$f":"'Allgemeine Daten'!Q76","v":0},null,null,null,null,null,null,null,null,null,null,null,null,null,null,"VKF Anerkennung Nr.",null,null,null,null,null,null,null,null,null,{"$f":"'Allgemeine Daten'!AQ76","v":0}]
[]
[null,null,null,null,null,null,null,null,null,"Strasse",null,null,null,null,null,null,{"$f":"'Allgemeine Daten'!Q78","v":0},null,null,null,null,null,null,null,null,null,null,null,null,null,null,"Nr.",null,{"$f":"'Allgemeine Daten'!AH78","v":0},null,null,null,"Tel.",null,null,null,{"$f":"'Allgemeine Daten'!AQ78","v":0}]
[]
[null,null,null,null,null,null,null,null,null,"Ort",null,null,null,null,null,null,{"$f":"'Allgemeine Daten'!Q80","v":0},null,null,null,null,null,null,null,null,null,null,null,null,null,null,"PLZ",null,{"$f":"'Allgemeine Daten'!AH80","v":0},null,null,null,"Fax",null,null,null,{"$f":"'Allgemeine Daten'!AQ80","v":0}]
[]
[]
[null,null,null,null,null,null,null,null,null,"Kontaktperson",null,null,null,null,null,null,{"$f":"'Allgemeine Daten'!Q83","v":0},null,null,null,null,null,null,null,null,null,null,null,null,null,null,null,null,null,null,null,null,"Tel. direkt",null,null,null,{"$f":"'Allgemeine Daten'!AQ83","v":0}]
[]
[null,null,null,null,null,null,null,null,null,"E-Mail",null,null,null,null,null,null,{"$f":"'Allgemeine Daten'!Q85","v":0}]
[]
[]
["4.","QS Verantwortlicher Brandschutz",null,null,null,null,null,null,null,"Firma",null,null,null,null,null,null,{"$f":"'Allgemeine Daten'!Q88","v":0}]
[]
[null,null,null,null,null,null,null,null,null,"Strasse",null,null,null,null,null,null,{"$f":"'Allgemeine Daten'!Q90","v":0},null,null,null,null,null,null,null,null,null,null,null,null,null,null,"Nr.",null,{"$f":"'Allgemeine Daten'!AH90","v":0},null,null,null,"Tel.",null,null,null,{"$f":"'Allgemeine Daten'!AQ90","v":0}]
[]
[null,null,null,null,null,null,null,null,null,"Ort",null,null,null,null,null,null,{"$f":"'Allgemeine Daten'!Q92","v":0},null,null,null,null,null,null,null,null,null,null,null,null,null,null,"PLZ",null,{"$f":"'Allgemeine Daten'!AH92","v":0},null,null,null,"Fax",null,null,null,{"$f":"'Allgemeine Daten'!AQ92","v":0}]
[]
[]
[null,null,null,null,null,null,null,null,null,"Zuständige Person",null,null,null,null,null,null,{"$f":"'Allgemeine Daten'!Q95","v":0},null,null,null,null,null,null,null,null,null,null,null,null,null,null,null,null,null,null,"VKF Zertifikat Nr.",null,null,null,null,null,{"$f":"'Allgemeine Daten'!AQ95","v":0}]
[]
[null,null,null,null,null,null,null,null,null,"E-Mail",null,null,null,null,null,null,{"$f":"'Allgemeine Daten'!Q97","v":0},null,null,null,null,null,null,null,null,null,null,null,null,null,null,null,null,null,null,null,null,"Tel. direkt",null,null,null,{"$f":"'Allgemeine Daten'!AQ97","v":0}]
[]
[]
["5.","Eigentümerschaft",null,null,null,null,null,null,null,"Name"]
[]
[null,null,null,null,null,null,null,null,null,"Strasse",null,null,null,null,null,null,null,null,null,null,null,null,null,null,null,null,null,null,null,null,null,"Nr.",null,null,null,null,null,"Tel."]
[]
[null,null,null,null,null,null,null,null,null,"Ort",null,null,null,null,null,null,null,null,null,null,null,null,null,null,null,null,null,null,null,null,null,"PLZ",null,null,null,null,null,"Fax"]
[]
[]
[null,null,null,null,null,null,null,null,null,"Zuständige Person"]
[]
[null,null,null,null,null,null,null,null,null,"E-Mail",null,null,null,null,null,null,null,null,null,null,null,null,null,null,null,null,null,null,null,null,null,null,null,null,null,null,null,"Tel. direkt"]
[]
[]
["6.","Nutzerschaft",null,null,null,null,null,null,null,"Name"]
[]
[null,null,null,null,null,null,null,null,null,"Strasse",null,null,null,null,null,null,null,null,null,null,null,null,null,null,null,null,null,null,null,null,null,"Nr.",null,null,null,null,null,"Tel."]
[]
[null,null,null,null,null,null,null,null,null,"Ort",null,null,null,null,null,null,null,null,null,null,null,null,null,null,null,null,null,null,null,null,null,"PLZ",null,null,null,null,null,"Fax"]
[]
[]
[null,null,null,null,null,null,null,null,null,"Zuständige Person"]
[]
[null,null,null,null,null,null,null,null,null,"E-Mail",null,null,null,null,null,null,null,null,null,null,null,null,null,null,null,null,null,null,null,null,null,null,null,null,null,null,null,"Tel. direkt"]
[]
[]
[]
[]
[]
["1.","Geschütztes              Gebäude",null,null,null,null,null,null,null,"Gebäude  Bezeichnung",null,null,null,null,null,null,null,null,null,null,null,null,null,null,"Strasse",null,null,null,null,null,null,null,null,null,null,null,null,null,null,"Nr."]
[]
[null,null,null,null,null,null,null,null,null,null,null,null,null,null,null,null,null,null,null,null,null,null,null,null,"PLZ",null,null,null,null,null,null,null,null,null,null,null,null,null,null,"Ort"]
[]
[]
[null,null,null,null,null,null,null,null,null,"Versicherungs Nr.",null,null,null,null,null,null,null,null,null,null,null,null,null,null,null,null,null,null,null,null,null,null,"Alarmübertragungsnummer"]
[]
[]
["2.","Anlagebetreiber",null,null,null,null,null,null,null,"Name"]
["."]
[null,null,null,null,null,null,null,null,null,"Strasse",null,null,null,null,null,null,null,null,null,null,null,null,null,null,null,null,null,null,null,null,null,"Nr.",null,null,null,null,null,"Tel."]
[]
[null,null,null,null,null,null,null,null,null,"Ort",null,null,null,null,null,null,null,null,null,null,null,null,null,null,null,null,null,null,null,null,null,"PLZ",null,null,null,null,null,"Fax"]
[]
[]
[null,null,null,null,null,null,null,null,null,"Kontaktperson",null,null,null,null,null,null,null,null,null,null,null,null,null,null,null,null,null,null,null,null,null,"E-Mail"]
[]
[]
["3.","Bereich"]
[]
[]
[]
[]
[]
[]
["4.","Grund"]
[]
[]
[]
[]
["5.","Termine",null,null,null,null,null,null,null,"Datum Ausserbetriebsetzung",null,null,null,null,null,null,null,null,null,null,null,null,null,null,null,null,null,null,null,null,"Voraussichtliche Dauer"]
[]
[]
["6.","Verteiler",null,null,null,null,null,null,null,"Versand  an"]
[]
[null,null,null,null,null,null,null,null,null,"X",null,null,null,null,null,null,null,null,null,null,null,null,null,null,null,null,null,null,null,null,"X","er"]
[]
[null,null,null,null,null,null,null,null,null,null,"Ortsfeuerwehr"]
[]
[]
["7.","Rechtliche Grundlage",null,null,null,null,null,null,null,"Sprinkleranlagen dürfen grundsätzlich nicht ausser Betrieb gesetzt werden."]
[]
[null,null,null,null,null,null,null,null,null,"Über voraussehbare, mehr als einen Tag dauernde Ausserbetriebsetzungen der Anlage ist die Brandschutzbehörde und die Feuerwehr durch den Betreiber bis spätestens drei Tage vorher zu informieren. Unvorhergesehene, voraussichtlich länger als 24 Stunden dauernde Ausserbetriebsetzungen sind unter Angabe der voraussichtlichen Dauer des Unterbruches umgehend den gleichen Stellen zu melden. Die Meldungen haben mittels VKF Formular „Ausser-/Inbetriebsetzung SPA“ zu erfolgen."]
[]
[]
[]
[]
[null,null,null,null,null,null,null,null,null,"Änderungen, Erweiterungen und Reparaturen der Anlage sind möglichst rasch durchzuführen. Notwendige vorübergehende Ausserbetriebsetzungen haben tagsüber zu erfolgen. Die Wiederinbetriebnahme ist der Brandschutzbehörde und der Feuerwehr zu melden."]
[]
[]
[]
[null,null,null,null,null,null,null,null,null,"Während des Ausfalles der Sprinkleranlage oder von Teilen der Anlage sind andere geeignete Sicherheitsmassnahmen/Ersatzmassnahmen wie Rauchverbot, Stilllegung feuergefährlicher Betriebseinrichtungen, vermehrte Überwachung und erhöhte Bereitschaft der betriebseigenen Löschkräfte anzuordnen."]
[]
[]
["."]
[]
["8.","Vorgesehene Ersatzmassnahmen",null,null,null,null,null,null,null,null,"Brandwache",null,null,null,null,null,null,null,null,null,null,"Rauchverbot",null,null,null,null,null,null,null,null,"Zusätzliche Löschmittel"]
[]
[]
[]
["."]
[]
["9.","Bemerkungen"]
[]
[]
[]
[]
[]
[]
[]
[]
["10.","Unterschrift Anlagebetreiber"]
[]
[null,null,null,null,null,null,null,"Ort",null,null,null,null,null,null,null,null,null,null,null,null,null,"Datum"]
[]
[]
[]
[]
[]
["è",null,"Inbetriebsetzung"]
[]
[]
[]
["11.","Termine",null,null,null,null,null,null,null,"Datum Inbetriebsetzung"]
[]
[]
["12.","Verteiler",null,null,null,null,null,null,null,"Versand  an"]
[]
[]
[]
[null,null,null,null,null,null,null,null,null,null,"Ortsfeuerwehr"]
[]
[]
["13.","Bemerkungen"]
[]
[]
[]
[]
[]
[]
[]
[]
["14.","Unterschrift Anlagebetreiber"]
[]
[null,null,null,null,null,null,null,"Ort",null,null,null,null,null,null,null,null,null,null,null,null,null,"Datum"]

{"sheet":"Systemart","index":13,"n_rows":27,"n_cols":10,"rows_kept":27,"cut":false,"hidden":true,"merged":[]}
[]
[]
[]
[null,null,null,null,null,null,"Wasserversorgung",null,null,"zu Übersetzen?"]
[null,null,"Systemart auswählen"]
[null,null,"Nass m. AFFF",null,null,null,"gut",null,null,"ja"]
[null,null,"Nass m. Glykol",null,null,null,"sehr gut",null,null,"nein"]
[null,null,"Nass mit Glyklotailend"]
[null,null,"Nass mit Trockentailend"]
[null,null,"Nassanlage"]
[null,null,"Sprühflut"]
[null,null,"Trocken mit AFFF"]
[null,null,"Trockenanlage"]
[null,null,"Sprüh-/Wassernebel"]
[]
[]
[]
[null,null,"choisir le type de système"]
[null,null,"sous eau + mousse AFFF"]
[null,null,"sous eau + antigel"]
[null,null,"sous eau + avec zone antigel déportée"]
[null,null,"sous eau + avec zone sous air déportée"]
[null,null,"sous eau"]
[null,null,"déluge"]
[null,null,"sous air + mousse AFFF"]
[null,null,"sous air "]
[null,null,"pulvérisation/brouillard d'eau"]

{"sheet":"Behörden","index":14,"n_rows":31,"n_cols":7,"rows_kept":31,"cut":false,"hidden":true,"merged":[]}
[]
[null,null,"Kanton","Brandschutzbehörde"]
[null,null,null,"Brandschutzbehörde"]
[null,null,"AG","AG: Aargauische Gebäudeversicherung, Abteilung Brandschutz",null,"Änderungen"]
[null,null,"AI","AI: Bauverwaltung Inneres Land AI",null,"2018-10-09","Technische Inspektorate Kanton Obwalden"]
[null,null,"AR","AR: Assekuranz  AR",null,"2021-04-30","SG: Abteilung Brandschutz, Gebäudeversicherung St. Gallen"]
[null,null,"BE","BE: Gebäudeversicherung Bern"]
[null,null,"BL","BL: Basellandschaftliche Gebäudeversicherung"]
[null,null,"BS","BS: Gebäudeversicherung des Kantons Basel-Stadt, Feuerpolizei"]
[null,null,"FR","FR: Etablissement cantonal d'assurance des bâtiments, Inspection du feu"]
[null,null,"GE","GE: Département des constructions et technologies de l'information, Police du feu"]
[null,null,"GL","GL: glarnerSach"]
[null,null,"GR","GR: Feuerpolizei Graubünden"]
[null,null,"JU","JU: Etablissement cantonal d’assurance immobilière et de prévention"]
[null,null,"LU","LU: Gebäudeversicherung des Kantons Luzern"]
[null,null,"NE","NE: Etablissement cantonal d'assurance et de prévention"]
[null,null,"NW","NW: NSV Nidwaldner Sachversicherung, Abteilung Sichern"]
[null,null,"OW","OW: Technische Inspektorate Kanton Obwalden"]
[null,null,"SG","SG: Abteilung Brandschutz, Gebäudeversicherung St.Gallen"]
[null,null,"SH","SH: Feuerpolizei des Kantons Schaffhausen"]
[null,null,"SO","SO: Solothurnische Gebäudeversicherung"]
[null,null,"SZ","SZ: Amt für Militär: Feuer- und Zivilschutz"]
[null,null,"TI","TI: Ufficio delle domande di costruzione e dell'esame d'impatto ambiantale"]
[null,null,"TG","TG: Feuerschutzamt des Kantons Thurgau"]
[null,null,"UR","UR: Amt für Bevölkerungsschutz und Militär, Abt. Brandschutz und Schutzbauten"]
[null,null,"VD","VD: Etablissement cantonal d'assurance "]
[null,null,"VS","VS: Service cantonal du feu et de la protection civile"]
[null,null,"ZG","ZG: Gebäudeversicherung Zug"]
[null,null,"ZH","ZH: Kantonale Feuerpolizei"]
[null,null,"FL","FL: Hochbauamt"]
[null,null,"VKF","VKF: Vereinigung Kantonaler Feuerversicherungen"]

{"sheet":"Fachstelle(n)","index":15,"n_rows":32,"n_cols":11,"rows_kept":32,"cut":false,"hidden":true,"merged":[]}
[]
[null,null,"Kanton","Fachstellen 2013"]
[null,null,null,"Fachstelle(n)",null,null,null,"Änderungen"]
[null,null,"AG","AG: SAS akkreditierte Stelle"]
[null,null,"AI","AI: Brandschutzbehörde +  Holenstein Ingenieure AG, Diessenhofen",null,null,null,"26.03.2015 Febo neu in Münchenstein",null,null,"roj"]
[null,null,"AR","AR: Brandschutzbehörde + Holenstein Ingenieure AG, Diessenhofen",null,null,null,"2023-03-23","AI und SH korrigiert"]
[null,null,"BE","BE: GVB Services AG, Ittigen",null,null,null,"2024-02-16","AG SAS akkraditierte Stelle"]
[null,null,"BL","BL: Swiss Safety Center AG"]
[null,null,"BS","BS: Febo Brandschutz GmbH, Münchenstein",null," -"]
[null,null,"FR","FR: Swiss Safety Center AG",null,"nein "]
[null,null,"GE","GE: Brandschutzbehörde",null,"ja"]
[null,null,"GL","GL: Goetschi Ingenieurbüro AG,  Buchs",null,null," -"]
[null,null,"GR","GR: Swiss Safety Center AG",null,null,1]
[null,null,"GR","GR: PAGAenergie AG",null,null,2]
[null,null,"GR","GR: Balzer Ingenieure AG",null,null,3]
[null,null,"JU","JU: Swiss Safety Center AG",null,null,4]
[null,null,"LU","LU: Brandschutzbehörde"]
[null,null,"NE","NE: Brandschutzbehörde + Swiss Safety Center AG"]
[null,null,"NW","NW: Goetschi Ingenieurbüro AG,  Buchs"]
[null,null,"OW","OW: Brandschutzbehörde + Swiss Safety Center AG"]
[null,null,"SG","SG: Brandschutzbehörde"]
[null,null,"SH","SH: Holenstein Ingenieure AG, Diessenhofen"]
[null,null,"SO","SO: Goetschi Ingenieurbüro AG,  Buchs"]
[null,null,"SZ","SZ: Brandschutzbehörde + Swiss Safety Center AG"]
[null,null,"TG","TG: Holenstein Ingenieure AG, Diessenhofen"]
[null,null,"TI","TI: SAS akkreditierte Stelle"]
[null,null,"UR","UR: Swiss Safety Center AG"]
[null,null,"VD","VD: Brandschutzbehörde"]
[null,null,"VS","VS: SAS akkreditierte Stelle"]
[null,null,"ZG","ZG: Goetschi Ingenieurbüro AG,  Buchs"]
[null,null,"ZH","ZH: Brandschutzbehörde"]
[null,null,"FL","FL: Swiss Safety Center AG, ARSERIT GmbH "]

{"sheet":"Gewässerschutzamt","index":16,"n_rows":37,"n_cols":3,"rows_kept":37,"cut":false,"hidden":true,"merged":[]}
[]
[]
[]
[]
[]
[]
[]
[]
[null,null,"Meldung an das Gewässerschutzamt bei Verwendung von Glykol oder AFFF"]
[null,"Aargau","AG: AfU, Sektion Boden und Wasser"]
[null,"Appenzell Ausser.","AR: Amt für Umwelt, Industrie und Gewerbe"]
[null,"Appenzell Inner.","AI: Amt für Umweltschutz"]
[null,"BAFU","BAFU: Abteilung Wasser"]
[null,"Basel-Landschaft","BL: Amt für Umweltschutz und Energie"]
[null,"Basel-Stadt","BS: Amt für Umwelt und Energie, Abteilung Gewässerschutz"]
[null,"Bern","BE: Amt für Wasser und Abfall"]
[null,"Freiburg","FR: Service de l'environnement, Protection des eaux"]
[null,"Genf","GE: Direction générale de l'eau (DGEau)"]
[null,"Glarus","GL: Abteilung Umweltschutz und Energie"]
[null,"Graubünden","GR: Amt für Natur und Umwelt, Abwaseranlagen"]
[null,"Jura","JU: Office de l'environnement"]
[null,"Liechtenstein","FL: Amt für Umweltschutz"]
[null,"Luzern","LU: Umwelt und Energie (uwe) Industrie- und Gewerbeabwasser"]
[null,"Neuenburg","NE: Service de l'énergie et de l'environnement, Eaux usées industrielles"]
[null,"Nidwalden","NW: Amt für Umwelt, Siedlungsentwässerung"]
[null,"Obwalden","OW: Amt für Landwirtschaft und Umwelt, Dienststelle Gewässerschutz"]
[null,"Schaffhausen","SH: Interkantonales Labor, Gewässerschutzinspektor"]
[null,"Schwyz","SZ: Amt für Umweltschutz"]
[null,"Solothurn","SO: Amt für Umwelt, Siedlungsentwässerung"]
[null,"St. Gallen","SG: Amt für Umwelt und Energie, Oberflächenwasser"]
[null,"Tessin","TI: Ufficio della protezione e della depurazione delle acque"]
[null,"Thurgau","TG: Amt für Umwelt, Siedlungsentwässerung"]
[null,"Uri","UR: Abteilung Gewässerschutz"]
[null,"Waadt","VD: Service des eaux, sols et assainissement (SESA), Assainissement industriel"]
[null,"Wallis","VS: Dienststelle für Umweltschutz"]
[null,"Zug","ZG: Amt für Umweltschutz"]
[null,"Zürich","ZH: AWEL, Abt. Abfallwirtschaft und Betriebe, Sektion Betrieblicher Umweltschutz und Störfallvorsorge"]